Workbook

Sheet CONTRIBUENTE
C2: Questo file contiene UNA MACRO (non indispensabile) nel foglio F24 Elem. Ident.. Puoi attivarla anche in un secondo momento, quando
C3: riapri il file. Per utilizzarla assicurati di salvare il file nel formato con macro ATTIVE. Le macro sono COMANDI automatici che completano
C4: le funzionalità di questo strumento, non contengono virus o altro. Qui trovi la spiegazione di Microsoft: | M4: MACRO
C5: Sistema interamente originale. Non necessita di aggiornamenti.
C6: di Marco Piccoli - P. IVA 01151800313
C7: Monfalcone - GO - Tel. 333 46 39 497
P8: Professionista Web di cui alla legge nr. 4/2013
C9: Leggi attentamente questa presentazione, osserva le "Note pratiche" e richiedi liberamente informazioni via mail.
C10: Una copia di questo file è sempre disponibile al sito www.marcopiccoli.it: | J10: Area Download .xlsx / xlsm
C12: Puoi usare questo file per annotare i tuoi F24 di TUTTI i MESI di OGNI ANNO. Al momento il trimestre selezionato è: | T12: DAL - GG/MM - AL
C13: =I89 -> 1° TRIMESTRE | G13: =IF(J140="",IF(E139=1,B136,""),J140) ->  | T13: =IF(I89="",F156,VLOOKUP(I89,C156:F159,4,FALSE)) -> 2024-01-01 | U13: =IF(I89="",G156,VLOOKUP(I89,C156:G159,5,FALSE)) -> 2024-03-31
B14: Questo strumento è liberamente utilizzabile DA TUTTI. Funziona integralmente per OGNI TRIMESTRE di ogni
B15: ANNO. Puoi sbloccarlo in qualsiasi momento per l' INTERO ANNO. I valori che inserisci sono sempre disponibili.
C16: =IF(K71=J144,B127,B126) -> Richiedi via mail il TUO CODICE di PROPRIETA' per EXCEL: | J16: info@marcopiccoli.it
C17: Note pratiche:
C18: USA IL TASTO - TAB - PER MUOVERE IL CURSORE NELLE | I18: USA IL TASTO - Canc - PER RIMUOVERE IL
C19: CELLE LIBERE. TUTTE LE ALTRE SONO BLOCCATE E NON | I19: CONTENUTO DI UNA CELLA. PER MAC USA
C20: TI SERVONO PER IL CORRETTO USO DI QUESTO FILE. | I20: - doppio tasto - NON TAGLIARE LE CELLE.
G22: per OpenOffice non disponibile
C25: Il file contiene 1 Selettore MACRO.
M26: Questo è il sistema
H27: F24 Elementi Identificativi 1.6 per Excel .xlsm
C29: =CONCATENATE(H27," è un sistema elettronico UNIVERSALE con il quale puoi creare e memorizzare molteplici modelli in 1 anno ed in più anni, identificandoli con") -> F24 Elementi Identificativi 1.6 per Excel .xlsm è un sistema elettronico UNIVERSALE con il quale puoi creare e memorizzare molteplici modelli in 1 anno ed in più anni, identificandoli con
C30: 1 numero di protocollo progressivo.
C31: Il documento si edita una riga sotto l' altra progressivamente e si stampa a scelta nel foglio del \ MODELLO Elettronico /.
C32: CONTRIBUENTE
C34: CODICE FISCALE | E34: 01234567891
C36: Dati Anagrafici | E36: Anagrafica CONTRIBUENTE
E37: Cognome, denominazione o ragione sociale
E38: Nome CONTRIBUENTE | J38: 2000-01-01 | M38: Maschile
E39: Nome | J39: Data di nascita | M39: Sesso
E41: Comune (o Stato estero) di nascita | J41: Prov
C43: Domicilio Fiscale
E44: Comune | J44: Prov
E45: ……………..
E46: Via e numero civico
C48: Codice fiscale | K48: Codice identificativo
C50: Dopo aver compilato il quadro CONTRIBUENTE, utilizza il foglio \ DOCUMENTI EMESSI /
C51: per generare i tuoi singoli documenti inserendo gli elementi specifici riga per riga.
C52: Assegna: 1 numero di protocollo progressivo per creare ogni singolo documento. Stesso nr. di prot. = stesso DOC.
C54: =IF(H138=1,G13,IF(ISERROR(K138),J135,J134)) -> Questo file risulta al momento completamente funzionante ed il sistema rileva tutti i suoi fogli.
C56: Note:
C60: PROPRIETA' illimitata del file
C61: Questo sistema può funzionare in enne copie rinominate a piacere. Funziona con calendario PERPETUO.
C62: Per attivarlo nella totalità dell' ANNO inserisci in qualsiasi momento il tuo codice di proprietà nell' apposito spazio. Puoi
C63: usare contemporaneamente più di un file. Salva un file IN BIANCO con le tue IMPOSTAZIONI da tenere come MATRICE.
F64: =IF(K71=J144,B136,"") -> 
D65: Anagrafica: | F65: =E36 -> Anagrafica CONTRIBUENTE
J67: Partita IVA / C.F: | K67: =E34 -> 01234567891
D69: Indirizzo: | F69: =E45 -> ……………..
C71: QUI | J71: Inserisci qui il tuo codice di proprietà ---> | Q71: =IF(ISBLANK(K71),0,1) -> 0
C72: =IF($K$71=$J$144,"ora è disattivato","cambi trimestre") -> cambi trimestre
C73: =C151 -> 89 | D73: giorni al | E73: primo mese disattivato | I73: =IF(K71="","",IF(J144=K71,B134,B135)) ->  | S73: Il codice che hai inserito nel sistema non è stato riconosciuto.
B74: =IF(K71=J144,B130,IF(I73=B135,B131,IF(C73<0,"",""))) ->  | S74: Le cause possono essere le seguenti:
C75: PREZZO per 1 codice di proprietà € 39,00 | H75: Questo sistema utilizza il codice ID: Contabilità #2
C76: =H27 -> F24 Elementi Identificativi 1.6 per Excel .xlsm | L76: www.marcopiccoli.it | S76: 1) La Ragione Sociale inserita non coincide con il testo in mio possesso.
S77: Verifica la punteggiatura e l' assenza di spazi iniziali / finali. Controlla la P.E.C. ricevuta.
C78: Questo file funziona solo se lasciato integro in tutte le sue parti. E' garantito il funzionamento con PC - Excel .xls o sup. | S78: 2) La Partita IVA inserita non coincide con il numero in mio possesso.
C79: Il sistema conta 4 fogli compreso il presente. I fogli NON POSSONO ESSERE ELIMINATI altrimenti l' intero sistema | S79: 3) Il codice che ti ho fornito non è stato correttamente inserito.
C80: non funzionerà. Se succede involontariamente NON SALVARE IL FILE ma chiudilo e riaprilo nuovamente. | S80: 4) Hai inserito un numero a caso?
D81: Pagina WEB del sistema | G81: Sezione info | K81: I tuoi | S81: Contattami liberamente via mail in qualsiasi momento per ulteriori informazioni sul codice.
D82: QUI | G82: F.A.Q. | H82: About me | K82: COMMENTI | S82: 5) Hai cambiato Ragione Sociale o Partita IVA? Contattami, il codice è una monoutenza specifica.
S83: 6) Hai usato il codice di un altro sistema? Non tutti i sistemi hanno lo stesso codice.
C84: Se desideri attivare questo sistema per l' INTERO ANNO e per OGNI ANNO, richiedi via mail il tuo Codice di Proprietà ed | S84: Questo file utilizza il codice di proprietà ID: Contabilità #2.
C85: inseriscilo direttamente nel file che stai già usando. Il codice ti viene inviato con regolare fattura. Chiedi istruzioni via mail.
M86: info@marcopiccoli.it | S86: Per qualsiasi altra cosa, contattami dopo aver considerato questi punti.
D87: SELEZIONA da qui il TRIMESTRE per il quale ATTIVARE questo sistema.
D88: I valori che via via inserisci sono sempre disponibili.
H89: ----> | I89: 1° TRIMESTRE
L92: Con "OK" accetti le regole | M92: OK
E93: A.C. cell di Marco Piccoli | L93: sull' utilizzo di questo file
E94: 34074 Monfalcone, GO - P. IVA 01151800313
E95: INFORMA CHIUNQUE ENTRI IN POSSESSO DI QUESTO FILE, CHE NON E'
E96: POSSIBILE UTILIZZARLO SENZA PROTEZIONI ORIGINALI e CHE SI ATTIVA
E97: ILLIMITATAMENTE SOLO CON REGOLARE CODICE DI PROPRIETA'.
E98: Questo strumento è interamente originale ed è distribuito professionalmente.
E99: E' coperto da diritti d' autore dal momento della sua pubblicazione sul sito
E100: www.marcopiccoli.it.
E101: L' inserimento del Codice di Proprietà, che viene inviato via P.E.C., estende tutti
E102: i diritti anche al Titolare del Sistema individuato nell' ANAGRAFICA di questo file. | O102: QUI
E103: Per qualsiasi altra informazione contattami liberamente via mail.
C106: =CONCATENATE(H27," / Sistema originale, nessuna riproduzione è permessa.") -> F24 Elementi Identificativi 1.6 per Excel .xlsm / Sistema originale, nessuna riproduzione è permessa.
C107: Rimuovere le protezioni originali, far circolare una parte del sistema o qualsiasi altro utilizzo (anche parziale, anche dei
C108: testi, anche a titolo gratuito) diverso dalle disposizioni originarie del file, sarà considerata violazione delle norme sulle
C109: opere d' ingegno. Il sistema originale privo di virus e malware si scarica al sito www.marcopiccoli.it.
R112: Torna su
B114: =H27 -> F24 Elementi Identificativi 1.6 per Excel .xlsm | L114: www.marcopiccoli.it
D119: X | E119: Maschile | F119: M
E120: Femminile | F120: F
B126: Richiedi via mail il TUO CODICE di PROPRIETA' per EXCEL: | H126: Il codice che hai inserito nel sistema non è stato riconosciuto.
B127: Contatta A.C. cell | H127: Le cause possono essere le seguenti:
B128: Questo file contiene delle MACRO. Leggi le istruzioni e completa il foglio \ IMPOSTAZIONI / prima di utilizzare il file.
B129: Questo file contiene delle MACRO. | K129: disattivato
B130: Questo sistema appartiene al TITOLARE in anagrafica. Qualsiasi altro uso non è permesso. | J130: Questo file si considera funzionante al momento della richiesta del codice.
B131: Verifica le NOTE che trovi a fondo pagina. | J131: Tieni costantemente una copia di sicurezza ed una MATRICE in bianco per gli anni successivi.
B134: OK ! Codice corretto. | E134: OK | F134: Sistema scaduto | J134: Questo file risulta al momento completamente funzionante ed il sistema rileva tutti i suoi fogli.
B135: CODICE NON VALIDO | E135: NO | F135: =IF(M92=E134,TRUE,FALSE) -> TRUE | J135: SISTEMA DANNEGGIATO !!! Chiudere senza salvare!
B136: TITOLARE DEL SISTEMA | J136: =IF(C151=0,"Sistema parzialmente attivato. Inserisci il tuo CODICE di PROPRIETA' nel foglio Presentazione.",CONCATENATE("Sistema attivato dal ",TEXT(T13,"GG/MM")," al ",TEXT(U13,"GG/MM"),". Modifica il trimestre dal foglio Presentazione.")) -> Sistema attivato dal 01/01 al 31/03. Modifica il trimestre dal foglio Presentazione.
B138: 1 | C138: BIT INTEGRITA' | E138: =IF(AND(F135=TRUE,K71=J144),1,0) -> 0 | F138: PROPRIETA' | H138: =IF(G13=F134,1,IF(F135=FALSE,1,0)) -> 0 | I138: SCADENZA | K138: =B138+'DOCUMENTI EMESSI'!L2034+'F24 con Elementi Identificativi'!AM74+Tabelle!C19 -> 4 | L138: INTEGRITA'
E139: =IF(K71=J144,1,0) -> 0 | F139: PROPRIETA'
J140: =IF(F135=FALSE,"ERRORE: manca l' OK sulle regole di utilizzo del file.",IF(K71=J144,"",IF(C73<0,F134,""))) -> 
B142: Nome del Titolare | G142: P. IVA o Cod. Fiscale | M142: 1 | N142: 2 | O142: 3 | P142: 4 | Q142: 5 | R142: 6 | S142: 7 | T142: 8 | U142: 9 | V142: 10 | W142: 11 | Z142: =M144 -> 0 | AA142: =ROUND((Z142+AC142)*3,1) -> 3 | AB142: 61 | AC142: =N144 -> 1 | AD142: =ROUND((AC142+AF142)*3,1) -> 9 | AE142: =AB142-5 -> 56 | AF142: =O144 -> 2 | AG142: =ROUND((AF142+AI142)*3,1) -> 15 | AH142: =AE142-5 -> 51 | AI142: =P144 -> 3 | AJ142: =ROUND((AI142+AL142)*3,1) -> 21 | AK142: =AH142-5 -> 46 | AL142: =Q144 -> 4 | AM142: =ROUND((AL142+AO142)*3,1) -> 27 | AN142: =AK142-5 -> 41 | AO142: =R144 -> 5 | AP142: =ROUND((AO142+AR142)*3,1) -> 33 | AQ142: =AN142-5 -> 36 | AR142: =S144 -> 6 | AS142: =ROUND((AR142+AU142)*3,1) -> 39 | AT142: =AQ142-5 -> 31 | AU142: =T144 -> 7 | AV142: =ROUND((AU142+AX142)*3,1) -> 45 | AW142: =AT142-5 -> 26 | AX142: =U144 -> 8 | AY142: =ROUND((AX142+BA142)*3,1) -> 51 | AZ142: =AW142-5 -> 21 | BA142: =V144 -> 9 | BB142: =ROUND((BA142+BD142)*3,1) -> 30 | BC142: =AZ142-5 -> 16 | BD142: =W144 -> 1 | BE142: =ROUND((BD142+Z142)*3,1) -> 3 | BF142: =BC142-5 -> 11 | BI142: A | BJ142: B | BK142: C | BL142: D | BM142: F | BN142: E | BO142: I | BP142: G | BQ142: H | BR142: K | BS142: J | BT142: N | BU142: L | BV142: M | BW142: P | BX142: O | BY142: S | BZ142: Q | CA142: R | CB142: U | CC142: T | CD142: X | CE142: V | CF142: W | CG142: Z | CH142: Y | CI142: ù | CJ142: à | CK142: è | CL142: ì | CM142: ò | CN142: / | CP142: " | CQ142: - | CR142: . | CS142: 3 | CT142: 1 | CU142: 2 | CV142: 5 | CW142: 4 | CX142: 8 | CY142: 6 | CZ142: 7 | DA142: 0 | DB142: 9
B144: =E36 -> Anagrafica CONTRIBUENTE | G144: =E34 -> 01234567891 | J144: =CONCATENATE(J148,"-",J149,"-",J150) -> 223-BKBCC-823 | M144: =IF(ISERROR(VALUE(MID($G144,M142,1))),M142,IF(M142<($H145+1),VALUE(MID($G144,M142,1)),0)) -> 0 | N144: =IF(ISERROR(VALUE(MID($G144,N142,1))),N142,IF(N142<($H145+1),VALUE(MID($G144,N142,1)),0)) -> 1 | O144: =IF(ISERROR(VALUE(MID($G144,O142,1))),O142,IF(O142<($H145+1),VALUE(MID($G144,O142,1)),0)) -> 2 | P144: =IF(ISERROR(VALUE(MID($G144,P142,1))),P142,IF(P142<($H145+1),VALUE(MID($G144,P142,1)),0)) -> 3 | Q144: =IF(ISERROR(VALUE(MID($G144,Q142,1))),Q142,IF(Q142<($H145+1),VALUE(MID($G144,Q142,1)),0)) -> 4 | R144: 5 | S144: 6 | T144: 7 | U144: 8 | V144: 9 | W144: 1 | Z144: =HLOOKUP(MID($B144,Z142,1),$BI142:$DC144,3,FALSE) ->  | AA144: 1 | AB144: 33 | AC144: 1 | AD144: 3 | AE144: 33 | AF144: 12 | AG144: 21 | AH144: 33 | AI144: 1 | AJ144: 12 | AK144: 33 | AL144: 8 | AM144: 33 | AN144: 33 | AO144: 19 | AP144: 33 | AQ144: 33 | AR144: 1 | AS144: 33 | AT144: 33 | AU144: 5 | AV144: 33 | AW144: 33 | AX144: 7 | AY144: 33 | AZ144: 12 | BA144: 3 | BB144: 33 | BC144: 19 | BD144: 1 | BE144: 1 | BF144: 47 | BI144: 1 | BJ144: 2 | BK144: 3 | BL144: 4 | BM144: 5 | BN144: 6 | BO144: 7 | BP144: 8 | BQ144: 9 | BR144: 10 | BS144: 11 | BT144: 12 | BU144: 13 | BV144: 14 | BW144: 15 | BX144: 16 | BY144: 17 | BZ144: 18 | CA144: 19 | CB144: 20 | CC144: 21 | CD144: 22 | CE144: 23 | CF144: 24 | CG144: 25 | CH144: 26 | CI144: 27 | CJ144: 28 | CK144: 29 | CL144: 30 | CM144: 31 | CN144: 32 | CO144: 33 | CP144: 34 | CQ144: 35 | CR144: 36 | CS144: 37 | CT144: 38 | CU144: 39 | CV144: 40 | CW144: 41 | CX144: 42 | CY144: 43 | CZ144: 44 | DA144: 45 | DB144: 46 | DC144: 47
G145: LUNG. Txt | H145: =LEN(G144) -> 11 | BI145: A | BJ145: B | BK145: C | BL145: D | BM145: E | BN145: F | BO145: G | BP145: H | BQ145: I | BR145: J | BS145: K | BT145: L | BU145: M | BV145: N | BW145: O | BX145: P | BY145: Q | BZ145: R | CA145: S | CB145: T | CC145: U | CD145: V | CE145: W | CF145: X | CG145: Y | CH145: Z | CS145: =COUNTIF($Z142:$BF142,CS142) -> 3 | CT145: 2 | CU145: 1 | CV145: 1 | CW145: 1 | CX145: 1 | CY145: 1 | CZ145: 1 | DA145: 1 | DB145: 2
B146: 12 | X146: =IF(X149<0,X149*-1,X149) -> 227 | BG146: =IF(BG149<0,BG149*-1,BG149) -> 3734 | CQ146: 15 | CS146: =IF(ISERROR(HLOOKUP(SMALL($Z142:$BF142,CS142),$BI144:$CH145,2,FALSE)),HLOOKUP(SMALL($Z142:$BF142,CS142),$BI144:$CH145,2,TRUE),HLOOKUP(SMALL($Z142:$BF142,CS142),$BI144:$CH145,2,FALSE)) -> A | CT146: =IF(ISERROR(HLOOKUP(SMALL($Z142:$BF142,CT142+SUM($CS145:CS145)),$BI144:$CH145,2,FALSE)),HLOOKUP(SMALL($Z142:$BF142,CT142+SUM($CS145:CS145)),$BI144:$CH145,2,TRUE),HLOOKUP(SMALL($Z142:$BF142,CT142+SUM($CS145:CS145)),$BI144:$CH145,2,FALSE)) -> B | CU146: =IF(ISERROR(HLOOKUP(SMALL($Z142:$BF142,CU142+SUM($CS145:CT145)),$BI144:$CH145,2,FALSE)),HLOOKUP(SMALL($Z142:$BF142,CU142+SUM($CS145:CT145)),$BI144:$CH145,2,TRUE),HLOOKUP(SMALL($Z142:$BF142,CU142+SUM($CS145:CT145)),$BI144:$CH145,2,FALSE)) -> C | CV146: =IF(ISERROR(HLOOKUP(SMALL($Z142:$BF142,CV142+SUM($CS145:CU145)),$BI144:$CH145,2,FALSE)),HLOOKUP(SMALL($Z142:$BF142,CV142+SUM($CS145:CU145)),$BI144:$CH145,2,TRUE),HLOOKUP(SMALL($Z142:$BF142,CV142+SUM($CS145:CU145)),$BI144:$CH145,2,FALSE)) -> G | CW146: =IF(ISERROR(HLOOKUP(SMALL($Z142:$BF142,CW142+SUM($CS145:CV145)),$BI144:$CH145,2,FALSE)),HLOOKUP(SMALL($Z142:$BF142,CW142+SUM($CS145:CV145)),$BI144:$CH145,2,TRUE),HLOOKUP(SMALL($Z142:$BF142,CW142+SUM($CS145:CV145)),$BI144:$CH145,2,FALSE)) -> G | CX146: =IF(ISERROR(HLOOKUP(SMALL($Z142:$BF142,CX142+SUM($CS145:CW145)),$BI144:$CH145,2,FALSE)),HLOOKUP(SMALL($Z142:$BF142,CX142+SUM($CS145:CW145)),$BI144:$CH145,2,TRUE),HLOOKUP(SMALL($Z142:$BF142,CX142+SUM($CS145:CW145)),$BI144:$CH145,2,FALSE)) -> O | CY146: =IF(ISERROR(HLOOKUP(SMALL($Z142:$BF142,CY142+SUM($CS145:CX145)),$BI144:$CH145,2,FALSE)),HLOOKUP(SMALL($Z142:$BF142,CY142+SUM($CS145:CX145)),$BI144:$CH145,2,TRUE),HLOOKUP(SMALL($Z142:$BF142,CY142+SUM($CS145:CX145)),$BI144:$CH145,2,FALSE)) -> K | CZ146: =IF(ISERROR(HLOOKUP(SMALL($Z142:$BF142,CZ142+SUM($CS145:CY145)),$BI144:$CH145,2,FALSE)),HLOOKUP(SMALL($Z142:$BF142,CZ142+SUM($CS145:CY145)),$BI144:$CH145,2,TRUE),HLOOKUP(SMALL($Z142:$BF142,CZ142+SUM($CS145:CY145)),$BI144:$CH145,2,FALSE)) -> P | DA146: =IF(ISERROR(HLOOKUP(SMALL($Z142:$BF142,DA142+SUM($CS145:CZ145)),$BI144:$CH145,2,FALSE)),HLOOKUP(SMALL($Z142:$BF142,DA142+SUM($CS145:CZ145)),$BI144:$CH145,2,TRUE),HLOOKUP(SMALL($Z142:$BF142,DA142+SUM($CS145:CZ145)),$BI144:$CH145,2,FALSE)) -> G | DB146: =IF(ISERROR(HLOOKUP(SMALL($Z142:$BF142,CQ146),$BI144:$CH145,2,FALSE)),HLOOKUP(SMALL($Z142:$BF142,CQ146),$BI144:$CH145,2,TRUE),HLOOKUP(SMALL($Z142:$BF142,CQ146),$BI144:$CH145,2,FALSE)) -> K
M147: =M144*$B146 -> 0 | O147: =O144*$B146 -> 24 | Q147: =Q144*$B146 -> 48 | S147: =S144*$B146 -> 72 | U147: =U144*$B146 -> 96 | W147: =W144*$B146 -> 12 | X147: =IF(X150<0,X150*-1,X150) -> 280 | Z147: =Z144*$B146 ->  | AB147: =AB144*$B146 -> 396 | AD147: =AD144*$B146 -> 36 | AF147: =AF144*$B146 -> 144 | AH147: =AH144*$B146 -> 396 | AJ147: =AJ144*$B146 -> 144 | AL147: =AL144*$B146 -> 96 | AN147: =AN144*$B146 -> 396 | AP147: =AP144*$B146 -> 396 | AR147: =AR144*$B146 -> 12 | AT147: =AT144*$B146 -> 396 | AV147: =AV144*$B146 -> 396 | AX147: =AX144*$B146 -> 84 | AZ147: =AZ144*$B146 -> 144 | BB147: =BB144*$B146 -> 396 | BD147: =BD144*$B146 -> 12 | BF147: =BF144*$B146 -> 564 | BG147: =IF(BG150<0,BG150*-1,BG150) -> 3346 | CS147: =IF(ISERROR(CS146),0,CS146) -> A | CT147: B | CU147: C | CV147: G | CW147: G | CX147: O | CY147: K | CZ147: P | DA147: G | DB147: K
B148: =DAY(E148) -> 31 | C148: =MONTH(E148) -> 3 | D148: =YEAR(E148) -> 2024 | E148: =U13 -> 45382 | J148: =CONCATENATE(AE153,AF153,AG153) -> 223 | N148: =N144*$B146 -> 12 | P148: =P144*$B146 -> 36 | R148: =R144*$B146 -> 60 | T148: =T144*$B146 -> 84 | V148: =V144*$B146 -> 108 | X148: =IF(X151<0,X151*-1,X151) -> 1105 | AA148: =AA144*$B146 -> 12 | AC148: =AC144*$B146 -> 12 | AE148: =AE144*$B146 -> 396 | AG148: =AG144*$B146 -> 252 | AI148: =AI144*$B146 -> 12 | AK148: =AK144*$B146 -> 396 | AM148: =AM144*$B146 -> 396 | AO148: =AO144*$B146 -> 228 | AQ148: =AQ144*$B146 -> 396 | AS148: =AS144*$B146 -> 396 | AU148: =AU144*$B146 -> 60 | AW148: =AW144*$B146 -> 396 | AY148: =AY144*$B146 -> 396 | BA148: =BA144*$B146 -> 36 | BC148: =BC144*$B146 -> 228 | BE148: =BE144*$B146 -> 12 | BG148: =IF(BG151<0,BG151*-1,BG151) -> 15302
B149: =DAY(E149) -> 2 | C149: =MONTH(E149) -> 1 | D149: =YEAR(E148) -> 2024 | E149: =TODAY() -> 45293 | J149: =CONCATENATE(R153,S153,T153,U153,V153) -> BKBCC | M149: =M147-N144 -> -1 | O149: =O147-P144 -> 21 | Q149: =Q147-R144 -> 43 | S149: =S147-T144 -> 65 | U149: =U147-V144 -> 87 | W149: =W147-M144 -> 12 | X149: =SUM(M149:W149) -> 227 | Z149: =Z147-BF144 ->  | AB149: =AB147-AA144 -> 395 | AD149: =AD147-AC144 -> 35 | AF149: =AF147-AE144 -> 111 | AH149: =AH147-AG144 -> 375 | AJ149: =AJ147-AI144 -> 143 | AL149: =AL147-AK144 -> 63 | AN149: =AN147-AM144 -> 363 | AP149: =AP147-AO144 -> 377 | AR149: =AR147-AQ144 -> -21 | AT149: =AT147-AS144 -> 363 | AV149: =AV147-AU144 -> 391 | AX149: =AX147-AW144 -> 51 | AZ149: =AZ147-AY144 -> 111 | BB149: =BB147-BA144 -> 393 | BD149: =BD147-BC144 -> -7 | BF149: =BF147-BE144 -> 563 | BG149: =SUMIF(Z149:BF149,">0") -> 3734 | CS149: A | CT149: D | CU149: E | CV149: G | CW149: O | CX149: P | CY149: R | CZ149: R | DA149: S | DB149: U
J150: =CONCATENATE(AH153,AI153,AJ153) -> 823 | N150: =N148-M144 -> 12 | P150: =P148-O144 -> 34 | R150: =R148-Q144 -> 56 | T150: =T148-S144 -> 78 | V150: =V148-U144 -> 100 | X150: =SUM(M150:W150) -> 280 | AA150: =AA148-AB144 -> -21 | AC150: =AC148-AD144 -> 9 | AE150: =AE148-AF144 -> 384 | AG150: =AG148-AH144 -> 219 | AI150: =AI148-AJ144 -> 0 | AK150: =AK148-AL144 -> 388 | AM150: =AM148-AN144 -> 363 | AO150: =AO148-AP144 -> 195 | AQ150: =AQ148-AR144 -> 395 | AS150: =AS148-AT144 -> 363 | AU150: =AU148-AV144 -> 27 | AW150: =AW148-AX144 -> 389 | AY150: =AY148-AZ144 -> 384 | BA150: =BA148-BB144 -> 3 | BC150: =BC148-BD144 -> 227 | BE150: =BE148-BF144 -> -35 | BG150: =SUMIF(Z150:BF150,">0") -> 3346 | CS150: =IF(CS147=0,CS149,CS146) -> A | CT150: B | CU150: C | CV150: G | CW150: G | CX150: O | CY150: K | CZ150: P | DA150: G | DB150: K
B151: =DATE(D148,C148,B148) -> 45382 | C151: =IF((B151-B152)<0,0,B151-B152) -> 89 | M151: =M144+M147+M149 -> -1 | N151: =N144+N148+N150 -> 25 | O151: =O144+O147+O149 -> 47 | P151: =P144+P148+P150 -> 73 | Q151: =Q144+Q147+Q149 -> 95 | R151: =R144+R148+R150 -> 121 | S151: =S144+S147+S149 -> 143 | T151: =T144+T148+T150 -> 169 | U151: =U144+U147+U149 -> 191 | V151: =V144+V148+V150 -> 217 | W151: =W144+W147+W149 -> 25 | X151: =SUM(M151:W151) -> 1105 | Z151: =Z144+Z147+Z149 ->  | AA151: =AA144+AA148+AA150 -> -8 | AB151: =AB144+AB147+AB149 -> 824 | AC151: =AC144+AC148+AC150 -> 22 | AD151: =AD144+AD147+AD149 -> 74 | AE151: =AE144+AE148+AE150 -> 813 | AF151: =AF144+AF147+AF149 -> 267 | AG151: =AG144+AG148+AG150 -> 492 | AH151: =AH144+AH147+AH149 -> 804 | AI151: =AI144+AI148+AI150 -> 13 | AJ151: =AJ144+AJ147+AJ149 -> 299 | AK151: =AK144+AK148+AK150 -> 817 | AL151: =AL144+AL147+AL149 -> 167 | AM151: =AM144+AM148+AM150 -> 792 | AN151: =AN144+AN147+AN149 -> 792 | AO151: =AO144+AO148+AO150 -> 442 | AP151: =AP144+AP147+AP149 -> 806 | AQ151: =AQ144+AQ148+AQ150 -> 824 | AR151: =AR144+AR147+AR149 -> -8 | AS151: =AS144+AS148+AS150 -> 792 | AT151: =AT144+AT147+AT149 -> 792 | AU151: =AU144+AU148+AU150 -> 92 | AV151: =AV144+AV147+AV149 -> 820 | AW151: =AW144+AW148+AW150 -> 818 | AX151: =AX144+AX147+AX149 -> 142 | AY151: =AY144+AY148+AY150 -> 813 | AZ151: =AZ144+AZ147+AZ149 -> 267 | BA151: =BA144+BA148+BA150 -> 42 | BB151: =BB144+BB147+BB149 -> 822 | BC151: =BC144+BC148+BC150 -> 474 | BD151: =BD144+BD147+BD149 -> 6 | BE151: =BE144+BE148+BE150 -> -22 | BF151: =BF144+BF147+BF149 -> 1174 | BG151: =SUMIF(Z151:BF151,">0") -> 15302
B152: =DATE(D149,C149,B149) -> 45293
M153: =SUM(X149:X151) -> 1612 | Q153: =LEN(TEXT(M153,"@")) -> 4 | R153: =IF(Q153>0,HLOOKUP(MID(TEXT($M153,"@"),1,1),$CS142:$DB150,9,FALSE),"") -> B | S153: =IF($Q153>1,HLOOKUP(MID(TEXT($M153,"@"),2,1),$CS142:$DB150,9,FALSE),HLOOKUP(MID(TEXT($X153,"@"),1,1),$CS142:$DB150,9,FALSE)) -> K | T153: =IF($Q153>2,HLOOKUP(MID(TEXT($M153,"@"),3,1),$CS142:$DB150,9,FALSE),HLOOKUP(MID(TEXT($X153,"@"),2,1),$CS142:$DB150,9,FALSE)) -> B | U153: =IF($Q153>3,HLOOKUP(MID(TEXT($M153,"@"),4,1),$CS142:$DB150,9,FALSE),HLOOKUP(MID(TEXT($X153,"@"),3,1),$CS142:$DB150,9,FALSE)) -> C | V153: =IF($Q153>4,HLOOKUP(MID(TEXT($M153,"@"),5,1),$CS142:$DB150,9,FALSE),HLOOKUP(MID(TEXT($X153,"@"),4,1),$CS142:$DB150,9,FALSE)) -> C | W153: =LEN(TEXT(CONCATENATE(TEXT(X146,"@"),TEXT(X147,"@"),TEXT(X148,"@")),"@")) -> 10 | X153: =IF(W153<4,CONCATENATE(TEXT(CQ146,"@"),TEXT(X146,"@"),TEXT(X147,"@"),TEXT(X148,"@")),CONCATENATE(TEXT(X146,"@"),TEXT(X147,"@"),TEXT(X148,"@"))) -> 2272801105 | Z153: =SUM(BG149:BG151) -> 22382 | AD153: =LEN(TEXT(Z153,"@")) -> 5 | AE153: =IF(AD153>0,MID(TEXT($Z153,"@"),1,1),"") -> 2 | AF153: =IF($AD153>1,MID(TEXT($Z153,"@"),2,1),MID(TEXT($BG153,"@"),1,1)) -> 2 | AG153: =IF($AD153>2,MID(TEXT($Z153,"@"),3,1),MID(TEXT($BG153,"@"),2,1)) -> 3 | AH153: =IF($AD153>3,MID(TEXT($Z153,"@"),4,1),MID(TEXT($BG153,"@"),3,1)) -> 8 | AI153: =IF($AD153>4,MID(TEXT($Z153,"@"),5,1),MID(TEXT($BG153,"@"),4,1)) -> 2 | AJ153: =IF($AD153>5,MID(TEXT($Z153,"@"),6,1),MID(TEXT($BG153,"@"),5,1)) -> 3 | AK153: =LEN(TEXT(CONCATENATE(TEXT(BG146,"@"),TEXT(BG147,"@")),"@")) -> 8 | BG153: =IF(AK153<5,CONCATENATE(TEXT(BG148,"@"),TEXT(BG146,"@"),TEXT(BG147,"@")),CONCATENATE(TEXT(BG146,"@"),TEXT(BG147,"@"))) -> 37343346
F155: ANNO | G155: ='F24 con Elementi Identificativi'!AT3 -> 2024
C156: 1° TRIMESTRE | E156: 1 | F156: =DATE(G155,E156,1) -> 2024-01-01 | G156: =F157-1 -> 2024-03-31
C157: 2° TRIMESTRE | E157: 4 | F157: =DATE(G155,E157,1) -> 2024-04-01 | G157: =F158-1 -> 2024-06-30
C158: 3° TRIMESTRE | E158: 7 | F158: =DATE(G155,E158,1) -> 2024-07-01 | G158: =F159-1 -> 2024-09-30
C159: 4° TRIMESTRE | E159: 10 | F159: =DATE(G155,E159,1) -> 2024-10-01 | G159: =DATE(G155,E160,31) -> 2024-12-31
E160: 12

Sheet DOCUMENTI EMESSI
D2: Contribuente: | J2: Compila le righe della sezione sottostante, una sotto l' altra, assegnando un numero di protocollo progressivo + data per ogni riga.
D3: =CONTRIBUENTE!E34 -> 01234567891 | J3: Questo sarà direttamente il tuo archivio storico. Nel successivo foglio potrai richiamare e stampare tutti i documenti così generati.
D4: Stesso nr. di PROT. = | J4: SEZIONE ERARIO ED ALTRO
D5: stesso DOCUMENTO | J5: =IF(G2034=0,"",CONTRIBUENTE!$F$134) ->  | S5: Vedi foglio \ Tabelle /
D6: NR. | E6: DATA | G6: Codice | H6: Codice | J6: TIPO | L6: Elementi | M6: codice | N6: anno di | O6: importi a debito | Q6: Protocollo | S6: Delega irrevocabile a | W6: Pagamento con | X6: bancario | Y6: circ. o | AC6: N O T E
D7: Prot. | G7: UFFICIO | H7: ATTO | L7: Identificativi | N7: RIF.to | O7: versati | Q7: alfanumerico | T7: ABI | U7: CAB | V7: opz. | W7: assegno nr. | X7: postale | Y7: vaglia | Z7: ABI | AA7: CAB
A9: 1 di 2000 | B9: =IF(AG9=$AG$2013,0,IF(G$2034=1,0,D9&"-"&YEAR(E9))) -> 1-2024 | C9: =IF(G$2034=1,0,B9&"-"&AE9) -> 1-2024-1 | D9: 1 | E9: 2024-01-01 | G9: 000 | H9: 00000000000 | J9: ---- Inserisci | K9: =IF(G$2034=1,0,IF(OR(J9="",ISERROR($O$2034)),"",VLOOKUP(J9,$L$2019:$N$2027,2,FALSE))) -> . | L9: 00000000000000000 | M9: 0000 | N9: 2020 | O9: 1 | Q9: AB 000 | S9: B1 | T9: =IF(G$2034=1,"",IF(S9="","",VLOOKUP(S9,Tabelle!$I$5:$M$7,5,FALSE))) -> 00001 | U9: =IF(G$2034=1,"",IF(S9="","",VLOOKUP(S9,Tabelle!$I$5:$N$7,6,FALSE))) -> 10000 | V9: compila | W9: 0123456789 | X9: X | Z9: 01234 | AA9: 56789 | AC9: Testo Libero | AE9: 1 | AG9: =IF(E9>0,IF(OR(MONTH(E9)<$G$2026,MONTH(E9)>$G$2027),AG$2013,0),0) -> 0
A10: 2 | B10: =IF(AG10=$AG$2013,0,IF(G$2034=1,0,D10&"-"&YEAR(E10))) -> 2-2024 | C10: 2-2024-1 | D10: 2 | E10: 2024-01-01 | G10: 001 | H10: 00000000001 | J10: ---- Inserisci | K10: . | L10: 00000000000000001 | M10: 0001 | N10: 2020 | O10: 100 | Q10: CD 000 | S10: B2 | T10: =IF(G$2034=1,"",IF(S10="","",VLOOKUP(S10,Tabelle!$I$5:$M$7,5,FALSE))) -> 00002 | U10: =IF(G$2034=1,"",IF(S10="","",VLOOKUP(S10,Tabelle!$I$5:$N$7,6,FALSE))) -> 20000 | V10: compila | AC10: Testo Libero riga 1 | AE10: =IF(D10="",0,IF(D10=D9,COUNTIF(D$9:D9,D10)+1,1)) -> 1 | AF10: =IF(G$2034=1,0,IF(AE10=28,1,0)) -> 0 | AG10: =IF(E10>0,IF(OR(MONTH(E10)<$G$2026,MONTH(E10)>$G$2027),AG$2013,0),0) -> 0
A11: 3 | B11: 2-2024 | C11: 2-2024-2 | D11: 2 | E11: 2024-01-01 | J11: A.G.C.M. | K11: G | L11: ABCDEGH100000000 | M11: 0002 | N11: 2020 | O11: 200 | T11: =IF(G$2034=1,"",IF(S11="","",VLOOKUP(S11,Tabelle!$I$5:$M$7,5,FALSE))) ->  | U11: =IF(G$2034=1,"",IF(S11="","",VLOOKUP(S11,Tabelle!$I$5:$N$7,6,FALSE))) ->  | AC11: Testo Libero riga 1 | AE11: =IF(D11="",0,IF(D11=D10,COUNTIF(D$9:D10,D11)+1,1)) -> 2 | AF11: 0 | AG11: 0
A12: 4 | B12: 2-2024 | C12: 2-2024-3 | D12: 2 | E12: 2024-01-01 | J12: Identificativo Registro | K12: F | L12: 100000000ABCDEGH | M12: 0003 | N12: 2020 | O12: 300 | T12: =IF(G$2034=1,"",IF(S12="","",VLOOKUP(S12,Tabelle!$I$5:$M$7,5,FALSE))) ->  | U12: =IF(G$2034=1,"",IF(S12="","",VLOOKUP(S12,Tabelle!$I$5:$N$7,6,FALSE))) ->  | AC12: Righe di esempio | AE12: =IF(D12="",0,IF(D12=D11,COUNTIF(D$9:D11,D12)+1,1)) -> 3 | AF12: 0 | AG12: 0
A13: 5 | B13: -1900 | C13: -1900-0 | T13: =IF(G$2034=1,"",IF(S13="","",VLOOKUP(S13,Tabelle!$I$5:$M$7,5,FALSE))) ->  | U13: =IF(G$2034=1,"",IF(S13="","",VLOOKUP(S13,Tabelle!$I$5:$N$7,6,FALSE))) ->  | AE13: =IF(D13="",0,IF(D13=D12,COUNTIF(D$9:D12,D13)+1,1)) -> 0 | AF13: 0 | AG13: 0
A14: 6 | B14: -1900 | C14: -1900-0 | T14: =IF(G$2034=1,"",IF(S14="","",VLOOKUP(S14,Tabelle!$I$5:$M$7,5,FALSE))) ->  | U14: =IF(G$2034=1,"",IF(S14="","",VLOOKUP(S14,Tabelle!$I$5:$N$7,6,FALSE))) ->  | AE14: =IF(D14="",0,IF(D14=D13,COUNTIF(D$9:D13,D14)+1,1)) -> 0 | AF14: 0 | AG14: 0
A15: 7 | B15: -1900 | C15: -1900-0 | T15: =IF(G$2034=1,"",IF(S15="","",VLOOKUP(S15,Tabelle!$I$5:$M$7,5,FALSE))) ->  | U15: =IF(G$2034=1,"",IF(S15="","",VLOOKUP(S15,Tabelle!$I$5:$N$7,6,FALSE))) ->  | AE15: =IF(D15="",0,IF(D15=D14,COUNTIF(D$9:D14,D15)+1,1)) -> 0 | AF15: 0 | AG15: 0
A16: 8 | B16: -1900 | C16: -1900-0 | T16: =IF(G$2034=1,"",IF(S16="","",VLOOKUP(S16,Tabelle!$I$5:$M$7,5,FALSE))) ->  | U16: =IF(G$2034=1,"",IF(S16="","",VLOOKUP(S16,Tabelle!$I$5:$N$7,6,FALSE))) ->  | AE16: =IF(D16="",0,IF(D16=D15,COUNTIF(D$9:D15,D16)+1,1)) -> 0 | AF16: 0 | AG16: 0
A17: 9 | B17: -1900 | C17: -1900-0 | T17: =IF(G$2034=1,"",IF(S17="","",VLOOKUP(S17,Tabelle!$I$5:$M$7,5,FALSE))) ->  | U17: =IF(G$2034=1,"",IF(S17="","",VLOOKUP(S17,Tabelle!$I$5:$N$7,6,FALSE))) ->  | AE17: =IF(D17="",0,IF(D17=D16,COUNTIF(D$9:D16,D17)+1,1)) -> 0 | AF17: 0 | AG17: 0
A18: 10 | B18: -1900 | C18: -1900-0 | T18: =IF(G$2034=1,"",IF(S18="","",VLOOKUP(S18,Tabelle!$I$5:$M$7,5,FALSE))) ->  | U18: =IF(G$2034=1,"",IF(S18="","",VLOOKUP(S18,Tabelle!$I$5:$N$7,6,FALSE))) ->  | AE18: =IF(D18="",0,IF(D18=D17,COUNTIF(D$9:D17,D18)+1,1)) -> 0 | AF18: 0 | AG18: 0
A19: 11 | B19: -1900 | C19: -1900-0 | T19: =IF(G$2034=1,"",IF(S19="","",VLOOKUP(S19,Tabelle!$I$5:$M$7,5,FALSE))) ->  | U19: =IF(G$2034=1,"",IF(S19="","",VLOOKUP(S19,Tabelle!$I$5:$N$7,6,FALSE))) ->  | AE19: =IF(D19="",0,IF(D19=D18,COUNTIF(D$9:D18,D19)+1,1)) -> 0 | AF19: 0 | AG19: 0
A20: 12 | B20: -1900 | C20: -1900-0 | T20: =IF(G$2034=1,"",IF(S20="","",VLOOKUP(S20,Tabelle!$I$5:$M$7,5,FALSE))) ->  | U20: =IF(G$2034=1,"",IF(S20="","",VLOOKUP(S20,Tabelle!$I$5:$N$7,6,FALSE))) ->  | AE20: =IF(D20="",0,IF(D20=D19,COUNTIF(D$9:D19,D20)+1,1)) -> 0 | AF20: 0 | AG20: 0
A21: 13 | B21: -1900 | C21: -1900-0 | T21: =IF(G$2034=1,"",IF(S21="","",VLOOKUP(S21,Tabelle!$I$5:$M$7,5,FALSE))) ->  | U21: =IF(G$2034=1,"",IF(S21="","",VLOOKUP(S21,Tabelle!$I$5:$N$7,6,FALSE))) ->  | AE21: =IF(D21="",0,IF(D21=D20,COUNTIF(D$9:D20,D21)+1,1)) -> 0 | AF21: 0 | AG21: 0
A22: 14 | B22: -1900 | C22: -1900-0 | T22: =IF(G$2034=1,"",IF(S22="","",VLOOKUP(S22,Tabelle!$I$5:$M$7,5,FALSE))) ->  | U22: =IF(G$2034=1,"",IF(S22="","",VLOOKUP(S22,Tabelle!$I$5:$N$7,6,FALSE))) ->  | AE22: =IF(D22="",0,IF(D22=D21,COUNTIF(D$9:D21,D22)+1,1)) -> 0 | AF22: 0 | AG22: 0
A23: 15 | B23: -1900 | C23: -1900-0 | T23: =IF(G$2034=1,"",IF(S23="","",VLOOKUP(S23,Tabelle!$I$5:$M$7,5,FALSE))) ->  | U23: =IF(G$2034=1,"",IF(S23="","",VLOOKUP(S23,Tabelle!$I$5:$N$7,6,FALSE))) ->  | AE23: =IF(D23="",0,IF(D23=D22,COUNTIF(D$9:D22,D23)+1,1)) -> 0 | AF23: 0 | AG23: 0
A24: 16 | B24: -1900 | C24: -1900-0 | T24: =IF(G$2034=1,"",IF(S24="","",VLOOKUP(S24,Tabelle!$I$5:$M$7,5,FALSE))) ->  | U24: =IF(G$2034=1,"",IF(S24="","",VLOOKUP(S24,Tabelle!$I$5:$N$7,6,FALSE))) ->  | AE24: =IF(D24="",0,IF(D24=D23,COUNTIF(D$9:D23,D24)+1,1)) -> 0 | AF24: 0 | AG24: 0
A25: 17 | B25: -1900 | C25: -1900-0 | T25: =IF(G$2034=1,"",IF(S25="","",VLOOKUP(S25,Tabelle!$I$5:$M$7,5,FALSE))) ->  | U25: =IF(G$2034=1,"",IF(S25="","",VLOOKUP(S25,Tabelle!$I$5:$N$7,6,FALSE))) ->  | AE25: =IF(D25="",0,IF(D25=D24,COUNTIF(D$9:D24,D25)+1,1)) -> 0 | AF25: 0 | AG25: 0
A26: 18 | B26: -1900 | C26: -1900-0 | T26: =IF(G$2034=1,"",IF(S26="","",VLOOKUP(S26,Tabelle!$I$5:$M$7,5,FALSE))) ->  | U26: =IF(G$2034=1,"",IF(S26="","",VLOOKUP(S26,Tabelle!$I$5:$N$7,6,FALSE))) ->  | AE26: =IF(D26="",0,IF(D26=D25,COUNTIF(D$9:D25,D26)+1,1)) -> 0 | AF26: 0 | AG26: 0
A27: 19 | B27: -1900 | C27: -1900-0 | T27: =IF(G$2034=1,"",IF(S27="","",VLOOKUP(S27,Tabelle!$I$5:$M$7,5,FALSE))) ->  | U27: =IF(G$2034=1,"",IF(S27="","",VLOOKUP(S27,Tabelle!$I$5:$N$7,6,FALSE))) ->  | AE27: =IF(D27="",0,IF(D27=D26,COUNTIF(D$9:D26,D27)+1,1)) -> 0 | AF27: 0 | AG27: 0
A28: 20 | B28: -1900 | C28: -1900-0 | T28: =IF(G$2034=1,"",IF(S28="","",VLOOKUP(S28,Tabelle!$I$5:$M$7,5,FALSE))) ->  | U28: =IF(G$2034=1,"",IF(S28="","",VLOOKUP(S28,Tabelle!$I$5:$N$7,6,FALSE))) ->  | AE28: =IF(D28="",0,IF(D28=D27,COUNTIF(D$9:D27,D28)+1,1)) -> 0 | AF28: 0 | AG28: 0
A29: 21 | B29: -1900 | C29: -1900-0 | T29: =IF(G$2034=1,"",IF(S29="","",VLOOKUP(S29,Tabelle!$I$5:$M$7,5,FALSE))) ->  | U29: =IF(G$2034=1,"",IF(S29="","",VLOOKUP(S29,Tabelle!$I$5:$N$7,6,FALSE))) ->  | AE29: =IF(D29="",0,IF(D29=D28,COUNTIF(D$9:D28,D29)+1,1)) -> 0 | AF29: 0 | AG29: 0
A30: 22 | B30: -1900 | C30: -1900-0 | T30: =IF(G$2034=1,"",IF(S30="","",VLOOKUP(S30,Tabelle!$I$5:$M$7,5,FALSE))) ->  | U30: =IF(G$2034=1,"",IF(S30="","",VLOOKUP(S30,Tabelle!$I$5:$N$7,6,FALSE))) ->  | AE30: =IF(D30="",0,IF(D30=D29,COUNTIF(D$9:D29,D30)+1,1)) -> 0 | AF30: 0 | AG30: 0
A31: 23 | B31: -1900 | C31: -1900-0 | T31: =IF(G$2034=1,"",IF(S31="","",VLOOKUP(S31,Tabelle!$I$5:$M$7,5,FALSE))) ->  | U31: =IF(G$2034=1,"",IF(S31="","",VLOOKUP(S31,Tabelle!$I$5:$N$7,6,FALSE))) ->  | AE31: =IF(D31="",0,IF(D31=D30,COUNTIF(D$9:D30,D31)+1,1)) -> 0 | AF31: 0 | AG31: 0
A32: 24 | B32: -1900 | C32: -1900-0 | T32: =IF(G$2034=1,"",IF(S32="","",VLOOKUP(S32,Tabelle!$I$5:$M$7,5,FALSE))) ->  | U32: =IF(G$2034=1,"",IF(S32="","",VLOOKUP(S32,Tabelle!$I$5:$N$7,6,FALSE))) ->  | AE32: =IF(D32="",0,IF(D32=D31,COUNTIF(D$9:D31,D32)+1,1)) -> 0 | AF32: 0 | AG32: 0
A33: 25 | B33: -1900 | C33: -1900-0 | T33: =IF(G$2034=1,"",IF(S33="","",VLOOKUP(S33,Tabelle!$I$5:$M$7,5,FALSE))) ->  | U33: =IF(G$2034=1,"",IF(S33="","",VLOOKUP(S33,Tabelle!$I$5:$N$7,6,FALSE))) ->  | AE33: =IF(D33="",0,IF(D33=D32,COUNTIF(D$9:D32,D33)+1,1)) -> 0 | AF33: 0 | AG33: 0
A34: 26 | B34: -1900 | C34: -1900-0 | T34: =IF(G$2034=1,"",IF(S34="","",VLOOKUP(S34,Tabelle!$I$5:$M$7,5,FALSE))) ->  | U34: =IF(G$2034=1,"",IF(S34="","",VLOOKUP(S34,Tabelle!$I$5:$N$7,6,FALSE))) ->  | AE34: =IF(D34="",0,IF(D34=D33,COUNTIF(D$9:D33,D34)+1,1)) -> 0 | AF34: 0 | AG34: 0
A35: 27 | B35: -1900 | C35: -1900-0 | T35: =IF(G$2034=1,"",IF(S35="","",VLOOKUP(S35,Tabelle!$I$5:$M$7,5,FALSE))) ->  | U35: =IF(G$2034=1,"",IF(S35="","",VLOOKUP(S35,Tabelle!$I$5:$N$7,6,FALSE))) ->  | AE35: =IF(D35="",0,IF(D35=D34,COUNTIF(D$9:D34,D35)+1,1)) -> 0 | AF35: 0 | AG35: 0
A36: 28 | B36: -1900 | C36: -1900-0 | T36: =IF(G$2034=1,"",IF(S36="","",VLOOKUP(S36,Tabelle!$I$5:$M$7,5,FALSE))) ->  | U36: =IF(G$2034=1,"",IF(S36="","",VLOOKUP(S36,Tabelle!$I$5:$N$7,6,FALSE))) ->  | AE36: =IF(D36="",0,IF(D36=D35,COUNTIF(D$9:D35,D36)+1,1)) -> 0 | AF36: 0 | AG36: 0
A37: 29 | B37: -1900 | C37: -1900-0 | T37: =IF(G$2034=1,"",IF(S37="","",VLOOKUP(S37,Tabelle!$I$5:$M$7,5,FALSE))) ->  | U37: =IF(G$2034=1,"",IF(S37="","",VLOOKUP(S37,Tabelle!$I$5:$N$7,6,FALSE))) ->  | AE37: =IF(D37="",0,IF(D37=D36,COUNTIF(D$9:D36,D37)+1,1)) -> 0 | AF37: 0 | AG37: 0
A38: 30 | B38: -1900 | C38: -1900-0 | T38: =IF(G$2034=1,"",IF(S38="","",VLOOKUP(S38,Tabelle!$I$5:$M$7,5,FALSE))) ->  | U38: =IF(G$2034=1,"",IF(S38="","",VLOOKUP(S38,Tabelle!$I$5:$N$7,6,FALSE))) ->  | AE38: =IF(D38="",0,IF(D38=D37,COUNTIF(D$9:D37,D38)+1,1)) -> 0 | AF38: 0 | AG38: 0
A39: 31 | B39: -1900 | C39: -1900-0 | T39: =IF(G$2034=1,"",IF(S39="","",VLOOKUP(S39,Tabelle!$I$5:$M$7,5,FALSE))) ->  | U39: =IF(G$2034=1,"",IF(S39="","",VLOOKUP(S39,Tabelle!$I$5:$N$7,6,FALSE))) ->  | AE39: =IF(D39="",0,IF(D39=D38,COUNTIF(D$9:D38,D39)+1,1)) -> 0 | AF39: 0 | AG39: 0
A40: 32 | B40: -1900 | C40: -1900-0 | T40: =IF(G$2034=1,"",IF(S40="","",VLOOKUP(S40,Tabelle!$I$5:$M$7,5,FALSE))) ->  | U40: =IF(G$2034=1,"",IF(S40="","",VLOOKUP(S40,Tabelle!$I$5:$N$7,6,FALSE))) ->  | AE40: =IF(D40="",0,IF(D40=D39,COUNTIF(D$9:D39,D40)+1,1)) -> 0 | AF40: 0 | AG40: 0
A41: 33 | B41: -1900 | C41: -1900-0 | T41: =IF(G$2034=1,"",IF(S41="","",VLOOKUP(S41,Tabelle!$I$5:$M$7,5,FALSE))) ->  | U41: =IF(G$2034=1,"",IF(S41="","",VLOOKUP(S41,Tabelle!$I$5:$N$7,6,FALSE))) ->  | AE41: =IF(D41="",0,IF(D41=D40,COUNTIF(D$9:D40,D41)+1,1)) -> 0 | AF41: 0 | AG41: 0
A42: 34 | B42: -1900 | C42: -1900-0 | T42: =IF(G$2034=1,"",IF(S42="","",VLOOKUP(S42,Tabelle!$I$5:$M$7,5,FALSE))) ->  | U42: =IF(G$2034=1,"",IF(S42="","",VLOOKUP(S42,Tabelle!$I$5:$N$7,6,FALSE))) ->  | AE42: =IF(D42="",0,IF(D42=D41,COUNTIF(D$9:D41,D42)+1,1)) -> 0 | AF42: 0 | AG42: 0
A43: 35 | B43: -1900 | C43: -1900-0 | T43: =IF(G$2034=1,"",IF(S43="","",VLOOKUP(S43,Tabelle!$I$5:$M$7,5,FALSE))) ->  | U43: =IF(G$2034=1,"",IF(S43="","",VLOOKUP(S43,Tabelle!$I$5:$N$7,6,FALSE))) ->  | AE43: =IF(D43="",0,IF(D43=D42,COUNTIF(D$9:D42,D43)+1,1)) -> 0 | AF43: 0 | AG43: 0
A44: 36 | B44: -1900 | C44: -1900-0 | T44: =IF(G$2034=1,"",IF(S44="","",VLOOKUP(S44,Tabelle!$I$5:$M$7,5,FALSE))) ->  | U44: =IF(G$2034=1,"",IF(S44="","",VLOOKUP(S44,Tabelle!$I$5:$N$7,6,FALSE))) ->  | AE44: =IF(D44="",0,IF(D44=D43,COUNTIF(D$9:D43,D44)+1,1)) -> 0 | AF44: 0 | AG44: 0
A45: 37 | B45: -1900 | C45: -1900-0 | T45: =IF(G$2034=1,"",IF(S45="","",VLOOKUP(S45,Tabelle!$I$5:$M$7,5,FALSE))) ->  | U45: =IF(G$2034=1,"",IF(S45="","",VLOOKUP(S45,Tabelle!$I$5:$N$7,6,FALSE))) ->  | AE45: =IF(D45="",0,IF(D45=D44,COUNTIF(D$9:D44,D45)+1,1)) -> 0 | AF45: 0 | AG45: 0
A46: 38 | B46: -1900 | C46: -1900-0 | T46: =IF(G$2034=1,"",IF(S46="","",VLOOKUP(S46,Tabelle!$I$5:$M$7,5,FALSE))) ->  | U46: =IF(G$2034=1,"",IF(S46="","",VLOOKUP(S46,Tabelle!$I$5:$N$7,6,FALSE))) ->  | AE46: =IF(D46="",0,IF(D46=D45,COUNTIF(D$9:D45,D46)+1,1)) -> 0 | AF46: 0 | AG46: 0
A47: 39 | B47: -1900 | C47: -1900-0 | T47: =IF(G$2034=1,"",IF(S47="","",VLOOKUP(S47,Tabelle!$I$5:$M$7,5,FALSE))) ->  | U47: =IF(G$2034=1,"",IF(S47="","",VLOOKUP(S47,Tabelle!$I$5:$N$7,6,FALSE))) ->  | AE47: =IF(D47="",0,IF(D47=D46,COUNTIF(D$9:D46,D47)+1,1)) -> 0 | AF47: 0 | AG47: 0
A48: 40 | B48: -1900 | C48: -1900-0 | T48: =IF(G$2034=1,"",IF(S48="","",VLOOKUP(S48,Tabelle!$I$5:$M$7,5,FALSE))) ->  | U48: =IF(G$2034=1,"",IF(S48="","",VLOOKUP(S48,Tabelle!$I$5:$N$7,6,FALSE))) ->  | AE48: =IF(D48="",0,IF(D48=D47,COUNTIF(D$9:D47,D48)+1,1)) -> 0 | AF48: 0 | AG48: 0
A49: 41 | B49: -1900 | C49: -1900-0 | T49: =IF(G$2034=1,"",IF(S49="","",VLOOKUP(S49,Tabelle!$I$5:$M$7,5,FALSE))) ->  | U49: =IF(G$2034=1,"",IF(S49="","",VLOOKUP(S49,Tabelle!$I$5:$N$7,6,FALSE))) ->  | AE49: =IF(D49="",0,IF(D49=D48,COUNTIF(D$9:D48,D49)+1,1)) -> 0 | AF49: 0 | AG49: 0
A50: 42 | B50: -1900 | C50: -1900-0 | T50: =IF(G$2034=1,"",IF(S50="","",VLOOKUP(S50,Tabelle!$I$5:$M$7,5,FALSE))) ->  | U50: =IF(G$2034=1,"",IF(S50="","",VLOOKUP(S50,Tabelle!$I$5:$N$7,6,FALSE))) ->  | AE50: =IF(D50="",0,IF(D50=D49,COUNTIF(D$9:D49,D50)+1,1)) -> 0 | AF50: 0 | AG50: 0
A51: 43 | B51: -1900 | C51: -1900-0 | T51: =IF(G$2034=1,"",IF(S51="","",VLOOKUP(S51,Tabelle!$I$5:$M$7,5,FALSE))) ->  | U51: =IF(G$2034=1,"",IF(S51="","",VLOOKUP(S51,Tabelle!$I$5:$N$7,6,FALSE))) ->  | AE51: =IF(D51="",0,IF(D51=D50,COUNTIF(D$9:D50,D51)+1,1)) -> 0 | AF51: 0 | AG51: 0
A52: 44 | B52: -1900 | C52: -1900-0 | T52: =IF(G$2034=1,"",IF(S52="","",VLOOKUP(S52,Tabelle!$I$5:$M$7,5,FALSE))) ->  | U52: =IF(G$2034=1,"",IF(S52="","",VLOOKUP(S52,Tabelle!$I$5:$N$7,6,FALSE))) ->  | AE52: =IF(D52="",0,IF(D52=D51,COUNTIF(D$9:D51,D52)+1,1)) -> 0 | AF52: 0 | AG52: 0
A53: 45 | B53: -1900 | C53: -1900-0 | T53: =IF(G$2034=1,"",IF(S53="","",VLOOKUP(S53,Tabelle!$I$5:$M$7,5,FALSE))) ->  | U53: =IF(G$2034=1,"",IF(S53="","",VLOOKUP(S53,Tabelle!$I$5:$N$7,6,FALSE))) ->  | AE53: =IF(D53="",0,IF(D53=D52,COUNTIF(D$9:D52,D53)+1,1)) -> 0 | AF53: 0 | AG53: 0
A54: 46 | B54: -1900 | C54: -1900-0 | T54: =IF(G$2034=1,"",IF(S54="","",VLOOKUP(S54,Tabelle!$I$5:$M$7,5,FALSE))) ->  | U54: =IF(G$2034=1,"",IF(S54="","",VLOOKUP(S54,Tabelle!$I$5:$N$7,6,FALSE))) ->  | AE54: =IF(D54="",0,IF(D54=D53,COUNTIF(D$9:D53,D54)+1,1)) -> 0 | AF54: 0 | AG54: 0
A55: 47 | B55: -1900 | C55: -1900-0 | T55: =IF(G$2034=1,"",IF(S55="","",VLOOKUP(S55,Tabelle!$I$5:$M$7,5,FALSE))) ->  | U55: =IF(G$2034=1,"",IF(S55="","",VLOOKUP(S55,Tabelle!$I$5:$N$7,6,FALSE))) ->  | AE55: =IF(D55="",0,IF(D55=D54,COUNTIF(D$9:D54,D55)+1,1)) -> 0 | AF55: 0 | AG55: 0
A56: 48 | B56: -1900 | C56: -1900-0 | T56: =IF(G$2034=1,"",IF(S56="","",VLOOKUP(S56,Tabelle!$I$5:$M$7,5,FALSE))) ->  | U56: =IF(G$2034=1,"",IF(S56="","",VLOOKUP(S56,Tabelle!$I$5:$N$7,6,FALSE))) ->  | AE56: =IF(D56="",0,IF(D56=D55,COUNTIF(D$9:D55,D56)+1,1)) -> 0 | AF56: 0 | AG56: 0
A57: 49 | B57: -1900 | C57: -1900-0 | T57: =IF(G$2034=1,"",IF(S57="","",VLOOKUP(S57,Tabelle!$I$5:$M$7,5,FALSE))) ->  | U57: =IF(G$2034=1,"",IF(S57="","",VLOOKUP(S57,Tabelle!$I$5:$N$7,6,FALSE))) ->  | AE57: =IF(D57="",0,IF(D57=D56,COUNTIF(D$9:D56,D57)+1,1)) -> 0 | AF57: 0 | AG57: 0
A58: 50 | B58: -1900 | C58: -1900-0 | T58: =IF(G$2034=1,"",IF(S58="","",VLOOKUP(S58,Tabelle!$I$5:$M$7,5,FALSE))) ->  | U58: =IF(G$2034=1,"",IF(S58="","",VLOOKUP(S58,Tabelle!$I$5:$N$7,6,FALSE))) ->  | AE58: =IF(D58="",0,IF(D58=D57,COUNTIF(D$9:D57,D58)+1,1)) -> 0 | AF58: 0 | AG58: 0
A59: 51 | B59: -1900 | C59: -1900-0 | T59: =IF(G$2034=1,"",IF(S59="","",VLOOKUP(S59,Tabelle!$I$5:$M$7,5,FALSE))) ->  | U59: =IF(G$2034=1,"",IF(S59="","",VLOOKUP(S59,Tabelle!$I$5:$N$7,6,FALSE))) ->  | AE59: =IF(D59="",0,IF(D59=D58,COUNTIF(D$9:D58,D59)+1,1)) -> 0 | AF59: 0 | AG59: 0
A60: 52 | B60: -1900 | C60: -1900-0 | T60: =IF(G$2034=1,"",IF(S60="","",VLOOKUP(S60,Tabelle!$I$5:$M$7,5,FALSE))) ->  | U60: =IF(G$2034=1,"",IF(S60="","",VLOOKUP(S60,Tabelle!$I$5:$N$7,6,FALSE))) ->  | AE60: =IF(D60="",0,IF(D60=D59,COUNTIF(D$9:D59,D60)+1,1)) -> 0 | AF60: 0 | AG60: 0
A61: 53 | B61: -1900 | C61: -1900-0 | T61: =IF(G$2034=1,"",IF(S61="","",VLOOKUP(S61,Tabelle!$I$5:$M$7,5,FALSE))) ->  | U61: =IF(G$2034=1,"",IF(S61="","",VLOOKUP(S61,Tabelle!$I$5:$N$7,6,FALSE))) ->  | AE61: =IF(D61="",0,IF(D61=D60,COUNTIF(D$9:D60,D61)+1,1)) -> 0 | AF61: 0 | AG61: 0
A62: 54 | B62: -1900 | C62: -1900-0 | T62: =IF(G$2034=1,"",IF(S62="","",VLOOKUP(S62,Tabelle!$I$5:$M$7,5,FALSE))) ->  | U62: =IF(G$2034=1,"",IF(S62="","",VLOOKUP(S62,Tabelle!$I$5:$N$7,6,FALSE))) ->  | AE62: =IF(D62="",0,IF(D62=D61,COUNTIF(D$9:D61,D62)+1,1)) -> 0 | AF62: 0 | AG62: 0
A63: 55 | B63: -1900 | C63: -1900-0 | T63: =IF(G$2034=1,"",IF(S63="","",VLOOKUP(S63,Tabelle!$I$5:$M$7,5,FALSE))) ->  | U63: =IF(G$2034=1,"",IF(S63="","",VLOOKUP(S63,Tabelle!$I$5:$N$7,6,FALSE))) ->  | AE63: =IF(D63="",0,IF(D63=D62,COUNTIF(D$9:D62,D63)+1,1)) -> 0 | AF63: 0 | AG63: 0
A64: 56 | B64: -1900 | C64: -1900-0 | T64: =IF(G$2034=1,"",IF(S64="","",VLOOKUP(S64,Tabelle!$I$5:$M$7,5,FALSE))) ->  | U64: =IF(G$2034=1,"",IF(S64="","",VLOOKUP(S64,Tabelle!$I$5:$N$7,6,FALSE))) ->  | AE64: =IF(D64="",0,IF(D64=D63,COUNTIF(D$9:D63,D64)+1,1)) -> 0 | AF64: 0 | AG64: 0
A65: 57 | B65: -1900 | C65: -1900-0 | T65: =IF(G$2034=1,"",IF(S65="","",VLOOKUP(S65,Tabelle!$I$5:$M$7,5,FALSE))) ->  | U65: =IF(G$2034=1,"",IF(S65="","",VLOOKUP(S65,Tabelle!$I$5:$N$7,6,FALSE))) ->  | AE65: =IF(D65="",0,IF(D65=D64,COUNTIF(D$9:D64,D65)+1,1)) -> 0 | AF65: 0 | AG65: 0
A66: 58 | B66: -1900 | C66: -1900-0 | T66: =IF(G$2034=1,"",IF(S66="","",VLOOKUP(S66,Tabelle!$I$5:$M$7,5,FALSE))) ->  | U66: =IF(G$2034=1,"",IF(S66="","",VLOOKUP(S66,Tabelle!$I$5:$N$7,6,FALSE))) ->  | AE66: =IF(D66="",0,IF(D66=D65,COUNTIF(D$9:D65,D66)+1,1)) -> 0 | AF66: 0 | AG66: 0
A67: 59 | B67: -1900 | C67: -1900-0 | T67: =IF(G$2034=1,"",IF(S67="","",VLOOKUP(S67,Tabelle!$I$5:$M$7,5,FALSE))) ->  | U67: =IF(G$2034=1,"",IF(S67="","",VLOOKUP(S67,Tabelle!$I$5:$N$7,6,FALSE))) ->  | AE67: =IF(D67="",0,IF(D67=D66,COUNTIF(D$9:D66,D67)+1,1)) -> 0 | AF67: 0 | AG67: 0
A68: 60 | B68: -1900 | C68: -1900-0 | T68: =IF(G$2034=1,"",IF(S68="","",VLOOKUP(S68,Tabelle!$I$5:$M$7,5,FALSE))) ->  | U68: =IF(G$2034=1,"",IF(S68="","",VLOOKUP(S68,Tabelle!$I$5:$N$7,6,FALSE))) ->  | AE68: =IF(D68="",0,IF(D68=D67,COUNTIF(D$9:D67,D68)+1,1)) -> 0 | AF68: 0 | AG68: 0
A69: 61 | B69: -1900 | C69: -1900-0 | T69: =IF(G$2034=1,"",IF(S69="","",VLOOKUP(S69,Tabelle!$I$5:$M$7,5,FALSE))) ->  | U69: =IF(G$2034=1,"",IF(S69="","",VLOOKUP(S69,Tabelle!$I$5:$N$7,6,FALSE))) ->  | AE69: =IF(D69="",0,IF(D69=D68,COUNTIF(D$9:D68,D69)+1,1)) -> 0 | AF69: 0 | AG69: 0
A70: 62 | B70: -1900 | C70: -1900-0 | T70: =IF(G$2034=1,"",IF(S70="","",VLOOKUP(S70,Tabelle!$I$5:$M$7,5,FALSE))) ->  | U70: =IF(G$2034=1,"",IF(S70="","",VLOOKUP(S70,Tabelle!$I$5:$N$7,6,FALSE))) ->  | AE70: =IF(D70="",0,IF(D70=D69,COUNTIF(D$9:D69,D70)+1,1)) -> 0 | AF70: 0 | AG70: 0
A71: 63 | B71: -1900 | C71: -1900-0 | T71: =IF(G$2034=1,"",IF(S71="","",VLOOKUP(S71,Tabelle!$I$5:$M$7,5,FALSE))) ->  | U71: =IF(G$2034=1,"",IF(S71="","",VLOOKUP(S71,Tabelle!$I$5:$N$7,6,FALSE))) ->  | AE71: =IF(D71="",0,IF(D71=D70,COUNTIF(D$9:D70,D71)+1,1)) -> 0 | AF71: 0 | AG71: 0
A72: 64 | B72: -1900 | C72: -1900-0 | T72: =IF(G$2034=1,"",IF(S72="","",VLOOKUP(S72,Tabelle!$I$5:$M$7,5,FALSE))) ->  | U72: =IF(G$2034=1,"",IF(S72="","",VLOOKUP(S72,Tabelle!$I$5:$N$7,6,FALSE))) ->  | AE72: =IF(D72="",0,IF(D72=D71,COUNTIF(D$9:D71,D72)+1,1)) -> 0 | AF72: 0 | AG72: 0
A73: 65 | B73: -1900 | C73: =IF(G$2034=1,0,B73&"-"&AE73) -> -1900-0 | K73: =IF(G$2034=1,0,IF(OR(J73="",ISERROR($O$2034)),"",VLOOKUP(J73,$L$2019:$N$2027,2,FALSE))) ->  | T73: =IF(G$2034=1,"",IF(S73="","",VLOOKUP(S73,Tabelle!$I$5:$M$7,5,FALSE))) ->  | U73: =IF(G$2034=1,"",IF(S73="","",VLOOKUP(S73,Tabelle!$I$5:$N$7,6,FALSE))) ->  | AE73: =IF(D73="",0,IF(D73=D72,COUNTIF(D$9:D72,D73)+1,1)) -> 0 | AF73: 0 | AG73: 0
A74: 66 | B74: =IF(AG74=$AG$2013,0,IF(G$2034=1,0,D74&"-"&YEAR(E74))) -> -1900 | C74: -1900-0 | T74: =IF(G$2034=1,"",IF(S74="","",VLOOKUP(S74,Tabelle!$I$5:$M$7,5,FALSE))) ->  | U74: =IF(G$2034=1,"",IF(S74="","",VLOOKUP(S74,Tabelle!$I$5:$N$7,6,FALSE))) ->  | AE74: =IF(D74="",0,IF(D74=D73,COUNTIF(D$9:D73,D74)+1,1)) -> 0 | AF74: =IF(G$2034=1,0,IF(AE74=28,1,0)) -> 0 | AG74: =IF(E74>0,IF(OR(MONTH(E74)<$G$2026,MONTH(E74)>$G$2027),AG$2013,0),0) -> 0
A75: 67 | B75: -1900 | C75: -1900-0 | T75: =IF(G$2034=1,"",IF(S75="","",VLOOKUP(S75,Tabelle!$I$5:$M$7,5,FALSE))) ->  | U75: =IF(G$2034=1,"",IF(S75="","",VLOOKUP(S75,Tabelle!$I$5:$N$7,6,FALSE))) ->  | AE75: =IF(D75="",0,IF(D75=D74,COUNTIF(D$9:D74,D75)+1,1)) -> 0 | AF75: 0 | AG75: 0
A76: 68 | B76: -1900 | C76: -1900-0 | T76: =IF(G$2034=1,"",IF(S76="","",VLOOKUP(S76,Tabelle!$I$5:$M$7,5,FALSE))) ->  | U76: =IF(G$2034=1,"",IF(S76="","",VLOOKUP(S76,Tabelle!$I$5:$N$7,6,FALSE))) ->  | AE76: =IF(D76="",0,IF(D76=D75,COUNTIF(D$9:D75,D76)+1,1)) -> 0 | AF76: 0 | AG76: 0
A77: 69 | B77: -1900 | C77: -1900-0 | T77: =IF(G$2034=1,"",IF(S77="","",VLOOKUP(S77,Tabelle!$I$5:$M$7,5,FALSE))) ->  | U77: =IF(G$2034=1,"",IF(S77="","",VLOOKUP(S77,Tabelle!$I$5:$N$7,6,FALSE))) ->  | AE77: =IF(D77="",0,IF(D77=D76,COUNTIF(D$9:D76,D77)+1,1)) -> 0 | AF77: 0 | AG77: 0
A78: 70 | B78: -1900 | C78: -1900-0 | T78: =IF(G$2034=1,"",IF(S78="","",VLOOKUP(S78,Tabelle!$I$5:$M$7,5,FALSE))) ->  | U78: =IF(G$2034=1,"",IF(S78="","",VLOOKUP(S78,Tabelle!$I$5:$N$7,6,FALSE))) ->  | AE78: =IF(D78="",0,IF(D78=D77,COUNTIF(D$9:D77,D78)+1,1)) -> 0 | AF78: 0 | AG78: 0
A79: 71 | B79: -1900 | C79: -1900-0 | T79: =IF(G$2034=1,"",IF(S79="","",VLOOKUP(S79,Tabelle!$I$5:$M$7,5,FALSE))) ->  | U79: =IF(G$2034=1,"",IF(S79="","",VLOOKUP(S79,Tabelle!$I$5:$N$7,6,FALSE))) ->  | AE79: =IF(D79="",0,IF(D79=D78,COUNTIF(D$9:D78,D79)+1,1)) -> 0 | AF79: 0 | AG79: 0
A80: 72 | B80: -1900 | C80: -1900-0 | T80: =IF(G$2034=1,"",IF(S80="","",VLOOKUP(S80,Tabelle!$I$5:$M$7,5,FALSE))) ->  | U80: =IF(G$2034=1,"",IF(S80="","",VLOOKUP(S80,Tabelle!$I$5:$N$7,6,FALSE))) ->  | AE80: =IF(D80="",0,IF(D80=D79,COUNTIF(D$9:D79,D80)+1,1)) -> 0 | AF80: 0 | AG80: 0
A81: 73 | B81: -1900 | C81: -1900-0 | T81: =IF(G$2034=1,"",IF(S81="","",VLOOKUP(S81,Tabelle!$I$5:$M$7,5,FALSE))) ->  | U81: =IF(G$2034=1,"",IF(S81="","",VLOOKUP(S81,Tabelle!$I$5:$N$7,6,FALSE))) ->  | AE81: =IF(D81="",0,IF(D81=D80,COUNTIF(D$9:D80,D81)+1,1)) -> 0 | AF81: 0 | AG81: 0
A82: 74 | B82: -1900 | C82: -1900-0 | T82: =IF(G$2034=1,"",IF(S82="","",VLOOKUP(S82,Tabelle!$I$5:$M$7,5,FALSE))) ->  | U82: =IF(G$2034=1,"",IF(S82="","",VLOOKUP(S82,Tabelle!$I$5:$N$7,6,FALSE))) ->  | AE82: =IF(D82="",0,IF(D82=D81,COUNTIF(D$9:D81,D82)+1,1)) -> 0 | AF82: 0 | AG82: 0
A83: 75 | B83: -1900 | C83: -1900-0 | T83: =IF(G$2034=1,"",IF(S83="","",VLOOKUP(S83,Tabelle!$I$5:$M$7,5,FALSE))) ->  | U83: =IF(G$2034=1,"",IF(S83="","",VLOOKUP(S83,Tabelle!$I$5:$N$7,6,FALSE))) ->  | AE83: =IF(D83="",0,IF(D83=D82,COUNTIF(D$9:D82,D83)+1,1)) -> 0 | AF83: 0 | AG83: 0
A84: 76 | B84: -1900 | C84: -1900-0 | T84: =IF(G$2034=1,"",IF(S84="","",VLOOKUP(S84,Tabelle!$I$5:$M$7,5,FALSE))) ->  | U84: =IF(G$2034=1,"",IF(S84="","",VLOOKUP(S84,Tabelle!$I$5:$N$7,6,FALSE))) ->  | AE84: =IF(D84="",0,IF(D84=D83,COUNTIF(D$9:D83,D84)+1,1)) -> 0 | AF84: 0 | AG84: 0
A85: 77 | B85: -1900 | C85: -1900-0 | T85: =IF(G$2034=1,"",IF(S85="","",VLOOKUP(S85,Tabelle!$I$5:$M$7,5,FALSE))) ->  | U85: =IF(G$2034=1,"",IF(S85="","",VLOOKUP(S85,Tabelle!$I$5:$N$7,6,FALSE))) ->  | AE85: =IF(D85="",0,IF(D85=D84,COUNTIF(D$9:D84,D85)+1,1)) -> 0 | AF85: 0 | AG85: 0
A86: 78 | B86: -1900 | C86: -1900-0 | T86: =IF(G$2034=1,"",IF(S86="","",VLOOKUP(S86,Tabelle!$I$5:$M$7,5,FALSE))) ->  | U86: =IF(G$2034=1,"",IF(S86="","",VLOOKUP(S86,Tabelle!$I$5:$N$7,6,FALSE))) ->  | AE86: =IF(D86="",0,IF(D86=D85,COUNTIF(D$9:D85,D86)+1,1)) -> 0 | AF86: 0 | AG86: 0
A87: 79 | B87: -1900 | C87: -1900-0 | T87: =IF(G$2034=1,"",IF(S87="","",VLOOKUP(S87,Tabelle!$I$5:$M$7,5,FALSE))) ->  | U87: =IF(G$2034=1,"",IF(S87="","",VLOOKUP(S87,Tabelle!$I$5:$N$7,6,FALSE))) ->  | AE87: =IF(D87="",0,IF(D87=D86,COUNTIF(D$9:D86,D87)+1,1)) -> 0 | AF87: 0 | AG87: 0
A88: 80 | B88: -1900 | C88: -1900-0 | T88: =IF(G$2034=1,"",IF(S88="","",VLOOKUP(S88,Tabelle!$I$5:$M$7,5,FALSE))) ->  | U88: =IF(G$2034=1,"",IF(S88="","",VLOOKUP(S88,Tabelle!$I$5:$N$7,6,FALSE))) ->  | AE88: =IF(D88="",0,IF(D88=D87,COUNTIF(D$9:D87,D88)+1,1)) -> 0 | AF88: 0 | AG88: 0
A89: 81 | B89: -1900 | C89: -1900-0 | T89: =IF(G$2034=1,"",IF(S89="","",VLOOKUP(S89,Tabelle!$I$5:$M$7,5,FALSE))) ->  | U89: =IF(G$2034=1,"",IF(S89="","",VLOOKUP(S89,Tabelle!$I$5:$N$7,6,FALSE))) ->  | AE89: =IF(D89="",0,IF(D89=D88,COUNTIF(D$9:D88,D89)+1,1)) -> 0 | AF89: 0 | AG89: 0
A90: 82 | B90: -1900 | C90: -1900-0 | T90: =IF(G$2034=1,"",IF(S90="","",VLOOKUP(S90,Tabelle!$I$5:$M$7,5,FALSE))) ->  | U90: =IF(G$2034=1,"",IF(S90="","",VLOOKUP(S90,Tabelle!$I$5:$N$7,6,FALSE))) ->  | AE90: =IF(D90="",0,IF(D90=D89,COUNTIF(D$9:D89,D90)+1,1)) -> 0 | AF90: 0 | AG90: 0
A91: 83 | B91: -1900 | C91: -1900-0 | T91: =IF(G$2034=1,"",IF(S91="","",VLOOKUP(S91,Tabelle!$I$5:$M$7,5,FALSE))) ->  | U91: =IF(G$2034=1,"",IF(S91="","",VLOOKUP(S91,Tabelle!$I$5:$N$7,6,FALSE))) ->  | AE91: =IF(D91="",0,IF(D91=D90,COUNTIF(D$9:D90,D91)+1,1)) -> 0 | AF91: 0 | AG91: 0
A92: 84 | B92: -1900 | C92: -1900-0 | T92: =IF(G$2034=1,"",IF(S92="","",VLOOKUP(S92,Tabelle!$I$5:$M$7,5,FALSE))) ->  | U92: =IF(G$2034=1,"",IF(S92="","",VLOOKUP(S92,Tabelle!$I$5:$N$7,6,FALSE))) ->  | AE92: =IF(D92="",0,IF(D92=D91,COUNTIF(D$9:D91,D92)+1,1)) -> 0 | AF92: 0 | AG92: 0
A93: 85 | B93: -1900 | C93: -1900-0 | T93: =IF(G$2034=1,"",IF(S93="","",VLOOKUP(S93,Tabelle!$I$5:$M$7,5,FALSE))) ->  | U93: =IF(G$2034=1,"",IF(S93="","",VLOOKUP(S93,Tabelle!$I$5:$N$7,6,FALSE))) ->  | AE93: =IF(D93="",0,IF(D93=D92,COUNTIF(D$9:D92,D93)+1,1)) -> 0 | AF93: 0 | AG93: 0
A94: 86 | B94: -1900 | C94: -1900-0 | T94: =IF(G$2034=1,"",IF(S94="","",VLOOKUP(S94,Tabelle!$I$5:$M$7,5,FALSE))) ->  | U94: =IF(G$2034=1,"",IF(S94="","",VLOOKUP(S94,Tabelle!$I$5:$N$7,6,FALSE))) ->  | AE94: =IF(D94="",0,IF(D94=D93,COUNTIF(D$9:D93,D94)+1,1)) -> 0 | AF94: 0 | AG94: 0
A95: 87 | B95: -1900 | C95: -1900-0 | T95: =IF(G$2034=1,"",IF(S95="","",VLOOKUP(S95,Tabelle!$I$5:$M$7,5,FALSE))) ->  | U95: =IF(G$2034=1,"",IF(S95="","",VLOOKUP(S95,Tabelle!$I$5:$N$7,6,FALSE))) ->  | AE95: =IF(D95="",0,IF(D95=D94,COUNTIF(D$9:D94,D95)+1,1)) -> 0 | AF95: 0 | AG95: 0
A96: 88 | B96: -1900 | C96: -1900-0 | T96: =IF(G$2034=1,"",IF(S96="","",VLOOKUP(S96,Tabelle!$I$5:$M$7,5,FALSE))) ->  | U96: =IF(G$2034=1,"",IF(S96="","",VLOOKUP(S96,Tabelle!$I$5:$N$7,6,FALSE))) ->  | AE96: =IF(D96="",0,IF(D96=D95,COUNTIF(D$9:D95,D96)+1,1)) -> 0 | AF96: 0 | AG96: 0
A97: 89 | B97: -1900 | C97: -1900-0 | T97: =IF(G$2034=1,"",IF(S97="","",VLOOKUP(S97,Tabelle!$I$5:$M$7,5,FALSE))) ->  | U97: =IF(G$2034=1,"",IF(S97="","",VLOOKUP(S97,Tabelle!$I$5:$N$7,6,FALSE))) ->  | AE97: =IF(D97="",0,IF(D97=D96,COUNTIF(D$9:D96,D97)+1,1)) -> 0 | AF97: 0 | AG97: 0
A98: 90 | B98: -1900 | C98: -1900-0 | T98: =IF(G$2034=1,"",IF(S98="","",VLOOKUP(S98,Tabelle!$I$5:$M$7,5,FALSE))) ->  | U98: =IF(G$2034=1,"",IF(S98="","",VLOOKUP(S98,Tabelle!$I$5:$N$7,6,FALSE))) ->  | AE98: =IF(D98="",0,IF(D98=D97,COUNTIF(D$9:D97,D98)+1,1)) -> 0 | AF98: 0 | AG98: 0
A99: 91 | B99: -1900 | C99: -1900-0 | T99: =IF(G$2034=1,"",IF(S99="","",VLOOKUP(S99,Tabelle!$I$5:$M$7,5,FALSE))) ->  | U99: =IF(G$2034=1,"",IF(S99="","",VLOOKUP(S99,Tabelle!$I$5:$N$7,6,FALSE))) ->  | AE99: =IF(D99="",0,IF(D99=D98,COUNTIF(D$9:D98,D99)+1,1)) -> 0 | AF99: 0 | AG99: 0
A100: 92 | B100: -1900 | C100: -1900-0 | T100: =IF(G$2034=1,"",IF(S100="","",VLOOKUP(S100,Tabelle!$I$5:$M$7,5,FALSE))) ->  | U100: =IF(G$2034=1,"",IF(S100="","",VLOOKUP(S100,Tabelle!$I$5:$N$7,6,FALSE))) ->  | AE100: =IF(D100="",0,IF(D100=D99,COUNTIF(D$9:D99,D100)+1,1)) -> 0 | AF100: 0 | AG100: 0
A101: 93 | B101: -1900 | C101: -1900-0 | T101: =IF(G$2034=1,"",IF(S101="","",VLOOKUP(S101,Tabelle!$I$5:$M$7,5,FALSE))) ->  | U101: =IF(G$2034=1,"",IF(S101="","",VLOOKUP(S101,Tabelle!$I$5:$N$7,6,FALSE))) ->  | AE101: =IF(D101="",0,IF(D101=D100,COUNTIF(D$9:D100,D101)+1,1)) -> 0 | AF101: 0 | AG101: 0
A102: 94 | B102: -1900 | C102: -1900-0 | T102: =IF(G$2034=1,"",IF(S102="","",VLOOKUP(S102,Tabelle!$I$5:$M$7,5,FALSE))) ->  | U102: =IF(G$2034=1,"",IF(S102="","",VLOOKUP(S102,Tabelle!$I$5:$N$7,6,FALSE))) ->  | AE102: =IF(D102="",0,IF(D102=D101,COUNTIF(D$9:D101,D102)+1,1)) -> 0 | AF102: 0 | AG102: 0
A103: 95 | B103: -1900 | C103: -1900-0 | T103: =IF(G$2034=1,"",IF(S103="","",VLOOKUP(S103,Tabelle!$I$5:$M$7,5,FALSE))) ->  | U103: =IF(G$2034=1,"",IF(S103="","",VLOOKUP(S103,Tabelle!$I$5:$N$7,6,FALSE))) ->  | AE103: =IF(D103="",0,IF(D103=D102,COUNTIF(D$9:D102,D103)+1,1)) -> 0 | AF103: 0 | AG103: 0
A104: 96 | B104: -1900 | C104: -1900-0 | T104: =IF(G$2034=1,"",IF(S104="","",VLOOKUP(S104,Tabelle!$I$5:$M$7,5,FALSE))) ->  | U104: =IF(G$2034=1,"",IF(S104="","",VLOOKUP(S104,Tabelle!$I$5:$N$7,6,FALSE))) ->  | AE104: =IF(D104="",0,IF(D104=D103,COUNTIF(D$9:D103,D104)+1,1)) -> 0 | AF104: 0 | AG104: 0
A105: 97 | B105: -1900 | C105: -1900-0 | T105: =IF(G$2034=1,"",IF(S105="","",VLOOKUP(S105,Tabelle!$I$5:$M$7,5,FALSE))) ->  | U105: =IF(G$2034=1,"",IF(S105="","",VLOOKUP(S105,Tabelle!$I$5:$N$7,6,FALSE))) ->  | AE105: =IF(D105="",0,IF(D105=D104,COUNTIF(D$9:D104,D105)+1,1)) -> 0 | AF105: 0 | AG105: 0
A106: 98 | B106: -1900 | C106: -1900-0 | T106: =IF(G$2034=1,"",IF(S106="","",VLOOKUP(S106,Tabelle!$I$5:$M$7,5,FALSE))) ->  | U106: =IF(G$2034=1,"",IF(S106="","",VLOOKUP(S106,Tabelle!$I$5:$N$7,6,FALSE))) ->  | AE106: =IF(D106="",0,IF(D106=D105,COUNTIF(D$9:D105,D106)+1,1)) -> 0 | AF106: 0 | AG106: 0
A107: 99 | B107: -1900 | C107: -1900-0 | T107: =IF(G$2034=1,"",IF(S107="","",VLOOKUP(S107,Tabelle!$I$5:$M$7,5,FALSE))) ->  | U107: =IF(G$2034=1,"",IF(S107="","",VLOOKUP(S107,Tabelle!$I$5:$N$7,6,FALSE))) ->  | AE107: =IF(D107="",0,IF(D107=D106,COUNTIF(D$9:D106,D107)+1,1)) -> 0 | AF107: 0 | AG107: 0
A108: 100 | B108: -1900 | C108: -1900-0 | T108: =IF(G$2034=1,"",IF(S108="","",VLOOKUP(S108,Tabelle!$I$5:$M$7,5,FALSE))) ->  | U108: =IF(G$2034=1,"",IF(S108="","",VLOOKUP(S108,Tabelle!$I$5:$N$7,6,FALSE))) ->  | AE108: =IF(D108="",0,IF(D108=D107,COUNTIF(D$9:D107,D108)+1,1)) -> 0 | AF108: 0 | AG108: 0
A109: 101 | B109: -1900 | C109: -1900-0 | T109: =IF(G$2034=1,"",IF(S109="","",VLOOKUP(S109,Tabelle!$I$5:$M$7,5,FALSE))) ->  | U109: =IF(G$2034=1,"",IF(S109="","",VLOOKUP(S109,Tabelle!$I$5:$N$7,6,FALSE))) ->  | AE109: =IF(D109="",0,IF(D109=D108,COUNTIF(D$9:D108,D109)+1,1)) -> 0 | AF109: 0 | AG109: 0
A110: 102 | B110: -1900 | C110: -1900-0 | T110: =IF(G$2034=1,"",IF(S110="","",VLOOKUP(S110,Tabelle!$I$5:$M$7,5,FALSE))) ->  | U110: =IF(G$2034=1,"",IF(S110="","",VLOOKUP(S110,Tabelle!$I$5:$N$7,6,FALSE))) ->  | AE110: =IF(D110="",0,IF(D110=D109,COUNTIF(D$9:D109,D110)+1,1)) -> 0 | AF110: 0 | AG110: 0
A111: 103 | B111: -1900 | C111: -1900-0 | T111: =IF(G$2034=1,"",IF(S111="","",VLOOKUP(S111,Tabelle!$I$5:$M$7,5,FALSE))) ->  | U111: =IF(G$2034=1,"",IF(S111="","",VLOOKUP(S111,Tabelle!$I$5:$N$7,6,FALSE))) ->  | AE111: =IF(D111="",0,IF(D111=D110,COUNTIF(D$9:D110,D111)+1,1)) -> 0 | AF111: 0 | AG111: 0
A112: 104 | B112: -1900 | C112: -1900-0 | T112: =IF(G$2034=1,"",IF(S112="","",VLOOKUP(S112,Tabelle!$I$5:$M$7,5,FALSE))) ->  | U112: =IF(G$2034=1,"",IF(S112="","",VLOOKUP(S112,Tabelle!$I$5:$N$7,6,FALSE))) ->  | AE112: =IF(D112="",0,IF(D112=D111,COUNTIF(D$9:D111,D112)+1,1)) -> 0 | AF112: 0 | AG112: 0
A113: 105 | B113: -1900 | C113: -1900-0 | T113: =IF(G$2034=1,"",IF(S113="","",VLOOKUP(S113,Tabelle!$I$5:$M$7,5,FALSE))) ->  | U113: =IF(G$2034=1,"",IF(S113="","",VLOOKUP(S113,Tabelle!$I$5:$N$7,6,FALSE))) ->  | AE113: =IF(D113="",0,IF(D113=D112,COUNTIF(D$9:D112,D113)+1,1)) -> 0 | AF113: 0 | AG113: 0
A114: 106 | B114: -1900 | C114: -1900-0 | T114: =IF(G$2034=1,"",IF(S114="","",VLOOKUP(S114,Tabelle!$I$5:$M$7,5,FALSE))) ->  | U114: =IF(G$2034=1,"",IF(S114="","",VLOOKUP(S114,Tabelle!$I$5:$N$7,6,FALSE))) ->  | AE114: =IF(D114="",0,IF(D114=D113,COUNTIF(D$9:D113,D114)+1,1)) -> 0 | AF114: 0 | AG114: 0
A115: 107 | B115: -1900 | C115: -1900-0 | T115: =IF(G$2034=1,"",IF(S115="","",VLOOKUP(S115,Tabelle!$I$5:$M$7,5,FALSE))) ->  | U115: =IF(G$2034=1,"",IF(S115="","",VLOOKUP(S115,Tabelle!$I$5:$N$7,6,FALSE))) ->  | AE115: =IF(D115="",0,IF(D115=D114,COUNTIF(D$9:D114,D115)+1,1)) -> 0 | AF115: 0 | AG115: 0
A116: 108 | B116: -1900 | C116: -1900-0 | T116: =IF(G$2034=1,"",IF(S116="","",VLOOKUP(S116,Tabelle!$I$5:$M$7,5,FALSE))) ->  | U116: =IF(G$2034=1,"",IF(S116="","",VLOOKUP(S116,Tabelle!$I$5:$N$7,6,FALSE))) ->  | AE116: =IF(D116="",0,IF(D116=D115,COUNTIF(D$9:D115,D116)+1,1)) -> 0 | AF116: 0 | AG116: 0
A117: 109 | B117: -1900 | C117: -1900-0 | T117: =IF(G$2034=1,"",IF(S117="","",VLOOKUP(S117,Tabelle!$I$5:$M$7,5,FALSE))) ->  | U117: =IF(G$2034=1,"",IF(S117="","",VLOOKUP(S117,Tabelle!$I$5:$N$7,6,FALSE))) ->  | AE117: =IF(D117="",0,IF(D117=D116,COUNTIF(D$9:D116,D117)+1,1)) -> 0 | AF117: 0 | AG117: 0
A118: 110 | B118: -1900 | C118: -1900-0 | T118: =IF(G$2034=1,"",IF(S118="","",VLOOKUP(S118,Tabelle!$I$5:$M$7,5,FALSE))) ->  | U118: =IF(G$2034=1,"",IF(S118="","",VLOOKUP(S118,Tabelle!$I$5:$N$7,6,FALSE))) ->  | AE118: =IF(D118="",0,IF(D118=D117,COUNTIF(D$9:D117,D118)+1,1)) -> 0 | AF118: 0 | AG118: 0
A119: 111 | B119: -1900 | C119: -1900-0 | T119: =IF(G$2034=1,"",IF(S119="","",VLOOKUP(S119,Tabelle!$I$5:$M$7,5,FALSE))) ->  | U119: =IF(G$2034=1,"",IF(S119="","",VLOOKUP(S119,Tabelle!$I$5:$N$7,6,FALSE))) ->  | AE119: =IF(D119="",0,IF(D119=D118,COUNTIF(D$9:D118,D119)+1,1)) -> 0 | AF119: 0 | AG119: 0
A120: 112 | B120: -1900 | C120: -1900-0 | T120: =IF(G$2034=1,"",IF(S120="","",VLOOKUP(S120,Tabelle!$I$5:$M$7,5,FALSE))) ->  | U120: =IF(G$2034=1,"",IF(S120="","",VLOOKUP(S120,Tabelle!$I$5:$N$7,6,FALSE))) ->  | AE120: =IF(D120="",0,IF(D120=D119,COUNTIF(D$9:D119,D120)+1,1)) -> 0 | AF120: 0 | AG120: 0
A121: 113 | B121: -1900 | C121: -1900-0 | T121: =IF(G$2034=1,"",IF(S121="","",VLOOKUP(S121,Tabelle!$I$5:$M$7,5,FALSE))) ->  | U121: =IF(G$2034=1,"",IF(S121="","",VLOOKUP(S121,Tabelle!$I$5:$N$7,6,FALSE))) ->  | AE121: =IF(D121="",0,IF(D121=D120,COUNTIF(D$9:D120,D121)+1,1)) -> 0 | AF121: 0 | AG121: 0
A122: 114 | B122: -1900 | C122: -1900-0 | T122: =IF(G$2034=1,"",IF(S122="","",VLOOKUP(S122,Tabelle!$I$5:$M$7,5,FALSE))) ->  | U122: =IF(G$2034=1,"",IF(S122="","",VLOOKUP(S122,Tabelle!$I$5:$N$7,6,FALSE))) ->  | AE122: =IF(D122="",0,IF(D122=D121,COUNTIF(D$9:D121,D122)+1,1)) -> 0 | AF122: 0 | AG122: 0
A123: 115 | B123: -1900 | C123: -1900-0 | T123: =IF(G$2034=1,"",IF(S123="","",VLOOKUP(S123,Tabelle!$I$5:$M$7,5,FALSE))) ->  | U123: =IF(G$2034=1,"",IF(S123="","",VLOOKUP(S123,Tabelle!$I$5:$N$7,6,FALSE))) ->  | AE123: =IF(D123="",0,IF(D123=D122,COUNTIF(D$9:D122,D123)+1,1)) -> 0 | AF123: 0 | AG123: 0
A124: 116 | B124: -1900 | C124: -1900-0 | T124: =IF(G$2034=1,"",IF(S124="","",VLOOKUP(S124,Tabelle!$I$5:$M$7,5,FALSE))) ->  | U124: =IF(G$2034=1,"",IF(S124="","",VLOOKUP(S124,Tabelle!$I$5:$N$7,6,FALSE))) ->  | AE124: =IF(D124="",0,IF(D124=D123,COUNTIF(D$9:D123,D124)+1,1)) -> 0 | AF124: 0 | AG124: 0
A125: 117 | B125: -1900 | C125: -1900-0 | T125: =IF(G$2034=1,"",IF(S125="","",VLOOKUP(S125,Tabelle!$I$5:$M$7,5,FALSE))) ->  | U125: =IF(G$2034=1,"",IF(S125="","",VLOOKUP(S125,Tabelle!$I$5:$N$7,6,FALSE))) ->  | AE125: =IF(D125="",0,IF(D125=D124,COUNTIF(D$9:D124,D125)+1,1)) -> 0 | AF125: 0 | AG125: 0
A126: 118 | B126: -1900 | C126: -1900-0 | T126: =IF(G$2034=1,"",IF(S126="","",VLOOKUP(S126,Tabelle!$I$5:$M$7,5,FALSE))) ->  | U126: =IF(G$2034=1,"",IF(S126="","",VLOOKUP(S126,Tabelle!$I$5:$N$7,6,FALSE))) ->  | AE126: =IF(D126="",0,IF(D126=D125,COUNTIF(D$9:D125,D126)+1,1)) -> 0 | AF126: 0 | AG126: 0
A127: 119 | B127: -1900 | C127: -1900-0 | T127: =IF(G$2034=1,"",IF(S127="","",VLOOKUP(S127,Tabelle!$I$5:$M$7,5,FALSE))) ->  | U127: =IF(G$2034=1,"",IF(S127="","",VLOOKUP(S127,Tabelle!$I$5:$N$7,6,FALSE))) ->  | AE127: =IF(D127="",0,IF(D127=D126,COUNTIF(D$9:D126,D127)+1,1)) -> 0 | AF127: 0 | AG127: 0
A128: 120 | B128: -1900 | C128: -1900-0 | T128: =IF(G$2034=1,"",IF(S128="","",VLOOKUP(S128,Tabelle!$I$5:$M$7,5,FALSE))) ->  | U128: =IF(G$2034=1,"",IF(S128="","",VLOOKUP(S128,Tabelle!$I$5:$N$7,6,FALSE))) ->  | AE128: =IF(D128="",0,IF(D128=D127,COUNTIF(D$9:D127,D128)+1,1)) -> 0 | AF128: 0 | AG128: 0
A129: 121 | B129: -1900 | C129: -1900-0 | T129: =IF(G$2034=1,"",IF(S129="","",VLOOKUP(S129,Tabelle!$I$5:$M$7,5,FALSE))) ->  | U129: =IF(G$2034=1,"",IF(S129="","",VLOOKUP(S129,Tabelle!$I$5:$N$7,6,FALSE))) ->  | AE129: =IF(D129="",0,IF(D129=D128,COUNTIF(D$9:D128,D129)+1,1)) -> 0 | AF129: 0 | AG129: 0
A130: 122 | B130: -1900 | C130: -1900-0 | T130: =IF(G$2034=1,"",IF(S130="","",VLOOKUP(S130,Tabelle!$I$5:$M$7,5,FALSE))) ->  | U130: =IF(G$2034=1,"",IF(S130="","",VLOOKUP(S130,Tabelle!$I$5:$N$7,6,FALSE))) ->  | AE130: =IF(D130="",0,IF(D130=D129,COUNTIF(D$9:D129,D130)+1,1)) -> 0 | AF130: 0 | AG130: 0
A131: 123 | B131: -1900 | C131: -1900-0 | T131: =IF(G$2034=1,"",IF(S131="","",VLOOKUP(S131,Tabelle!$I$5:$M$7,5,FALSE))) ->  | U131: =IF(G$2034=1,"",IF(S131="","",VLOOKUP(S131,Tabelle!$I$5:$N$7,6,FALSE))) ->  | AE131: =IF(D131="",0,IF(D131=D130,COUNTIF(D$9:D130,D131)+1,1)) -> 0 | AF131: 0 | AG131: 0
A132: 124 | B132: -1900 | C132: -1900-0 | T132: =IF(G$2034=1,"",IF(S132="","",VLOOKUP(S132,Tabelle!$I$5:$M$7,5,FALSE))) ->  | U132: =IF(G$2034=1,"",IF(S132="","",VLOOKUP(S132,Tabelle!$I$5:$N$7,6,FALSE))) ->  | AE132: =IF(D132="",0,IF(D132=D131,COUNTIF(D$9:D131,D132)+1,1)) -> 0 | AF132: 0 | AG132: 0
A133: 125 | B133: -1900 | C133: -1900-0 | T133: =IF(G$2034=1,"",IF(S133="","",VLOOKUP(S133,Tabelle!$I$5:$M$7,5,FALSE))) ->  | U133: =IF(G$2034=1,"",IF(S133="","",VLOOKUP(S133,Tabelle!$I$5:$N$7,6,FALSE))) ->  | AE133: =IF(D133="",0,IF(D133=D132,COUNTIF(D$9:D132,D133)+1,1)) -> 0 | AF133: 0 | AG133: 0
A134: 126 | B134: -1900 | C134: -1900-0 | T134: =IF(G$2034=1,"",IF(S134="","",VLOOKUP(S134,Tabelle!$I$5:$M$7,5,FALSE))) ->  | U134: =IF(G$2034=1,"",IF(S134="","",VLOOKUP(S134,Tabelle!$I$5:$N$7,6,FALSE))) ->  | AE134: =IF(D134="",0,IF(D134=D133,COUNTIF(D$9:D133,D134)+1,1)) -> 0 | AF134: 0 | AG134: 0
A135: 127 | B135: -1900 | C135: -1900-0 | T135: =IF(G$2034=1,"",IF(S135="","",VLOOKUP(S135,Tabelle!$I$5:$M$7,5,FALSE))) ->  | U135: =IF(G$2034=1,"",IF(S135="","",VLOOKUP(S135,Tabelle!$I$5:$N$7,6,FALSE))) ->  | AE135: =IF(D135="",0,IF(D135=D134,COUNTIF(D$9:D134,D135)+1,1)) -> 0 | AF135: 0 | AG135: 0
A136: 128 | B136: -1900 | C136: -1900-0 | T136: =IF(G$2034=1,"",IF(S136="","",VLOOKUP(S136,Tabelle!$I$5:$M$7,5,FALSE))) ->  | U136: =IF(G$2034=1,"",IF(S136="","",VLOOKUP(S136,Tabelle!$I$5:$N$7,6,FALSE))) ->  | AE136: =IF(D136="",0,IF(D136=D135,COUNTIF(D$9:D135,D136)+1,1)) -> 0 | AF136: 0 | AG136: 0
A137: 129 | B137: -1900 | C137: =IF(G$2034=1,0,B137&"-"&AE137) -> -1900-0 | K137: =IF(G$2034=1,0,IF(OR(J137="",ISERROR($O$2034)),"",VLOOKUP(J137,$L$2019:$N$2027,2,FALSE))) ->  | T137: =IF(G$2034=1,"",IF(S137="","",VLOOKUP(S137,Tabelle!$I$5:$M$7,5,FALSE))) ->  | U137: =IF(G$2034=1,"",IF(S137="","",VLOOKUP(S137,Tabelle!$I$5:$N$7,6,FALSE))) ->  | AE137: =IF(D137="",0,IF(D137=D136,COUNTIF(D$9:D136,D137)+1,1)) -> 0 | AF137: 0 | AG137: 0
A138: 130 | B138: =IF(AG138=$AG$2013,0,IF(G$2034=1,0,D138&"-"&YEAR(E138))) -> -1900 | C138: -1900-0 | T138: =IF(G$2034=1,"",IF(S138="","",VLOOKUP(S138,Tabelle!$I$5:$M$7,5,FALSE))) ->  | U138: =IF(G$2034=1,"",IF(S138="","",VLOOKUP(S138,Tabelle!$I$5:$N$7,6,FALSE))) ->  | AE138: =IF(D138="",0,IF(D138=D137,COUNTIF(D$9:D137,D138)+1,1)) -> 0 | AF138: =IF(G$2034=1,0,IF(AE138=28,1,0)) -> 0 | AG138: =IF(E138>0,IF(OR(MONTH(E138)<$G$2026,MONTH(E138)>$G$2027),AG$2013,0),0) -> 0
A139: 131 | B139: -1900 | C139: -1900-0 | T139: =IF(G$2034=1,"",IF(S139="","",VLOOKUP(S139,Tabelle!$I$5:$M$7,5,FALSE))) ->  | U139: =IF(G$2034=1,"",IF(S139="","",VLOOKUP(S139,Tabelle!$I$5:$N$7,6,FALSE))) ->  | AE139: =IF(D139="",0,IF(D139=D138,COUNTIF(D$9:D138,D139)+1,1)) -> 0 | AF139: 0 | AG139: 0
A140: 132 | B140: -1900 | C140: -1900-0 | T140: =IF(G$2034=1,"",IF(S140="","",VLOOKUP(S140,Tabelle!$I$5:$M$7,5,FALSE))) ->  | U140: =IF(G$2034=1,"",IF(S140="","",VLOOKUP(S140,Tabelle!$I$5:$N$7,6,FALSE))) ->  | AE140: =IF(D140="",0,IF(D140=D139,COUNTIF(D$9:D139,D140)+1,1)) -> 0 | AF140: 0 | AG140: 0
A141: 133 | B141: -1900 | C141: -1900-0 | T141: =IF(G$2034=1,"",IF(S141="","",VLOOKUP(S141,Tabelle!$I$5:$M$7,5,FALSE))) ->  | U141: =IF(G$2034=1,"",IF(S141="","",VLOOKUP(S141,Tabelle!$I$5:$N$7,6,FALSE))) ->  | AE141: =IF(D141="",0,IF(D141=D140,COUNTIF(D$9:D140,D141)+1,1)) -> 0 | AF141: 0 | AG141: 0
A142: 134 | B142: -1900 | C142: -1900-0 | T142: =IF(G$2034=1,"",IF(S142="","",VLOOKUP(S142,Tabelle!$I$5:$M$7,5,FALSE))) ->  | U142: =IF(G$2034=1,"",IF(S142="","",VLOOKUP(S142,Tabelle!$I$5:$N$7,6,FALSE))) ->  | AE142: =IF(D142="",0,IF(D142=D141,COUNTIF(D$9:D141,D142)+1,1)) -> 0 | AF142: 0 | AG142: 0
A143: 135 | B143: -1900 | C143: -1900-0 | T143: =IF(G$2034=1,"",IF(S143="","",VLOOKUP(S143,Tabelle!$I$5:$M$7,5,FALSE))) ->  | U143: =IF(G$2034=1,"",IF(S143="","",VLOOKUP(S143,Tabelle!$I$5:$N$7,6,FALSE))) ->  | AE143: =IF(D143="",0,IF(D143=D142,COUNTIF(D$9:D142,D143)+1,1)) -> 0 | AF143: 0 | AG143: 0
A144: 136 | B144: -1900 | C144: -1900-0 | T144: =IF(G$2034=1,"",IF(S144="","",VLOOKUP(S144,Tabelle!$I$5:$M$7,5,FALSE))) ->  | U144: =IF(G$2034=1,"",IF(S144="","",VLOOKUP(S144,Tabelle!$I$5:$N$7,6,FALSE))) ->  | AE144: =IF(D144="",0,IF(D144=D143,COUNTIF(D$9:D143,D144)+1,1)) -> 0 | AF144: 0 | AG144: 0
A145: 137 | B145: -1900 | C145: -1900-0 | T145: =IF(G$2034=1,"",IF(S145="","",VLOOKUP(S145,Tabelle!$I$5:$M$7,5,FALSE))) ->  | U145: =IF(G$2034=1,"",IF(S145="","",VLOOKUP(S145,Tabelle!$I$5:$N$7,6,FALSE))) ->  | AE145: =IF(D145="",0,IF(D145=D144,COUNTIF(D$9:D144,D145)+1,1)) -> 0 | AF145: 0 | AG145: 0
A146: 138 | B146: -1900 | C146: -1900-0 | T146: =IF(G$2034=1,"",IF(S146="","",VLOOKUP(S146,Tabelle!$I$5:$M$7,5,FALSE))) ->  | U146: =IF(G$2034=1,"",IF(S146="","",VLOOKUP(S146,Tabelle!$I$5:$N$7,6,FALSE))) ->  | AE146: =IF(D146="",0,IF(D146=D145,COUNTIF(D$9:D145,D146)+1,1)) -> 0 | AF146: 0 | AG146: 0
A147: 139 | B147: -1900 | C147: -1900-0 | T147: =IF(G$2034=1,"",IF(S147="","",VLOOKUP(S147,Tabelle!$I$5:$M$7,5,FALSE))) ->  | U147: =IF(G$2034=1,"",IF(S147="","",VLOOKUP(S147,Tabelle!$I$5:$N$7,6,FALSE))) ->  | AE147: =IF(D147="",0,IF(D147=D146,COUNTIF(D$9:D146,D147)+1,1)) -> 0 | AF147: 0 | AG147: 0
A148: 140 | B148: -1900 | C148: -1900-0 | T148: =IF(G$2034=1,"",IF(S148="","",VLOOKUP(S148,Tabelle!$I$5:$M$7,5,FALSE))) ->  | U148: =IF(G$2034=1,"",IF(S148="","",VLOOKUP(S148,Tabelle!$I$5:$N$7,6,FALSE))) ->  | AE148: =IF(D148="",0,IF(D148=D147,COUNTIF(D$9:D147,D148)+1,1)) -> 0 | AF148: 0 | AG148: 0
A149: 141 | B149: -1900 | C149: -1900-0 | T149: =IF(G$2034=1,"",IF(S149="","",VLOOKUP(S149,Tabelle!$I$5:$M$7,5,FALSE))) ->  | U149: =IF(G$2034=1,"",IF(S149="","",VLOOKUP(S149,Tabelle!$I$5:$N$7,6,FALSE))) ->  | AE149: =IF(D149="",0,IF(D149=D148,COUNTIF(D$9:D148,D149)+1,1)) -> 0 | AF149: 0 | AG149: 0
A150: 142 | B150: -1900 | C150: -1900-0 | T150: =IF(G$2034=1,"",IF(S150="","",VLOOKUP(S150,Tabelle!$I$5:$M$7,5,FALSE))) ->  | U150: =IF(G$2034=1,"",IF(S150="","",VLOOKUP(S150,Tabelle!$I$5:$N$7,6,FALSE))) ->  | AE150: =IF(D150="",0,IF(D150=D149,COUNTIF(D$9:D149,D150)+1,1)) -> 0 | AF150: 0 | AG150: 0
A151: 143 | B151: -1900 | C151: -1900-0 | T151: =IF(G$2034=1,"",IF(S151="","",VLOOKUP(S151,Tabelle!$I$5:$M$7,5,FALSE))) ->  | U151: =IF(G$2034=1,"",IF(S151="","",VLOOKUP(S151,Tabelle!$I$5:$N$7,6,FALSE))) ->  | AE151: =IF(D151="",0,IF(D151=D150,COUNTIF(D$9:D150,D151)+1,1)) -> 0 | AF151: 0 | AG151: 0
A152: 144 | B152: -1900 | C152: -1900-0 | T152: =IF(G$2034=1,"",IF(S152="","",VLOOKUP(S152,Tabelle!$I$5:$M$7,5,FALSE))) ->  | U152: =IF(G$2034=1,"",IF(S152="","",VLOOKUP(S152,Tabelle!$I$5:$N$7,6,FALSE))) ->  | AE152: =IF(D152="",0,IF(D152=D151,COUNTIF(D$9:D151,D152)+1,1)) -> 0 | AF152: 0 | AG152: 0
A153: 145 | B153: -1900 | C153: -1900-0 | T153: =IF(G$2034=1,"",IF(S153="","",VLOOKUP(S153,Tabelle!$I$5:$M$7,5,FALSE))) ->  | U153: =IF(G$2034=1,"",IF(S153="","",VLOOKUP(S153,Tabelle!$I$5:$N$7,6,FALSE))) ->  | AE153: =IF(D153="",0,IF(D153=D152,COUNTIF(D$9:D152,D153)+1,1)) -> 0 | AF153: 0 | AG153: 0
A154: 146 | B154: -1900 | C154: -1900-0 | T154: =IF(G$2034=1,"",IF(S154="","",VLOOKUP(S154,Tabelle!$I$5:$M$7,5,FALSE))) ->  | U154: =IF(G$2034=1,"",IF(S154="","",VLOOKUP(S154,Tabelle!$I$5:$N$7,6,FALSE))) ->  | AE154: =IF(D154="",0,IF(D154=D153,COUNTIF(D$9:D153,D154)+1,1)) -> 0 | AF154: 0 | AG154: 0
A155: 147 | B155: -1900 | C155: -1900-0 | T155: =IF(G$2034=1,"",IF(S155="","",VLOOKUP(S155,Tabelle!$I$5:$M$7,5,FALSE))) ->  | U155: =IF(G$2034=1,"",IF(S155="","",VLOOKUP(S155,Tabelle!$I$5:$N$7,6,FALSE))) ->  | AE155: =IF(D155="",0,IF(D155=D154,COUNTIF(D$9:D154,D155)+1,1)) -> 0 | AF155: 0 | AG155: 0
A156: 148 | B156: -1900 | C156: -1900-0 | T156: =IF(G$2034=1,"",IF(S156="","",VLOOKUP(S156,Tabelle!$I$5:$M$7,5,FALSE))) ->  | U156: =IF(G$2034=1,"",IF(S156="","",VLOOKUP(S156,Tabelle!$I$5:$N$7,6,FALSE))) ->  | AE156: =IF(D156="",0,IF(D156=D155,COUNTIF(D$9:D155,D156)+1,1)) -> 0 | AF156: 0 | AG156: 0
A157: 149 | B157: -1900 | C157: -1900-0 | T157: =IF(G$2034=1,"",IF(S157="","",VLOOKUP(S157,Tabelle!$I$5:$M$7,5,FALSE))) ->  | U157: =IF(G$2034=1,"",IF(S157="","",VLOOKUP(S157,Tabelle!$I$5:$N$7,6,FALSE))) ->  | AE157: =IF(D157="",0,IF(D157=D156,COUNTIF(D$9:D156,D157)+1,1)) -> 0 | AF157: 0 | AG157: 0
A158: 150 | B158: -1900 | C158: -1900-0 | T158: =IF(G$2034=1,"",IF(S158="","",VLOOKUP(S158,Tabelle!$I$5:$M$7,5,FALSE))) ->  | U158: =IF(G$2034=1,"",IF(S158="","",VLOOKUP(S158,Tabelle!$I$5:$N$7,6,FALSE))) ->  | AE158: =IF(D158="",0,IF(D158=D157,COUNTIF(D$9:D157,D158)+1,1)) -> 0 | AF158: 0 | AG158: 0
A159: 151 | B159: -1900 | C159: -1900-0 | T159: =IF(G$2034=1,"",IF(S159="","",VLOOKUP(S159,Tabelle!$I$5:$M$7,5,FALSE))) ->  | U159: =IF(G$2034=1,"",IF(S159="","",VLOOKUP(S159,Tabelle!$I$5:$N$7,6,FALSE))) ->  | AE159: =IF(D159="",0,IF(D159=D158,COUNTIF(D$9:D158,D159)+1,1)) -> 0 | AF159: 0 | AG159: 0
A160: 152 | B160: -1900 | C160: -1900-0 | T160: =IF(G$2034=1,"",IF(S160="","",VLOOKUP(S160,Tabelle!$I$5:$M$7,5,FALSE))) ->  | U160: =IF(G$2034=1,"",IF(S160="","",VLOOKUP(S160,Tabelle!$I$5:$N$7,6,FALSE))) ->  | AE160: =IF(D160="",0,IF(D160=D159,COUNTIF(D$9:D159,D160)+1,1)) -> 0 | AF160: 0 | AG160: 0
A161: 153 | B161: -1900 | C161: -1900-0 | T161: =IF(G$2034=1,"",IF(S161="","",VLOOKUP(S161,Tabelle!$I$5:$M$7,5,FALSE))) ->  | U161: =IF(G$2034=1,"",IF(S161="","",VLOOKUP(S161,Tabelle!$I$5:$N$7,6,FALSE))) ->  | AE161: =IF(D161="",0,IF(D161=D160,COUNTIF(D$9:D160,D161)+1,1)) -> 0 | AF161: 0 | AG161: 0
A162: 154 | B162: -1900 | C162: -1900-0 | T162: =IF(G$2034=1,"",IF(S162="","",VLOOKUP(S162,Tabelle!$I$5:$M$7,5,FALSE))) ->  | U162: =IF(G$2034=1,"",IF(S162="","",VLOOKUP(S162,Tabelle!$I$5:$N$7,6,FALSE))) ->  | AE162: =IF(D162="",0,IF(D162=D161,COUNTIF(D$9:D161,D162)+1,1)) -> 0 | AF162: 0 | AG162: 0
A163: 155 | B163: -1900 | C163: -1900-0 | T163: =IF(G$2034=1,"",IF(S163="","",VLOOKUP(S163,Tabelle!$I$5:$M$7,5,FALSE))) ->  | U163: =IF(G$2034=1,"",IF(S163="","",VLOOKUP(S163,Tabelle!$I$5:$N$7,6,FALSE))) ->  | AE163: =IF(D163="",0,IF(D163=D162,COUNTIF(D$9:D162,D163)+1,1)) -> 0 | AF163: 0 | AG163: 0
A164: 156 | B164: -1900 | C164: -1900-0 | T164: =IF(G$2034=1,"",IF(S164="","",VLOOKUP(S164,Tabelle!$I$5:$M$7,5,FALSE))) ->  | U164: =IF(G$2034=1,"",IF(S164="","",VLOOKUP(S164,Tabelle!$I$5:$N$7,6,FALSE))) ->  | AE164: =IF(D164="",0,IF(D164=D163,COUNTIF(D$9:D163,D164)+1,1)) -> 0 | AF164: 0 | AG164: 0
A165: 157 | B165: -1900 | C165: -1900-0 | T165: =IF(G$2034=1,"",IF(S165="","",VLOOKUP(S165,Tabelle!$I$5:$M$7,5,FALSE))) ->  | U165: =IF(G$2034=1,"",IF(S165="","",VLOOKUP(S165,Tabelle!$I$5:$N$7,6,FALSE))) ->  | AE165: =IF(D165="",0,IF(D165=D164,COUNTIF(D$9:D164,D165)+1,1)) -> 0 | AF165: 0 | AG165: 0
A166: 158 | B166: -1900 | C166: -1900-0 | T166: =IF(G$2034=1,"",IF(S166="","",VLOOKUP(S166,Tabelle!$I$5:$M$7,5,FALSE))) ->  | U166: =IF(G$2034=1,"",IF(S166="","",VLOOKUP(S166,Tabelle!$I$5:$N$7,6,FALSE))) ->  | AE166: =IF(D166="",0,IF(D166=D165,COUNTIF(D$9:D165,D166)+1,1)) -> 0 | AF166: 0 | AG166: 0
A167: 159 | B167: -1900 | C167: -1900-0 | T167: =IF(G$2034=1,"",IF(S167="","",VLOOKUP(S167,Tabelle!$I$5:$M$7,5,FALSE))) ->  | U167: =IF(G$2034=1,"",IF(S167="","",VLOOKUP(S167,Tabelle!$I$5:$N$7,6,FALSE))) ->  | AE167: =IF(D167="",0,IF(D167=D166,COUNTIF(D$9:D166,D167)+1,1)) -> 0 | AF167: 0 | AG167: 0
A168: 160 | B168: -1900 | C168: -1900-0 | T168: =IF(G$2034=1,"",IF(S168="","",VLOOKUP(S168,Tabelle!$I$5:$M$7,5,FALSE))) ->  | U168: =IF(G$2034=1,"",IF(S168="","",VLOOKUP(S168,Tabelle!$I$5:$N$7,6,FALSE))) ->  | AE168: =IF(D168="",0,IF(D168=D167,COUNTIF(D$9:D167,D168)+1,1)) -> 0 | AF168: 0 | AG168: 0
A169: 161 | B169: -1900 | C169: -1900-0 | T169: =IF(G$2034=1,"",IF(S169="","",VLOOKUP(S169,Tabelle!$I$5:$M$7,5,FALSE))) ->  | U169: =IF(G$2034=1,"",IF(S169="","",VLOOKUP(S169,Tabelle!$I$5:$N$7,6,FALSE))) ->  | AE169: =IF(D169="",0,IF(D169=D168,COUNTIF(D$9:D168,D169)+1,1)) -> 0 | AF169: 0 | AG169: 0
A170: 162 | B170: -1900 | C170: -1900-0 | T170: =IF(G$2034=1,"",IF(S170="","",VLOOKUP(S170,Tabelle!$I$5:$M$7,5,FALSE))) ->  | U170: =IF(G$2034=1,"",IF(S170="","",VLOOKUP(S170,Tabelle!$I$5:$N$7,6,FALSE))) ->  | AE170: =IF(D170="",0,IF(D170=D169,COUNTIF(D$9:D169,D170)+1,1)) -> 0 | AF170: 0 | AG170: 0
A171: 163 | B171: -1900 | C171: -1900-0 | T171: =IF(G$2034=1,"",IF(S171="","",VLOOKUP(S171,Tabelle!$I$5:$M$7,5,FALSE))) ->  | U171: =IF(G$2034=1,"",IF(S171="","",VLOOKUP(S171,Tabelle!$I$5:$N$7,6,FALSE))) ->  | AE171: =IF(D171="",0,IF(D171=D170,COUNTIF(D$9:D170,D171)+1,1)) -> 0 | AF171: 0 | AG171: 0
A172: 164 | B172: -1900 | C172: -1900-0 | T172: =IF(G$2034=1,"",IF(S172="","",VLOOKUP(S172,Tabelle!$I$5:$M$7,5,FALSE))) ->  | U172: =IF(G$2034=1,"",IF(S172="","",VLOOKUP(S172,Tabelle!$I$5:$N$7,6,FALSE))) ->  | AE172: =IF(D172="",0,IF(D172=D171,COUNTIF(D$9:D171,D172)+1,1)) -> 0 | AF172: 0 | AG172: 0
A173: 165 | B173: -1900 | C173: -1900-0 | T173: =IF(G$2034=1,"",IF(S173="","",VLOOKUP(S173,Tabelle!$I$5:$M$7,5,FALSE))) ->  | U173: =IF(G$2034=1,"",IF(S173="","",VLOOKUP(S173,Tabelle!$I$5:$N$7,6,FALSE))) ->  | AE173: =IF(D173="",0,IF(D173=D172,COUNTIF(D$9:D172,D173)+1,1)) -> 0 | AF173: 0 | AG173: 0
A174: 166 | B174: -1900 | C174: -1900-0 | T174: =IF(G$2034=1,"",IF(S174="","",VLOOKUP(S174,Tabelle!$I$5:$M$7,5,FALSE))) ->  | U174: =IF(G$2034=1,"",IF(S174="","",VLOOKUP(S174,Tabelle!$I$5:$N$7,6,FALSE))) ->  | AE174: =IF(D174="",0,IF(D174=D173,COUNTIF(D$9:D173,D174)+1,1)) -> 0 | AF174: 0 | AG174: 0
A175: 167 | B175: -1900 | C175: -1900-0 | T175: =IF(G$2034=1,"",IF(S175="","",VLOOKUP(S175,Tabelle!$I$5:$M$7,5,FALSE))) ->  | U175: =IF(G$2034=1,"",IF(S175="","",VLOOKUP(S175,Tabelle!$I$5:$N$7,6,FALSE))) ->  | AE175: =IF(D175="",0,IF(D175=D174,COUNTIF(D$9:D174,D175)+1,1)) -> 0 | AF175: 0 | AG175: 0
A176: 168 | B176: -1900 | C176: -1900-0 | T176: =IF(G$2034=1,"",IF(S176="","",VLOOKUP(S176,Tabelle!$I$5:$M$7,5,FALSE))) ->  | U176: =IF(G$2034=1,"",IF(S176="","",VLOOKUP(S176,Tabelle!$I$5:$N$7,6,FALSE))) ->  | AE176: =IF(D176="",0,IF(D176=D175,COUNTIF(D$9:D175,D176)+1,1)) -> 0 | AF176: 0 | AG176: 0
A177: 169 | B177: -1900 | C177: -1900-0 | T177: =IF(G$2034=1,"",IF(S177="","",VLOOKUP(S177,Tabelle!$I$5:$M$7,5,FALSE))) ->  | U177: =IF(G$2034=1,"",IF(S177="","",VLOOKUP(S177,Tabelle!$I$5:$N$7,6,FALSE))) ->  | AE177: =IF(D177="",0,IF(D177=D176,COUNTIF(D$9:D176,D177)+1,1)) -> 0 | AF177: 0 | AG177: 0
A178: 170 | B178: -1900 | C178: -1900-0 | T178: =IF(G$2034=1,"",IF(S178="","",VLOOKUP(S178,Tabelle!$I$5:$M$7,5,FALSE))) ->  | U178: =IF(G$2034=1,"",IF(S178="","",VLOOKUP(S178,Tabelle!$I$5:$N$7,6,FALSE))) ->  | AE178: =IF(D178="",0,IF(D178=D177,COUNTIF(D$9:D177,D178)+1,1)) -> 0 | AF178: 0 | AG178: 0
A179: 171 | B179: -1900 | C179: -1900-0 | T179: =IF(G$2034=1,"",IF(S179="","",VLOOKUP(S179,Tabelle!$I$5:$M$7,5,FALSE))) ->  | U179: =IF(G$2034=1,"",IF(S179="","",VLOOKUP(S179,Tabelle!$I$5:$N$7,6,FALSE))) ->  | AE179: =IF(D179="",0,IF(D179=D178,COUNTIF(D$9:D178,D179)+1,1)) -> 0 | AF179: 0 | AG179: 0
A180: 172 | B180: -1900 | C180: -1900-0 | T180: =IF(G$2034=1,"",IF(S180="","",VLOOKUP(S180,Tabelle!$I$5:$M$7,5,FALSE))) ->  | U180: =IF(G$2034=1,"",IF(S180="","",VLOOKUP(S180,Tabelle!$I$5:$N$7,6,FALSE))) ->  | AE180: =IF(D180="",0,IF(D180=D179,COUNTIF(D$9:D179,D180)+1,1)) -> 0 | AF180: 0 | AG180: 0
A181: 173 | B181: -1900 | C181: -1900-0 | T181: =IF(G$2034=1,"",IF(S181="","",VLOOKUP(S181,Tabelle!$I$5:$M$7,5,FALSE))) ->  | U181: =IF(G$2034=1,"",IF(S181="","",VLOOKUP(S181,Tabelle!$I$5:$N$7,6,FALSE))) ->  | AE181: =IF(D181="",0,IF(D181=D180,COUNTIF(D$9:D180,D181)+1,1)) -> 0 | AF181: 0 | AG181: 0
A182: 174 | B182: -1900 | C182: -1900-0 | T182: =IF(G$2034=1,"",IF(S182="","",VLOOKUP(S182,Tabelle!$I$5:$M$7,5,FALSE))) ->  | U182: =IF(G$2034=1,"",IF(S182="","",VLOOKUP(S182,Tabelle!$I$5:$N$7,6,FALSE))) ->  | AE182: =IF(D182="",0,IF(D182=D181,COUNTIF(D$9:D181,D182)+1,1)) -> 0 | AF182: 0 | AG182: 0
A183: 175 | B183: -1900 | C183: -1900-0 | T183: =IF(G$2034=1,"",IF(S183="","",VLOOKUP(S183,Tabelle!$I$5:$M$7,5,FALSE))) ->  | U183: =IF(G$2034=1,"",IF(S183="","",VLOOKUP(S183,Tabelle!$I$5:$N$7,6,FALSE))) ->  | AE183: =IF(D183="",0,IF(D183=D182,COUNTIF(D$9:D182,D183)+1,1)) -> 0 | AF183: 0 | AG183: 0
A184: 176 | B184: -1900 | C184: -1900-0 | T184: =IF(G$2034=1,"",IF(S184="","",VLOOKUP(S184,Tabelle!$I$5:$M$7,5,FALSE))) ->  | U184: =IF(G$2034=1,"",IF(S184="","",VLOOKUP(S184,Tabelle!$I$5:$N$7,6,FALSE))) ->  | AE184: =IF(D184="",0,IF(D184=D183,COUNTIF(D$9:D183,D184)+1,1)) -> 0 | AF184: 0 | AG184: 0
A185: 177 | B185: -1900 | C185: -1900-0 | T185: =IF(G$2034=1,"",IF(S185="","",VLOOKUP(S185,Tabelle!$I$5:$M$7,5,FALSE))) ->  | U185: =IF(G$2034=1,"",IF(S185="","",VLOOKUP(S185,Tabelle!$I$5:$N$7,6,FALSE))) ->  | AE185: =IF(D185="",0,IF(D185=D184,COUNTIF(D$9:D184,D185)+1,1)) -> 0 | AF185: 0 | AG185: 0
A186: 178 | B186: -1900 | C186: -1900-0 | T186: =IF(G$2034=1,"",IF(S186="","",VLOOKUP(S186,Tabelle!$I$5:$M$7,5,FALSE))) ->  | U186: =IF(G$2034=1,"",IF(S186="","",VLOOKUP(S186,Tabelle!$I$5:$N$7,6,FALSE))) ->  | AE186: =IF(D186="",0,IF(D186=D185,COUNTIF(D$9:D185,D186)+1,1)) -> 0 | AF186: 0 | AG186: 0
A187: 179 | B187: -1900 | C187: -1900-0 | T187: =IF(G$2034=1,"",IF(S187="","",VLOOKUP(S187,Tabelle!$I$5:$M$7,5,FALSE))) ->  | U187: =IF(G$2034=1,"",IF(S187="","",VLOOKUP(S187,Tabelle!$I$5:$N$7,6,FALSE))) ->  | AE187: =IF(D187="",0,IF(D187=D186,COUNTIF(D$9:D186,D187)+1,1)) -> 0 | AF187: 0 | AG187: 0
A188: 180 | B188: -1900 | C188: -1900-0 | T188: =IF(G$2034=1,"",IF(S188="","",VLOOKUP(S188,Tabelle!$I$5:$M$7,5,FALSE))) ->  | U188: =IF(G$2034=1,"",IF(S188="","",VLOOKUP(S188,Tabelle!$I$5:$N$7,6,FALSE))) ->  | AE188: =IF(D188="",0,IF(D188=D187,COUNTIF(D$9:D187,D188)+1,1)) -> 0 | AF188: 0 | AG188: 0
A189: 181 | B189: -1900 | C189: -1900-0 | T189: =IF(G$2034=1,"",IF(S189="","",VLOOKUP(S189,Tabelle!$I$5:$M$7,5,FALSE))) ->  | U189: =IF(G$2034=1,"",IF(S189="","",VLOOKUP(S189,Tabelle!$I$5:$N$7,6,FALSE))) ->  | AE189: =IF(D189="",0,IF(D189=D188,COUNTIF(D$9:D188,D189)+1,1)) -> 0 | AF189: 0 | AG189: 0
A190: 182 | B190: -1900 | C190: -1900-0 | T190: =IF(G$2034=1,"",IF(S190="","",VLOOKUP(S190,Tabelle!$I$5:$M$7,5,FALSE))) ->  | U190: =IF(G$2034=1,"",IF(S190="","",VLOOKUP(S190,Tabelle!$I$5:$N$7,6,FALSE))) ->  | AE190: =IF(D190="",0,IF(D190=D189,COUNTIF(D$9:D189,D190)+1,1)) -> 0 | AF190: 0 | AG190: 0
A191: 183 | B191: -1900 | C191: -1900-0 | T191: =IF(G$2034=1,"",IF(S191="","",VLOOKUP(S191,Tabelle!$I$5:$M$7,5,FALSE))) ->  | U191: =IF(G$2034=1,"",IF(S191="","",VLOOKUP(S191,Tabelle!$I$5:$N$7,6,FALSE))) ->  | AE191: =IF(D191="",0,IF(D191=D190,COUNTIF(D$9:D190,D191)+1,1)) -> 0 | AF191: 0 | AG191: 0
A192: 184 | B192: -1900 | C192: -1900-0 | T192: =IF(G$2034=1,"",IF(S192="","",VLOOKUP(S192,Tabelle!$I$5:$M$7,5,FALSE))) ->  | U192: =IF(G$2034=1,"",IF(S192="","",VLOOKUP(S192,Tabelle!$I$5:$N$7,6,FALSE))) ->  | AE192: =IF(D192="",0,IF(D192=D191,COUNTIF(D$9:D191,D192)+1,1)) -> 0 | AF192: 0 | AG192: 0
A193: 185 | B193: -1900 | C193: -1900-0 | T193: =IF(G$2034=1,"",IF(S193="","",VLOOKUP(S193,Tabelle!$I$5:$M$7,5,FALSE))) ->  | U193: =IF(G$2034=1,"",IF(S193="","",VLOOKUP(S193,Tabelle!$I$5:$N$7,6,FALSE))) ->  | AE193: =IF(D193="",0,IF(D193=D192,COUNTIF(D$9:D192,D193)+1,1)) -> 0 | AF193: 0 | AG193: 0
A194: 186 | B194: -1900 | C194: -1900-0 | T194: =IF(G$2034=1,"",IF(S194="","",VLOOKUP(S194,Tabelle!$I$5:$M$7,5,FALSE))) ->  | U194: =IF(G$2034=1,"",IF(S194="","",VLOOKUP(S194,Tabelle!$I$5:$N$7,6,FALSE))) ->  | AE194: =IF(D194="",0,IF(D194=D193,COUNTIF(D$9:D193,D194)+1,1)) -> 0 | AF194: 0 | AG194: 0
A195: 187 | B195: -1900 | C195: -1900-0 | T195: =IF(G$2034=1,"",IF(S195="","",VLOOKUP(S195,Tabelle!$I$5:$M$7,5,FALSE))) ->  | U195: =IF(G$2034=1,"",IF(S195="","",VLOOKUP(S195,Tabelle!$I$5:$N$7,6,FALSE))) ->  | AE195: =IF(D195="",0,IF(D195=D194,COUNTIF(D$9:D194,D195)+1,1)) -> 0 | AF195: 0 | AG195: 0
A196: 188 | B196: -1900 | C196: -1900-0 | T196: =IF(G$2034=1,"",IF(S196="","",VLOOKUP(S196,Tabelle!$I$5:$M$7,5,FALSE))) ->  | U196: =IF(G$2034=1,"",IF(S196="","",VLOOKUP(S196,Tabelle!$I$5:$N$7,6,FALSE))) ->  | AE196: =IF(D196="",0,IF(D196=D195,COUNTIF(D$9:D195,D196)+1,1)) -> 0 | AF196: 0 | AG196: 0
A197: 189 | B197: -1900 | C197: -1900-0 | T197: =IF(G$2034=1,"",IF(S197="","",VLOOKUP(S197,Tabelle!$I$5:$M$7,5,FALSE))) ->  | U197: =IF(G$2034=1,"",IF(S197="","",VLOOKUP(S197,Tabelle!$I$5:$N$7,6,FALSE))) ->  | AE197: =IF(D197="",0,IF(D197=D196,COUNTIF(D$9:D196,D197)+1,1)) -> 0 | AF197: 0 | AG197: 0
A198: 190 | B198: -1900 | C198: -1900-0 | T198: =IF(G$2034=1,"",IF(S198="","",VLOOKUP(S198,Tabelle!$I$5:$M$7,5,FALSE))) ->  | U198: =IF(G$2034=1,"",IF(S198="","",VLOOKUP(S198,Tabelle!$I$5:$N$7,6,FALSE))) ->  | AE198: =IF(D198="",0,IF(D198=D197,COUNTIF(D$9:D197,D198)+1,1)) -> 0 | AF198: 0 | AG198: 0
A199: 191 | B199: -1900 | C199: -1900-0 | T199: =IF(G$2034=1,"",IF(S199="","",VLOOKUP(S199,Tabelle!$I$5:$M$7,5,FALSE))) ->  | U199: =IF(G$2034=1,"",IF(S199="","",VLOOKUP(S199,Tabelle!$I$5:$N$7,6,FALSE))) ->  | AE199: =IF(D199="",0,IF(D199=D198,COUNTIF(D$9:D198,D199)+1,1)) -> 0 | AF199: 0 | AG199: 0
A200: 192 | B200: -1900 | C200: -1900-0 | T200: =IF(G$2034=1,"",IF(S200="","",VLOOKUP(S200,Tabelle!$I$5:$M$7,5,FALSE))) ->  | U200: =IF(G$2034=1,"",IF(S200="","",VLOOKUP(S200,Tabelle!$I$5:$N$7,6,FALSE))) ->  | AE200: =IF(D200="",0,IF(D200=D199,COUNTIF(D$9:D199,D200)+1,1)) -> 0 | AF200: 0 | AG200: 0
A201: 193 | B201: -1900 | C201: =IF(G$2034=1,0,B201&"-"&AE201) -> -1900-0 | K201: =IF(G$2034=1,0,IF(OR(J201="",ISERROR($O$2034)),"",VLOOKUP(J201,$L$2019:$N$2027,2,FALSE))) ->  | T201: =IF(G$2034=1,"",IF(S201="","",VLOOKUP(S201,Tabelle!$I$5:$M$7,5,FALSE))) ->  | U201: =IF(G$2034=1,"",IF(S201="","",VLOOKUP(S201,Tabelle!$I$5:$N$7,6,FALSE))) ->  | AE201: =IF(D201="",0,IF(D201=D200,COUNTIF(D$9:D200,D201)+1,1)) -> 0 | AF201: 0 | AG201: 0
A202: 194 | B202: =IF(AG202=$AG$2013,0,IF(G$2034=1,0,D202&"-"&YEAR(E202))) -> -1900 | C202: -1900-0 | T202: =IF(G$2034=1,"",IF(S202="","",VLOOKUP(S202,Tabelle!$I$5:$M$7,5,FALSE))) ->  | U202: =IF(G$2034=1,"",IF(S202="","",VLOOKUP(S202,Tabelle!$I$5:$N$7,6,FALSE))) ->  | AE202: =IF(D202="",0,IF(D202=D201,COUNTIF(D$9:D201,D202)+1,1)) -> 0 | AF202: =IF(G$2034=1,0,IF(AE202=28,1,0)) -> 0 | AG202: =IF(E202>0,IF(OR(MONTH(E202)<$G$2026,MONTH(E202)>$G$2027),AG$2013,0),0) -> 0
... 1822 more rows

Sheet F24 con Elementi Identificativi
AT2: ANNO
AT3: 2024
AE4: =VLOOKUP(VLOOKUP(AT7&"-"&AT3,'DOCUMENTI EMESSI'!B9:S2008,18,FALSE),Tabelle!I5:J7,2,FALSE) -> Nome Banca 1 / modifica sigla
AE6: =VLOOKUP(VLOOKUP(AT7&"-"&AT3,'DOCUMENTI EMESSI'!B9:S2008,18,FALSE),Tabelle!I5:K7,3,FALSE) -> Nome Agenzia 1 | AP6: =VLOOKUP(VLOOKUP(AT7&"-"&AT3,'DOCUMENTI EMESSI'!B9:S2008,18,FALSE),Tabelle!I5:L7,4,FALSE) -> XX | AT6: Protocollo DOC.
AT7: 1
N9: =MID(CONTRIBUENTE!$E34,1,1) -> 0 | O9: =MID(CONTRIBUENTE!$E34,2,1) -> 1 | P9: =MID(CONTRIBUENTE!$E34,3,1) -> 2 | Q9: =MID(CONTRIBUENTE!$E34,4,1) -> 3 | R9: =MID(CONTRIBUENTE!$E34,5,1) -> 4 | S9: =MID(CONTRIBUENTE!$E34,6,1) -> 5 | T9: =MID(CONTRIBUENTE!$E34,7,1) -> 6 | U9: =MID(CONTRIBUENTE!$E34,8,1) -> 7 | V9: =MID(CONTRIBUENTE!$E34,9,1) -> 8 | W9: =MID(CONTRIBUENTE!$E34,10,1) -> 9 | X9: =MID(CONTRIBUENTE!$E34,11,1) -> 1 | Y9: =MID(CONTRIBUENTE!$E34,12,1) ->  | Z9: =MID(CONTRIBUENTE!$E34,13,1) ->  | AA9: =MID(CONTRIBUENTE!$E34,14,1) ->  | AC9: =MID(CONTRIBUENTE!$E34,15,1) ->  | AD9: =MID(CONTRIBUENTE!$E34,16,1) -> 
N11: =CONTRIBUENTE!E36 -> Anagrafica CONTRIBUENTE | AM11: =CONTRIBUENTE!E38 -> Nome CONTRIBUENTE
N13: =MID(TEXT(CONTRIBUENTE!$J38,"gg/mm/aaaa"),1,1) -> 0 | O13: =MID(TEXT(CONTRIBUENTE!$J38,"gg/mm/aaaa"),2,1) -> 1 | P13: =MID(TEXT(CONTRIBUENTE!$J38,"gg/mm/aaaa"),4,1) -> 0 | Q13: =MID(TEXT(CONTRIBUENTE!$J38,"gg/mm/aaaa"),5,1) -> 1 | R13: =MID(TEXT(CONTRIBUENTE!$J38,"gg/mm/aaaa"),7,1) -> 2 | S13: =MID(TEXT(CONTRIBUENTE!$J38,"gg/mm/aaaa"),8,1) -> 0 | T13: =MID(TEXT(CONTRIBUENTE!$J38,"gg/mm/aaaa"),9,1) -> 0 | U13: =MID(TEXT(CONTRIBUENTE!$J38,"gg/mm/aaaa"),10,1) -> 0 | W13: =VLOOKUP(CONTRIBUENTE!M38,CONTRIBUENTE!E119:F120,2,FALSE) -> M | Y13: =CONTRIBUENTE!E40 -> 0 | AP13: =LEFT(CONTRIBUENTE!J40,1) ->  | AR13: =RIGHT(CONTRIBUENTE!J40,1) ->  | AT13: Alfanumerico
AT14: =VLOOKUP(AT7&"-"&AT3,'DOCUMENTI EMESSI'!B9:Q2008,16,FALSE) -> AB 000
M15: =CONTRIBUENTE!E43 -> 0 | AD15: =LEFT(CONTRIBUENTE!J43,1) ->  | AE15: =RIGHT(CONTRIBUENTE!J43,1) ->  | AH15: =CONTRIBUENTE!E45 -> ……………..
S17: =MID(CONTRIBUENTE!$E48,1,1) ->  | T17: =MID(CONTRIBUENTE!$E48,2,1) ->  | U17: =MID(CONTRIBUENTE!$E48,3,1) ->  | V17: =MID(CONTRIBUENTE!$E48,4,1) ->  | W17: =MID(CONTRIBUENTE!$E48,5,1) ->  | X17: =MID(CONTRIBUENTE!$E48,6,1) ->  | Y17: =MID(CONTRIBUENTE!$E48,7,1) ->  | Z17: =MID(CONTRIBUENTE!$E48,8,1) ->  | AA17: =MID(CONTRIBUENTE!$E48,9,1) ->  | AC17: =MID(CONTRIBUENTE!$E48,10,1) ->  | AD17: =MID(CONTRIBUENTE!$E48,11,1) ->  | AE17: =MID(CONTRIBUENTE!$E48,12,1) ->  | AG17: =MID(CONTRIBUENTE!$E48,13,1) ->  | AI17: =MID(CONTRIBUENTE!$E48,14,1) ->  | AJ17: =MID(CONTRIBUENTE!$E48,15,1) ->  | AK17: =MID(CONTRIBUENTE!$E48,16,1) ->  | AP17: =LEFT(CONTRIBUENTE!J48,1) ->  | AR17: =RIGHT(CONTRIBUENTE!J48) ->  | AT17: =IF(OR(L73=0,ISERROR(AO74)),'F24 con Elementi Identificativi'!L72,"") -> 
C20: =MID(VLOOKUP(AT7&"-"&AT3,'DOCUMENTI EMESSI'!B9:G2008,6,FALSE),1,1) -> 0 | E20: =MID(VLOOKUP(AT7&"-"&AT3,'DOCUMENTI EMESSI'!B9:G2008,6,FALSE),2,1) -> 0 | G20: =MID(VLOOKUP(AT7&"-"&AT3,'DOCUMENTI EMESSI'!B9:G2008,6,FALSE),3,1) -> 0 | J20: =MID(VLOOKUP(AT7&"-"&AT3,'DOCUMENTI EMESSI'!B9:H2008,7,FALSE),1,1) -> 0 | L20: =MID(VLOOKUP(AT7&"-"&AT3,'DOCUMENTI EMESSI'!B9:H2008,7,FALSE),2,1) -> 0 | N20: =MID(VLOOKUP(AT7&"-"&AT3,'DOCUMENTI EMESSI'!B9:H2008,7,FALSE),3,1) -> 0 | O20: =MID(VLOOKUP(AT7&"-"&AT3,'DOCUMENTI EMESSI'!B9:H2008,7,FALSE),4,1) -> 0 | P20: =MID(VLOOKUP(AT7&"-"&AT3,'DOCUMENTI EMESSI'!B9:H2008,7,FALSE),5,1) -> 0 | Q20: =MID(VLOOKUP(AT7&"-"&AT3,'DOCUMENTI EMESSI'!B9:H2008,7,FALSE),5,1) -> 0 | R20: =MID(VLOOKUP(AT7&"-"&AT3,'DOCUMENTI EMESSI'!B9:H2008,7,FALSE),7,1) -> 0 | S20: =MID(VLOOKUP(AT7&"-"&AT3,'DOCUMENTI EMESSI'!B9:H2008,7,FALSE),8,1) -> 0 | T20: =MID(VLOOKUP(AT7&"-"&AT3,'DOCUMENTI EMESSI'!B9:H2008,7,FALSE),9,1) -> 0 | U20: =MID(VLOOKUP(AT7&"-"&AT3,'DOCUMENTI EMESSI'!B9:H2008,7,FALSE),10,1) -> 0 | V20: =MID(VLOOKUP(AT7&"-"&AT3,'DOCUMENTI EMESSI'!B9:H2008,7,FALSE),11,1) -> 0
AT21: Note
A22: 1 | C22: =VLOOKUP($AT$7&"-"&AT$3&"-"&$A22,'DOCUMENTI EMESSI'!$C$9:$K$2008,9,FALSE) -> . | F22: =MID(VLOOKUP($AT$7&"-"&AT$3&"-"&$A22,'DOCUMENTI EMESSI'!$C$9:$L$2008,10,FALSE),1,1) -> 0 | H22: =MID(VLOOKUP($AT$7&"-"&AT$3&"-"&$A22,'DOCUMENTI EMESSI'!$C$9:$L$2008,10,FALSE),2,1) -> 0 | J22: =MID(VLOOKUP($AT$7&"-"&AT$3&"-"&$A22,'DOCUMENTI EMESSI'!$C$9:$L$2008,10,FALSE),3,1) -> 0 | L22: =MID(VLOOKUP($AT$7&"-"&AT$3&"-"&$A22,'DOCUMENTI EMESSI'!$C$9:$L$2008,10,FALSE),4,1) -> 0 | N22: =MID(VLOOKUP($AT$7&"-"&AT$3&"-"&$A22,'DOCUMENTI EMESSI'!$C$9:$L$2008,10,FALSE),5,1) -> 0 | O22: =MID(VLOOKUP($AT$7&"-"&AT$3&"-"&$A22,'DOCUMENTI EMESSI'!$C$9:$L$2008,10,FALSE),6,1) -> 0 | P22: =MID(VLOOKUP($AT$7&"-"&AT$3&"-"&$A22,'DOCUMENTI EMESSI'!$C$9:$L$2008,10,FALSE),7,1) -> 0 | Q22: =MID(VLOOKUP($AT$7&"-"&AT$3&"-"&$A22,'DOCUMENTI EMESSI'!$C$9:$L$2008,10,FALSE),8,1) -> 0 | R22: =MID(VLOOKUP($AT$7&"-"&AT$3&"-"&$A22,'DOCUMENTI EMESSI'!$C$9:$L$2008,10,FALSE),9,1) -> 0 | S22: =MID(VLOOKUP($AT$7&"-"&AT$3&"-"&$A22,'DOCUMENTI EMESSI'!$C$9:$L$2008,10,FALSE),10,1) -> 0 | T22: =MID(VLOOKUP($AT$7&"-"&AT$3&"-"&$A22,'DOCUMENTI EMESSI'!$C$9:$L$2008,10,FALSE),11,1) -> 0 | U22: =MID(VLOOKUP($AT$7&"-"&AT$3&"-"&$A22,'DOCUMENTI EMESSI'!$C$9:$L$2008,10,FALSE),12,1) -> 0 | V22: =MID(VLOOKUP($AT$7&"-"&AT$3&"-"&$A22,'DOCUMENTI EMESSI'!$C$9:$L$2008,10,FALSE),13,1) -> 0 | W22: =MID(VLOOKUP($AT$7&"-"&AT$3&"-"&$A22,'DOCUMENTI EMESSI'!$C$9:$L$2008,10,FALSE),14,1) -> 0 | X22: =MID(VLOOKUP($AT$7&"-"&AT$3&"-"&$A22,'DOCUMENTI EMESSI'!$C$9:$L$2008,10,FALSE),15,1) -> 0 | Y22: =MID(VLOOKUP($AT$7&"-"&AT$3&"-"&$A22,'DOCUMENTI EMESSI'!$C$9:$L$2008,10,FALSE),16,1) -> 0 | Z22: =MID(VLOOKUP($AT$7&"-"&AT$3&"-"&$A22,'DOCUMENTI EMESSI'!$C$9:$L$2008,10,FALSE),17,1) -> 0 | AB22: =VLOOKUP($AT$7&"-"&AT$3&"-"&$A22,'DOCUMENTI EMESSI'!$C$9:$M$2008,11,FALSE) -> 0000 | AG22: =VLOOKUP($AT$7&"-"&AT$3&"-"&$A22,'DOCUMENTI EMESSI'!$C$9:$N$2008,12,FALSE) -> 2020 | AM22: =FLOOR(VLOOKUP($AT$7&"-"&AT$3&"-"&$A22,'DOCUMENTI EMESSI'!$C$9:$O$2008,13,FALSE),1) -> 1 | AR22: =LEFT(RIGHT(TEXT(VLOOKUP($AT$7&"-"&AT$3&"-"&$A22,'DOCUMENTI EMESSI'!$C$9:$O$2008,13,FALSE),"0,00"),2),1) -> 0 | AS22: =RIGHT(TEXT(VLOOKUP($AT$7&"-"&AT$3&"-"&$A22,'DOCUMENTI EMESSI'!$C$9:$O$2008,13,FALSE),"0,00"),1) -> 0 | AT22: =VLOOKUP($AT$7&"-"&$AT$3&"-"&A22,'DOCUMENTI EMESSI'!$C$9:$AC$2008,27,FALSE) -> Testo Libero
A23: =A22+1 -> 2 | C23: =VLOOKUP($AT$7&"-"&AT$3&"-"&$A23,'DOCUMENTI EMESSI'!$C$9:$K$2008,9,FALSE) ->  | F23: =MID(VLOOKUP($AT$7&"-"&AT$3&"-"&$A23,'DOCUMENTI EMESSI'!$C$9:$L$2008,10,FALSE),1,1) ->  | H23: =MID(VLOOKUP($AT$7&"-"&AT$3&"-"&$A23,'DOCUMENTI EMESSI'!$C$9:$L$2008,10,FALSE),2,1) ->  | J23: =MID(VLOOKUP($AT$7&"-"&AT$3&"-"&$A23,'DOCUMENTI EMESSI'!$C$9:$L$2008,10,FALSE),3,1) ->  | L23: =MID(VLOOKUP($AT$7&"-"&AT$3&"-"&$A23,'DOCUMENTI EMESSI'!$C$9:$L$2008,10,FALSE),4,1) ->  | N23: =MID(VLOOKUP($AT$7&"-"&AT$3&"-"&$A23,'DOCUMENTI EMESSI'!$C$9:$L$2008,10,FALSE),5,1) ->  | O23: =MID(VLOOKUP($AT$7&"-"&AT$3&"-"&$A23,'DOCUMENTI EMESSI'!$C$9:$L$2008,10,FALSE),6,1) ->  | P23: =MID(VLOOKUP($AT$7&"-"&AT$3&"-"&$A23,'DOCUMENTI EMESSI'!$C$9:$L$2008,10,FALSE),7,1) ->  | Q23: =MID(VLOOKUP($AT$7&"-"&AT$3&"-"&$A23,'DOCUMENTI EMESSI'!$C$9:$L$2008,10,FALSE),8,1) ->  | R23: =MID(VLOOKUP($AT$7&"-"&AT$3&"-"&$A23,'DOCUMENTI EMESSI'!$C$9:$L$2008,10,FALSE),9,1) ->  | S23: =MID(VLOOKUP($AT$7&"-"&AT$3&"-"&$A23,'DOCUMENTI EMESSI'!$C$9:$L$2008,10,FALSE),10,1) ->  | T23: =MID(VLOOKUP($AT$7&"-"&AT$3&"-"&$A23,'DOCUMENTI EMESSI'!$C$9:$L$2008,10,FALSE),11,1) ->  | U23: =MID(VLOOKUP($AT$7&"-"&AT$3&"-"&$A23,'DOCUMENTI EMESSI'!$C$9:$L$2008,10,FALSE),12,1) ->  | V23: =MID(VLOOKUP($AT$7&"-"&AT$3&"-"&$A23,'DOCUMENTI EMESSI'!$C$9:$L$2008,10,FALSE),13,1) ->  | W23: =MID(VLOOKUP($AT$7&"-"&AT$3&"-"&$A23,'DOCUMENTI EMESSI'!$C$9:$L$2008,10,FALSE),14,1) ->  | X23: =MID(VLOOKUP($AT$7&"-"&AT$3&"-"&$A23,'DOCUMENTI EMESSI'!$C$9:$L$2008,10,FALSE),15,1) ->  | Y23: =MID(VLOOKUP($AT$7&"-"&AT$3&"-"&$A23,'DOCUMENTI EMESSI'!$C$9:$L$2008,10,FALSE),16,1) ->  | Z23: =MID(VLOOKUP($AT$7&"-"&AT$3&"-"&$A23,'DOCUMENTI EMESSI'!$C$9:$L$2008,10,FALSE),17,1) ->  | AB23: =VLOOKUP($AT$7&"-"&AT$3&"-"&$A23,'DOCUMENTI EMESSI'!$C$9:$M$2008,11,FALSE) ->  | AG23: =VLOOKUP($AT$7&"-"&AT$3&"-"&$A23,'DOCUMENTI EMESSI'!$C$9:$N$2008,12,FALSE) ->  | AM23: =FLOOR(VLOOKUP($AT$7&"-"&AT$3&"-"&$A23,'DOCUMENTI EMESSI'!$C$9:$O$2008,13,FALSE),1) ->  | AR23: =LEFT(RIGHT(TEXT(VLOOKUP($AT$7&"-"&AT$3&"-"&$A23,'DOCUMENTI EMESSI'!$C$9:$O$2008,13,FALSE),"0,00"),2),1) ->  | AS23: =RIGHT(TEXT(VLOOKUP($AT$7&"-"&AT$3&"-"&$A23,'DOCUMENTI EMESSI'!$C$9:$O$2008,13,FALSE),"0,00"),1) ->  | AT23: =VLOOKUP($AT$7&"-"&$AT$3&"-"&A23,'DOCUMENTI EMESSI'!$C$9:$AC$2008,27,FALSE) -> 
A24: =A23+1 -> 3 | C24: =VLOOKUP($AT$7&"-"&AT$3&"-"&$A24,'DOCUMENTI EMESSI'!$C$9:$K$2008,9,FALSE) ->  | F24: =MID(VLOOKUP($AT$7&"-"&AT$3&"-"&$A24,'DOCUMENTI EMESSI'!$C$9:$L$2008,10,FALSE),1,1) ->  | H24: =MID(VLOOKUP($AT$7&"-"&AT$3&"-"&$A24,'DOCUMENTI EMESSI'!$C$9:$L$2008,10,FALSE),2,1) ->  | J24: =MID(VLOOKUP($AT$7&"-"&AT$3&"-"&$A24,'DOCUMENTI EMESSI'!$C$9:$L$2008,10,FALSE),3,1) ->  | L24: =MID(VLOOKUP($AT$7&"-"&AT$3&"-"&$A24,'DOCUMENTI EMESSI'!$C$9:$L$2008,10,FALSE),4,1) ->  | N24: =MID(VLOOKUP($AT$7&"-"&AT$3&"-"&$A24,'DOCUMENTI EMESSI'!$C$9:$L$2008,10,FALSE),5,1) ->  | O24: =MID(VLOOKUP($AT$7&"-"&AT$3&"-"&$A24,'DOCUMENTI EMESSI'!$C$9:$L$2008,10,FALSE),6,1) ->  | P24: =MID(VLOOKUP($AT$7&"-"&AT$3&"-"&$A24,'DOCUMENTI EMESSI'!$C$9:$L$2008,10,FALSE),7,1) ->  | Q24: =MID(VLOOKUP($AT$7&"-"&AT$3&"-"&$A24,'DOCUMENTI EMESSI'!$C$9:$L$2008,10,FALSE),8,1) ->  | R24: =MID(VLOOKUP($AT$7&"-"&AT$3&"-"&$A24,'DOCUMENTI EMESSI'!$C$9:$L$2008,10,FALSE),9,1) ->  | S24: =MID(VLOOKUP($AT$7&"-"&AT$3&"-"&$A24,'DOCUMENTI EMESSI'!$C$9:$L$2008,10,FALSE),10,1) ->  | T24: =MID(VLOOKUP($AT$7&"-"&AT$3&"-"&$A24,'DOCUMENTI EMESSI'!$C$9:$L$2008,10,FALSE),11,1) ->  | U24: =MID(VLOOKUP($AT$7&"-"&AT$3&"-"&$A24,'DOCUMENTI EMESSI'!$C$9:$L$2008,10,FALSE),12,1) ->  | V24: =MID(VLOOKUP($AT$7&"-"&AT$3&"-"&$A24,'DOCUMENTI EMESSI'!$C$9:$L$2008,10,FALSE),13,1) ->  | W24: =MID(VLOOKUP($AT$7&"-"&AT$3&"-"&$A24,'DOCUMENTI EMESSI'!$C$9:$L$2008,10,FALSE),14,1) ->  | X24: =MID(VLOOKUP($AT$7&"-"&AT$3&"-"&$A24,'DOCUMENTI EMESSI'!$C$9:$L$2008,10,FALSE),15,1) ->  | Y24: =MID(VLOOKUP($AT$7&"-"&AT$3&"-"&$A24,'DOCUMENTI EMESSI'!$C$9:$L$2008,10,FALSE),16,1) ->  | Z24: =MID(VLOOKUP($AT$7&"-"&AT$3&"-"&$A24,'DOCUMENTI EMESSI'!$C$9:$L$2008,10,FALSE),17,1) ->  | AB24: =VLOOKUP($AT$7&"-"&AT$3&"-"&$A24,'DOCUMENTI EMESSI'!$C$9:$M$2008,11,FALSE) ->  | AF24: =FLOOR('DOCUMENTI EMESSI'!N9,1) -> 2020 | AG24: =VLOOKUP($AT$7&"-"&AT$3&"-"&$A24,'DOCUMENTI EMESSI'!$C$9:$N$2008,12,FALSE) ->  | AM24: =FLOOR(VLOOKUP($AT$7&"-"&AT$3&"-"&$A24,'DOCUMENTI EMESSI'!$C$9:$O$2008,13,FALSE),1) ->  | AR24: =LEFT(RIGHT(TEXT(VLOOKUP($AT$7&"-"&AT$3&"-"&$A24,'DOCUMENTI EMESSI'!$C$9:$O$2008,13,FALSE),"0,00"),2),1) ->  | AS24: =RIGHT(TEXT(VLOOKUP($AT$7&"-"&AT$3&"-"&$A24,'DOCUMENTI EMESSI'!$C$9:$O$2008,13,FALSE),"0,00"),1) ->  | AT24: =VLOOKUP($AT$7&"-"&$AT$3&"-"&A24,'DOCUMENTI EMESSI'!$C$9:$AC$2008,27,FALSE) -> 
A25: 4 | C25: =VLOOKUP($AT$7&"-"&AT$3&"-"&$A25,'DOCUMENTI EMESSI'!$C$9:$K$2008,9,FALSE) ->  | F25: =MID(VLOOKUP($AT$7&"-"&AT$3&"-"&$A25,'DOCUMENTI EMESSI'!$C$9:$L$2008,10,FALSE),1,1) ->  | H25: =MID(VLOOKUP($AT$7&"-"&AT$3&"-"&$A25,'DOCUMENTI EMESSI'!$C$9:$L$2008,10,FALSE),2,1) ->  | J25: =MID(VLOOKUP($AT$7&"-"&AT$3&"-"&$A25,'DOCUMENTI EMESSI'!$C$9:$L$2008,10,FALSE),3,1) ->  | L25: =MID(VLOOKUP($AT$7&"-"&AT$3&"-"&$A25,'DOCUMENTI EMESSI'!$C$9:$L$2008,10,FALSE),4,1) ->  | N25: =MID(VLOOKUP($AT$7&"-"&AT$3&"-"&$A25,'DOCUMENTI EMESSI'!$C$9:$L$2008,10,FALSE),5,1) ->  | O25: =MID(VLOOKUP($AT$7&"-"&AT$3&"-"&$A25,'DOCUMENTI EMESSI'!$C$9:$L$2008,10,FALSE),6,1) ->  | P25: =MID(VLOOKUP($AT$7&"-"&AT$3&"-"&$A25,'DOCUMENTI EMESSI'!$C$9:$L$2008,10,FALSE),7,1) ->  | Q25: =MID(VLOOKUP($AT$7&"-"&AT$3&"-"&$A25,'DOCUMENTI EMESSI'!$C$9:$L$2008,10,FALSE),8,1) ->  | R25: =MID(VLOOKUP($AT$7&"-"&AT$3&"-"&$A25,'DOCUMENTI EMESSI'!$C$9:$L$2008,10,FALSE),9,1) ->  | S25: =MID(VLOOKUP($AT$7&"-"&AT$3&"-"&$A25,'DOCUMENTI EMESSI'!$C$9:$L$2008,10,FALSE),10,1) ->  | T25: =MID(VLOOKUP($AT$7&"-"&AT$3&"-"&$A25,'DOCUMENTI EMESSI'!$C$9:$L$2008,10,FALSE),11,1) ->  | U25: =MID(VLOOKUP($AT$7&"-"&AT$3&"-"&$A25,'DOCUMENTI EMESSI'!$C$9:$L$2008,10,FALSE),12,1) ->  | V25: =MID(VLOOKUP($AT$7&"-"&AT$3&"-"&$A25,'DOCUMENTI EMESSI'!$C$9:$L$2008,10,FALSE),13,1) ->  | W25: =MID(VLOOKUP($AT$7&"-"&AT$3&"-"&$A25,'DOCUMENTI EMESSI'!$C$9:$L$2008,10,FALSE),14,1) ->  | X25: =MID(VLOOKUP($AT$7&"-"&AT$3&"-"&$A25,'DOCUMENTI EMESSI'!$C$9:$L$2008,10,FALSE),15,1) ->  | Y25: =MID(VLOOKUP($AT$7&"-"&AT$3&"-"&$A25,'DOCUMENTI EMESSI'!$C$9:$L$2008,10,FALSE),16,1) ->  | Z25: =MID(VLOOKUP($AT$7&"-"&AT$3&"-"&$A25,'DOCUMENTI EMESSI'!$C$9:$L$2008,10,FALSE),17,1) ->  | AB25: =VLOOKUP($AT$7&"-"&AT$3&"-"&$A25,'DOCUMENTI EMESSI'!$C$9:$M$2008,11,FALSE) ->  | AF25: =FLOOR('DOCUMENTI EMESSI'!N10,1) -> 2020 | AG25: =VLOOKUP($AT$7&"-"&AT$3&"-"&$A25,'DOCUMENTI EMESSI'!$C$9:$N$2008,12,FALSE) ->  | AM25: =FLOOR(VLOOKUP($AT$7&"-"&AT$3&"-"&$A25,'DOCUMENTI EMESSI'!$C$9:$O$2008,13,FALSE),1) ->  | AR25: =LEFT(RIGHT(TEXT(VLOOKUP($AT$7&"-"&AT$3&"-"&$A25,'DOCUMENTI EMESSI'!$C$9:$O$2008,13,FALSE),"0,00"),2),1) ->  | AS25: =RIGHT(TEXT(VLOOKUP($AT$7&"-"&AT$3&"-"&$A25,'DOCUMENTI EMESSI'!$C$9:$O$2008,13,FALSE),"0,00"),1) ->  | AT25: =VLOOKUP($AT$7&"-"&$AT$3&"-"&A25,'DOCUMENTI EMESSI'!$C$9:$AC$2008,27,FALSE) -> 
A26: 5 | C26: =VLOOKUP($AT$7&"-"&AT$3&"-"&$A26,'DOCUMENTI EMESSI'!$C$9:$K$2008,9,FALSE) ->  | F26: =MID(VLOOKUP($AT$7&"-"&AT$3&"-"&$A26,'DOCUMENTI EMESSI'!$C$9:$L$2008,10,FALSE),1,1) ->  | H26: =MID(VLOOKUP($AT$7&"-"&AT$3&"-"&$A26,'DOCUMENTI EMESSI'!$C$9:$L$2008,10,FALSE),2,1) ->  | J26: =MID(VLOOKUP($AT$7&"-"&AT$3&"-"&$A26,'DOCUMENTI EMESSI'!$C$9:$L$2008,10,FALSE),3,1) ->  | L26: =MID(VLOOKUP($AT$7&"-"&AT$3&"-"&$A26,'DOCUMENTI EMESSI'!$C$9:$L$2008,10,FALSE),4,1) ->  | N26: =MID(VLOOKUP($AT$7&"-"&AT$3&"-"&$A26,'DOCUMENTI EMESSI'!$C$9:$L$2008,10,FALSE),5,1) ->  | O26: =MID(VLOOKUP($AT$7&"-"&AT$3&"-"&$A26,'DOCUMENTI EMESSI'!$C$9:$L$2008,10,FALSE),6,1) ->  | P26: =MID(VLOOKUP($AT$7&"-"&AT$3&"-"&$A26,'DOCUMENTI EMESSI'!$C$9:$L$2008,10,FALSE),7,1) ->  | Q26: =MID(VLOOKUP($AT$7&"-"&AT$3&"-"&$A26,'DOCUMENTI EMESSI'!$C$9:$L$2008,10,FALSE),8,1) ->  | R26: =MID(VLOOKUP($AT$7&"-"&AT$3&"-"&$A26,'DOCUMENTI EMESSI'!$C$9:$L$2008,10,FALSE),9,1) ->  | S26: =MID(VLOOKUP($AT$7&"-"&AT$3&"-"&$A26,'DOCUMENTI EMESSI'!$C$9:$L$2008,10,FALSE),10,1) ->  | T26: =MID(VLOOKUP($AT$7&"-"&AT$3&"-"&$A26,'DOCUMENTI EMESSI'!$C$9:$L$2008,10,FALSE),11,1) ->  | U26: =MID(VLOOKUP($AT$7&"-"&AT$3&"-"&$A26,'DOCUMENTI EMESSI'!$C$9:$L$2008,10,FALSE),12,1) ->  | V26: =MID(VLOOKUP($AT$7&"-"&AT$3&"-"&$A26,'DOCUMENTI EMESSI'!$C$9:$L$2008,10,FALSE),13,1) ->  | W26: =MID(VLOOKUP($AT$7&"-"&AT$3&"-"&$A26,'DOCUMENTI EMESSI'!$C$9:$L$2008,10,FALSE),14,1) ->  | X26: =MID(VLOOKUP($AT$7&"-"&AT$3&"-"&$A26,'DOCUMENTI EMESSI'!$C$9:$L$2008,10,FALSE),15,1) ->  | Y26: =MID(VLOOKUP($AT$7&"-"&AT$3&"-"&$A26,'DOCUMENTI EMESSI'!$C$9:$L$2008,10,FALSE),16,1) ->  | Z26: =MID(VLOOKUP($AT$7&"-"&AT$3&"-"&$A26,'DOCUMENTI EMESSI'!$C$9:$L$2008,10,FALSE),17,1) ->  | AB26: =VLOOKUP($AT$7&"-"&AT$3&"-"&$A26,'DOCUMENTI EMESSI'!$C$9:$M$2008,11,FALSE) ->  | AF26: =FLOOR('DOCUMENTI EMESSI'!N11,1) -> 2020 | AG26: =VLOOKUP($AT$7&"-"&AT$3&"-"&$A26,'DOCUMENTI EMESSI'!$C$9:$N$2008,12,FALSE) ->  | AM26: =FLOOR(VLOOKUP($AT$7&"-"&AT$3&"-"&$A26,'DOCUMENTI EMESSI'!$C$9:$O$2008,13,FALSE),1) ->  | AR26: =LEFT(RIGHT(TEXT(VLOOKUP($AT$7&"-"&AT$3&"-"&$A26,'DOCUMENTI EMESSI'!$C$9:$O$2008,13,FALSE),"0,00"),2),1) ->  | AS26: =RIGHT(TEXT(VLOOKUP($AT$7&"-"&AT$3&"-"&$A26,'DOCUMENTI EMESSI'!$C$9:$O$2008,13,FALSE),"0,00"),1) ->  | AT26: =VLOOKUP($AT$7&"-"&$AT$3&"-"&A26,'DOCUMENTI EMESSI'!$C$9:$AC$2008,27,FALSE) -> 
A27: 6 | C27: =VLOOKUP($AT$7&"-"&AT$3&"-"&$A27,'DOCUMENTI EMESSI'!$C$9:$K$2008,9,FALSE) ->  | F27: =MID(VLOOKUP($AT$7&"-"&AT$3&"-"&$A27,'DOCUMENTI EMESSI'!$C$9:$L$2008,10,FALSE),1,1) ->  | H27: =MID(VLOOKUP($AT$7&"-"&AT$3&"-"&$A27,'DOCUMENTI EMESSI'!$C$9:$L$2008,10,FALSE),2,1) ->  | J27: =MID(VLOOKUP($AT$7&"-"&AT$3&"-"&$A27,'DOCUMENTI EMESSI'!$C$9:$L$2008,10,FALSE),3,1) ->  | L27: =MID(VLOOKUP($AT$7&"-"&AT$3&"-"&$A27,'DOCUMENTI EMESSI'!$C$9:$L$2008,10,FALSE),4,1) ->  | N27: =MID(VLOOKUP($AT$7&"-"&AT$3&"-"&$A27,'DOCUMENTI EMESSI'!$C$9:$L$2008,10,FALSE),5,1) ->  | O27: =MID(VLOOKUP($AT$7&"-"&AT$3&"-"&$A27,'DOCUMENTI EMESSI'!$C$9:$L$2008,10,FALSE),6,1) ->  | P27: =MID(VLOOKUP($AT$7&"-"&AT$3&"-"&$A27,'DOCUMENTI EMESSI'!$C$9:$L$2008,10,FALSE),7,1) ->  | Q27: =MID(VLOOKUP($AT$7&"-"&AT$3&"-"&$A27,'DOCUMENTI EMESSI'!$C$9:$L$2008,10,FALSE),8,1) ->  | R27: =MID(VLOOKUP($AT$7&"-"&AT$3&"-"&$A27,'DOCUMENTI EMESSI'!$C$9:$L$2008,10,FALSE),9,1) ->  | S27: =MID(VLOOKUP($AT$7&"-"&AT$3&"-"&$A27,'DOCUMENTI EMESSI'!$C$9:$L$2008,10,FALSE),10,1) ->  | T27: =MID(VLOOKUP($AT$7&"-"&AT$3&"-"&$A27,'DOCUMENTI EMESSI'!$C$9:$L$2008,10,FALSE),11,1) ->  | U27: =MID(VLOOKUP($AT$7&"-"&AT$3&"-"&$A27,'DOCUMENTI EMESSI'!$C$9:$L$2008,10,FALSE),12,1) ->  | V27: =MID(VLOOKUP($AT$7&"-"&AT$3&"-"&$A27,'DOCUMENTI EMESSI'!$C$9:$L$2008,10,FALSE),13,1) ->  | W27: =MID(VLOOKUP($AT$7&"-"&AT$3&"-"&$A27,'DOCUMENTI EMESSI'!$C$9:$L$2008,10,FALSE),14,1) ->  | X27: =MID(VLOOKUP($AT$7&"-"&AT$3&"-"&$A27,'DOCUMENTI EMESSI'!$C$9:$L$2008,10,FALSE),15,1) ->  | Y27: =MID(VLOOKUP($AT$7&"-"&AT$3&"-"&$A27,'DOCUMENTI EMESSI'!$C$9:$L$2008,10,FALSE),16,1) ->  | Z27: =MID(VLOOKUP($AT$7&"-"&AT$3&"-"&$A27,'DOCUMENTI EMESSI'!$C$9:$L$2008,10,FALSE),17,1) ->  | AB27: =VLOOKUP($AT$7&"-"&AT$3&"-"&$A27,'DOCUMENTI EMESSI'!$C$9:$M$2008,11,FALSE) ->  | AF27: =FLOOR('DOCUMENTI EMESSI'!N12,1) -> 2020 | AG27: =VLOOKUP($AT$7&"-"&AT$3&"-"&$A27,'DOCUMENTI EMESSI'!$C$9:$N$2008,12,FALSE) ->  | AM27: =FLOOR(VLOOKUP($AT$7&"-"&AT$3&"-"&$A27,'DOCUMENTI EMESSI'!$C$9:$O$2008,13,FALSE),1) ->  | AR27: =LEFT(RIGHT(TEXT(VLOOKUP($AT$7&"-"&AT$3&"-"&$A27,'DOCUMENTI EMESSI'!$C$9:$O$2008,13,FALSE),"0,00"),2),1) ->  | AS27: =RIGHT(TEXT(VLOOKUP($AT$7&"-"&AT$3&"-"&$A27,'DOCUMENTI EMESSI'!$C$9:$O$2008,13,FALSE),"0,00"),1) ->  | AT27: =VLOOKUP($AT$7&"-"&$AT$3&"-"&A27,'DOCUMENTI EMESSI'!$C$9:$AC$2008,27,FALSE) -> 
A28: 7 | C28: =VLOOKUP($AT$7&"-"&AT$3&"-"&$A28,'DOCUMENTI EMESSI'!$C$9:$K$2008,9,FALSE) ->  | F28: =MID(VLOOKUP($AT$7&"-"&AT$3&"-"&$A28,'DOCUMENTI EMESSI'!$C$9:$L$2008,10,FALSE),1,1) ->  | H28: =MID(VLOOKUP($AT$7&"-"&AT$3&"-"&$A28,'DOCUMENTI EMESSI'!$C$9:$L$2008,10,FALSE),2,1) ->  | J28: =MID(VLOOKUP($AT$7&"-"&AT$3&"-"&$A28,'DOCUMENTI EMESSI'!$C$9:$L$2008,10,FALSE),3,1) ->  | L28: =MID(VLOOKUP($AT$7&"-"&AT$3&"-"&$A28,'DOCUMENTI EMESSI'!$C$9:$L$2008,10,FALSE),4,1) ->  | N28: =MID(VLOOKUP($AT$7&"-"&AT$3&"-"&$A28,'DOCUMENTI EMESSI'!$C$9:$L$2008,10,FALSE),5,1) ->  | O28: =MID(VLOOKUP($AT$7&"-"&AT$3&"-"&$A28,'DOCUMENTI EMESSI'!$C$9:$L$2008,10,FALSE),6,1) ->  | P28: =MID(VLOOKUP($AT$7&"-"&AT$3&"-"&$A28,'DOCUMENTI EMESSI'!$C$9:$L$2008,10,FALSE),7,1) ->  | Q28: =MID(VLOOKUP($AT$7&"-"&AT$3&"-"&$A28,'DOCUMENTI EMESSI'!$C$9:$L$2008,10,FALSE),8,1) ->  | R28: =MID(VLOOKUP($AT$7&"-"&AT$3&"-"&$A28,'DOCUMENTI EMESSI'!$C$9:$L$2008,10,FALSE),9,1) ->  | S28: =MID(VLOOKUP($AT$7&"-"&AT$3&"-"&$A28,'DOCUMENTI EMESSI'!$C$9:$L$2008,10,FALSE),10,1) ->  | T28: =MID(VLOOKUP($AT$7&"-"&AT$3&"-"&$A28,'DOCUMENTI EMESSI'!$C$9:$L$2008,10,FALSE),11,1) ->  | U28: =MID(VLOOKUP($AT$7&"-"&AT$3&"-"&$A28,'DOCUMENTI EMESSI'!$C$9:$L$2008,10,FALSE),12,1) ->  | V28: =MID(VLOOKUP($AT$7&"-"&AT$3&"-"&$A28,'DOCUMENTI EMESSI'!$C$9:$L$2008,10,FALSE),13,1) ->  | W28: =MID(VLOOKUP($AT$7&"-"&AT$3&"-"&$A28,'DOCUMENTI EMESSI'!$C$9:$L$2008,10,FALSE),14,1) ->  | X28: =MID(VLOOKUP($AT$7&"-"&AT$3&"-"&$A28,'DOCUMENTI EMESSI'!$C$9:$L$2008,10,FALSE),15,1) ->  | Y28: =MID(VLOOKUP($AT$7&"-"&AT$3&"-"&$A28,'DOCUMENTI EMESSI'!$C$9:$L$2008,10,FALSE),16,1) ->  | Z28: =MID(VLOOKUP($AT$7&"-"&AT$3&"-"&$A28,'DOCUMENTI EMESSI'!$C$9:$L$2008,10,FALSE),17,1) ->  | AB28: =VLOOKUP($AT$7&"-"&AT$3&"-"&$A28,'DOCUMENTI EMESSI'!$C$9:$M$2008,11,FALSE) ->  | AF28: =FLOOR('DOCUMENTI EMESSI'!N13,1) -> 0 | AG28: =VLOOKUP($AT$7&"-"&AT$3&"-"&$A28,'DOCUMENTI EMESSI'!$C$9:$N$2008,12,FALSE) ->  | AM28: =FLOOR(VLOOKUP($AT$7&"-"&AT$3&"-"&$A28,'DOCUMENTI EMESSI'!$C$9:$O$2008,13,FALSE),1) ->  | AR28: =LEFT(RIGHT(TEXT(VLOOKUP($AT$7&"-"&AT$3&"-"&$A28,'DOCUMENTI EMESSI'!$C$9:$O$2008,13,FALSE),"0,00"),2),1) ->  | AS28: =RIGHT(TEXT(VLOOKUP($AT$7&"-"&AT$3&"-"&$A28,'DOCUMENTI EMESSI'!$C$9:$O$2008,13,FALSE),"0,00"),1) ->  | AT28: =VLOOKUP($AT$7&"-"&$AT$3&"-"&A28,'DOCUMENTI EMESSI'!$C$9:$AC$2008,27,FALSE) -> 
A29: 8 | C29: =VLOOKUP($AT$7&"-"&AT$3&"-"&$A29,'DOCUMENTI EMESSI'!$C$9:$K$2008,9,FALSE) ->  | F29: =MID(VLOOKUP($AT$7&"-"&AT$3&"-"&$A29,'DOCUMENTI EMESSI'!$C$9:$L$2008,10,FALSE),1,1) ->  | H29: =MID(VLOOKUP($AT$7&"-"&AT$3&"-"&$A29,'DOCUMENTI EMESSI'!$C$9:$L$2008,10,FALSE),2,1) ->  | J29: =MID(VLOOKUP($AT$7&"-"&AT$3&"-"&$A29,'DOCUMENTI EMESSI'!$C$9:$L$2008,10,FALSE),3,1) ->  | L29: =MID(VLOOKUP($AT$7&"-"&AT$3&"-"&$A29,'DOCUMENTI EMESSI'!$C$9:$L$2008,10,FALSE),4,1) ->  | N29: =MID(VLOOKUP($AT$7&"-"&AT$3&"-"&$A29,'DOCUMENTI EMESSI'!$C$9:$L$2008,10,FALSE),5,1) ->  | O29: =MID(VLOOKUP($AT$7&"-"&AT$3&"-"&$A29,'DOCUMENTI EMESSI'!$C$9:$L$2008,10,FALSE),6,1) ->  | P29: =MID(VLOOKUP($AT$7&"-"&AT$3&"-"&$A29,'DOCUMENTI EMESSI'!$C$9:$L$2008,10,FALSE),7,1) ->  | Q29: =MID(VLOOKUP($AT$7&"-"&AT$3&"-"&$A29,'DOCUMENTI EMESSI'!$C$9:$L$2008,10,FALSE),8,1) ->  | R29: =MID(VLOOKUP($AT$7&"-"&AT$3&"-"&$A29,'DOCUMENTI EMESSI'!$C$9:$L$2008,10,FALSE),9,1) ->  | S29: =MID(VLOOKUP($AT$7&"-"&AT$3&"-"&$A29,'DOCUMENTI EMESSI'!$C$9:$L$2008,10,FALSE),10,1) ->  | T29: =MID(VLOOKUP($AT$7&"-"&AT$3&"-"&$A29,'DOCUMENTI EMESSI'!$C$9:$L$2008,10,FALSE),11,1) ->  | U29: =MID(VLOOKUP($AT$7&"-"&AT$3&"-"&$A29,'DOCUMENTI EMESSI'!$C$9:$L$2008,10,FALSE),12,1) ->  | V29: =MID(VLOOKUP($AT$7&"-"&AT$3&"-"&$A29,'DOCUMENTI EMESSI'!$C$9:$L$2008,10,FALSE),13,1) ->  | W29: =MID(VLOOKUP($AT$7&"-"&AT$3&"-"&$A29,'DOCUMENTI EMESSI'!$C$9:$L$2008,10,FALSE),14,1) ->  | X29: =MID(VLOOKUP($AT$7&"-"&AT$3&"-"&$A29,'DOCUMENTI EMESSI'!$C$9:$L$2008,10,FALSE),15,1) ->  | Y29: =MID(VLOOKUP($AT$7&"-"&AT$3&"-"&$A29,'DOCUMENTI EMESSI'!$C$9:$L$2008,10,FALSE),16,1) ->  | Z29: =MID(VLOOKUP($AT$7&"-"&AT$3&"-"&$A29,'DOCUMENTI EMESSI'!$C$9:$L$2008,10,FALSE),17,1) ->  | AB29: =VLOOKUP($AT$7&"-"&AT$3&"-"&$A29,'DOCUMENTI EMESSI'!$C$9:$M$2008,11,FALSE) ->  | AF29: =FLOOR('DOCUMENTI EMESSI'!N14,1) -> 0 | AG29: =VLOOKUP($AT$7&"-"&AT$3&"-"&$A29,'DOCUMENTI EMESSI'!$C$9:$N$2008,12,FALSE) ->  | AM29: =FLOOR(VLOOKUP($AT$7&"-"&AT$3&"-"&$A29,'DOCUMENTI EMESSI'!$C$9:$O$2008,13,FALSE),1) ->  | AR29: =LEFT(RIGHT(TEXT(VLOOKUP($AT$7&"-"&AT$3&"-"&$A29,'DOCUMENTI EMESSI'!$C$9:$O$2008,13,FALSE),"0,00"),2),1) ->  | AS29: =RIGHT(TEXT(VLOOKUP($AT$7&"-"&AT$3&"-"&$A29,'DOCUMENTI EMESSI'!$C$9:$O$2008,13,FALSE),"0,00"),1) ->  | AT29: =VLOOKUP($AT$7&"-"&$AT$3&"-"&A29,'DOCUMENTI EMESSI'!$C$9:$AC$2008,27,FALSE) -> 
A30: 9 | C30: =VLOOKUP($AT$7&"-"&AT$3&"-"&$A30,'DOCUMENTI EMESSI'!$C$9:$K$2008,9,FALSE) ->  | F30: =MID(VLOOKUP($AT$7&"-"&AT$3&"-"&$A30,'DOCUMENTI EMESSI'!$C$9:$L$2008,10,FALSE),1,1) ->  | H30: =MID(VLOOKUP($AT$7&"-"&AT$3&"-"&$A30,'DOCUMENTI EMESSI'!$C$9:$L$2008,10,FALSE),2,1) ->  | J30: =MID(VLOOKUP($AT$7&"-"&AT$3&"-"&$A30,'DOCUMENTI EMESSI'!$C$9:$L$2008,10,FALSE),3,1) ->  | L30: =MID(VLOOKUP($AT$7&"-"&AT$3&"-"&$A30,'DOCUMENTI EMESSI'!$C$9:$L$2008,10,FALSE),4,1) ->  | N30: =MID(VLOOKUP($AT$7&"-"&AT$3&"-"&$A30,'DOCUMENTI EMESSI'!$C$9:$L$2008,10,FALSE),5,1) ->  | O30: =MID(VLOOKUP($AT$7&"-"&AT$3&"-"&$A30,'DOCUMENTI EMESSI'!$C$9:$L$2008,10,FALSE),6,1) ->  | P30: =MID(VLOOKUP($AT$7&"-"&AT$3&"-"&$A30,'DOCUMENTI EMESSI'!$C$9:$L$2008,10,FALSE),7,1) ->  | Q30: =MID(VLOOKUP($AT$7&"-"&AT$3&"-"&$A30,'DOCUMENTI EMESSI'!$C$9:$L$2008,10,FALSE),8,1) ->  | R30: =MID(VLOOKUP($AT$7&"-"&AT$3&"-"&$A30,'DOCUMENTI EMESSI'!$C$9:$L$2008,10,FALSE),9,1) ->  | S30: =MID(VLOOKUP($AT$7&"-"&AT$3&"-"&$A30,'DOCUMENTI EMESSI'!$C$9:$L$2008,10,FALSE),10,1) ->  | T30: =MID(VLOOKUP($AT$7&"-"&AT$3&"-"&$A30,'DOCUMENTI EMESSI'!$C$9:$L$2008,10,FALSE),11,1) ->  | U30: =MID(VLOOKUP($AT$7&"-"&AT$3&"-"&$A30,'DOCUMENTI EMESSI'!$C$9:$L$2008,10,FALSE),12,1) ->  | V30: =MID(VLOOKUP($AT$7&"-"&AT$3&"-"&$A30,'DOCUMENTI EMESSI'!$C$9:$L$2008,10,FALSE),13,1) ->  | W30: =MID(VLOOKUP($AT$7&"-"&AT$3&"-"&$A30,'DOCUMENTI EMESSI'!$C$9:$L$2008,10,FALSE),14,1) ->  | X30: =MID(VLOOKUP($AT$7&"-"&AT$3&"-"&$A30,'DOCUMENTI EMESSI'!$C$9:$L$2008,10,FALSE),15,1) ->  | Y30: =MID(VLOOKUP($AT$7&"-"&AT$3&"-"&$A30,'DOCUMENTI EMESSI'!$C$9:$L$2008,10,FALSE),16,1) ->  | Z30: =MID(VLOOKUP($AT$7&"-"&AT$3&"-"&$A30,'DOCUMENTI EMESSI'!$C$9:$L$2008,10,FALSE),17,1) ->  | AB30: =VLOOKUP($AT$7&"-"&AT$3&"-"&$A30,'DOCUMENTI EMESSI'!$C$9:$M$2008,11,FALSE) ->  | AF30: =FLOOR('DOCUMENTI EMESSI'!#REF!,1) ->  | AG30: =VLOOKUP($AT$7&"-"&AT$3&"-"&$A30,'DOCUMENTI EMESSI'!$C$9:$N$2008,12,FALSE) ->  | AM30: =FLOOR(VLOOKUP($AT$7&"-"&AT$3&"-"&$A30,'DOCUMENTI EMESSI'!$C$9:$O$2008,13,FALSE),1) ->  | AR30: =LEFT(RIGHT(TEXT(VLOOKUP($AT$7&"-"&AT$3&"-"&$A30,'DOCUMENTI EMESSI'!$C$9:$O$2008,13,FALSE),"0,00"),2),1) ->  | AS30: =RIGHT(TEXT(VLOOKUP($AT$7&"-"&AT$3&"-"&$A30,'DOCUMENTI EMESSI'!$C$9:$O$2008,13,FALSE),"0,00"),1) ->  | AT30: =VLOOKUP($AT$7&"-"&$AT$3&"-"&A30,'DOCUMENTI EMESSI'!$C$9:$AC$2008,27,FALSE) -> 
A31: 10 | C31: =VLOOKUP($AT$7&"-"&AT$3&"-"&$A31,'DOCUMENTI EMESSI'!$C$9:$K$2008,9,FALSE) ->  | F31: =MID(VLOOKUP($AT$7&"-"&AT$3&"-"&$A31,'DOCUMENTI EMESSI'!$C$9:$L$2008,10,FALSE),1,1) ->  | H31: =MID(VLOOKUP($AT$7&"-"&AT$3&"-"&$A31,'DOCUMENTI EMESSI'!$C$9:$L$2008,10,FALSE),2,1) ->  | J31: =MID(VLOOKUP($AT$7&"-"&AT$3&"-"&$A31,'DOCUMENTI EMESSI'!$C$9:$L$2008,10,FALSE),3,1) ->  | L31: =MID(VLOOKUP($AT$7&"-"&AT$3&"-"&$A31,'DOCUMENTI EMESSI'!$C$9:$L$2008,10,FALSE),4,1) ->  | N31: =MID(VLOOKUP($AT$7&"-"&AT$3&"-"&$A31,'DOCUMENTI EMESSI'!$C$9:$L$2008,10,FALSE),5,1) ->  | O31: =MID(VLOOKUP($AT$7&"-"&AT$3&"-"&$A31,'DOCUMENTI EMESSI'!$C$9:$L$2008,10,FALSE),6,1) ->  | P31: =MID(VLOOKUP($AT$7&"-"&AT$3&"-"&$A31,'DOCUMENTI EMESSI'!$C$9:$L$2008,10,FALSE),7,1) ->  | Q31: =MID(VLOOKUP($AT$7&"-"&AT$3&"-"&$A31,'DOCUMENTI EMESSI'!$C$9:$L$2008,10,FALSE),8,1) ->  | R31: =MID(VLOOKUP($AT$7&"-"&AT$3&"-"&$A31,'DOCUMENTI EMESSI'!$C$9:$L$2008,10,FALSE),9,1) ->  | S31: =MID(VLOOKUP($AT$7&"-"&AT$3&"-"&$A31,'DOCUMENTI EMESSI'!$C$9:$L$2008,10,FALSE),10,1) ->  | T31: =MID(VLOOKUP($AT$7&"-"&AT$3&"-"&$A31,'DOCUMENTI EMESSI'!$C$9:$L$2008,10,FALSE),11,1) ->  | U31: =MID(VLOOKUP($AT$7&"-"&AT$3&"-"&$A31,'DOCUMENTI EMESSI'!$C$9:$L$2008,10,FALSE),12,1) ->  | V31: =MID(VLOOKUP($AT$7&"-"&AT$3&"-"&$A31,'DOCUMENTI EMESSI'!$C$9:$L$2008,10,FALSE),13,1) ->  | W31: =MID(VLOOKUP($AT$7&"-"&AT$3&"-"&$A31,'DOCUMENTI EMESSI'!$C$9:$L$2008,10,FALSE),14,1) ->  | X31: =MID(VLOOKUP($AT$7&"-"&AT$3&"-"&$A31,'DOCUMENTI EMESSI'!$C$9:$L$2008,10,FALSE),15,1) ->  | Y31: =MID(VLOOKUP($AT$7&"-"&AT$3&"-"&$A31,'DOCUMENTI EMESSI'!$C$9:$L$2008,10,FALSE),16,1) ->  | Z31: =MID(VLOOKUP($AT$7&"-"&AT$3&"-"&$A31,'DOCUMENTI EMESSI'!$C$9:$L$2008,10,FALSE),17,1) ->  | AB31: =VLOOKUP($AT$7&"-"&AT$3&"-"&$A31,'DOCUMENTI EMESSI'!$C$9:$M$2008,11,FALSE) ->  | AF31: =FLOOR('DOCUMENTI EMESSI'!#REF!,1) ->  | AG31: =VLOOKUP($AT$7&"-"&AT$3&"-"&$A31,'DOCUMENTI EMESSI'!$C$9:$N$2008,12,FALSE) ->  | AM31: =FLOOR(VLOOKUP($AT$7&"-"&AT$3&"-"&$A31,'DOCUMENTI EMESSI'!$C$9:$O$2008,13,FALSE),1) ->  | AR31: =LEFT(RIGHT(TEXT(VLOOKUP($AT$7&"-"&AT$3&"-"&$A31,'DOCUMENTI EMESSI'!$C$9:$O$2008,13,FALSE),"0,00"),2),1) ->  | AS31: =RIGHT(TEXT(VLOOKUP($AT$7&"-"&AT$3&"-"&$A31,'DOCUMENTI EMESSI'!$C$9:$O$2008,13,FALSE),"0,00"),1) ->  | AT31: =VLOOKUP($AT$7&"-"&$AT$3&"-"&A31,'DOCUMENTI EMESSI'!$C$9:$AC$2008,27,FALSE) -> 
A32: 11 | C32: =VLOOKUP($AT$7&"-"&AT$3&"-"&$A32,'DOCUMENTI EMESSI'!$C$9:$K$2008,9,FALSE) ->  | F32: =MID(VLOOKUP($AT$7&"-"&AT$3&"-"&$A32,'DOCUMENTI EMESSI'!$C$9:$L$2008,10,FALSE),1,1) ->  | H32: =MID(VLOOKUP($AT$7&"-"&AT$3&"-"&$A32,'DOCUMENTI EMESSI'!$C$9:$L$2008,10,FALSE),2,1) ->  | J32: =MID(VLOOKUP($AT$7&"-"&AT$3&"-"&$A32,'DOCUMENTI EMESSI'!$C$9:$L$2008,10,FALSE),3,1) ->  | L32: =MID(VLOOKUP($AT$7&"-"&AT$3&"-"&$A32,'DOCUMENTI EMESSI'!$C$9:$L$2008,10,FALSE),4,1) ->  | N32: =MID(VLOOKUP($AT$7&"-"&AT$3&"-"&$A32,'DOCUMENTI EMESSI'!$C$9:$L$2008,10,FALSE),5,1) ->  | O32: =MID(VLOOKUP($AT$7&"-"&AT$3&"-"&$A32,'DOCUMENTI EMESSI'!$C$9:$L$2008,10,FALSE),6,1) ->  | P32: =MID(VLOOKUP($AT$7&"-"&AT$3&"-"&$A32,'DOCUMENTI EMESSI'!$C$9:$L$2008,10,FALSE),7,1) ->  | Q32: =MID(VLOOKUP($AT$7&"-"&AT$3&"-"&$A32,'DOCUMENTI EMESSI'!$C$9:$L$2008,10,FALSE),8,1) ->  | R32: =MID(VLOOKUP($AT$7&"-"&AT$3&"-"&$A32,'DOCUMENTI EMESSI'!$C$9:$L$2008,10,FALSE),9,1) ->  | S32: =MID(VLOOKUP($AT$7&"-"&AT$3&"-"&$A32,'DOCUMENTI EMESSI'!$C$9:$L$2008,10,FALSE),10,1) ->  | T32: =MID(VLOOKUP($AT$7&"-"&AT$3&"-"&$A32,'DOCUMENTI EMESSI'!$C$9:$L$2008,10,FALSE),11,1) ->  | U32: =MID(VLOOKUP($AT$7&"-"&AT$3&"-"&$A32,'DOCUMENTI EMESSI'!$C$9:$L$2008,10,FALSE),12,1) ->  | V32: =MID(VLOOKUP($AT$7&"-"&AT$3&"-"&$A32,'DOCUMENTI EMESSI'!$C$9:$L$2008,10,FALSE),13,1) ->  | W32: =MID(VLOOKUP($AT$7&"-"&AT$3&"-"&$A32,'DOCUMENTI EMESSI'!$C$9:$L$2008,10,FALSE),14,1) ->  | X32: =MID(VLOOKUP($AT$7&"-"&AT$3&"-"&$A32,'DOCUMENTI EMESSI'!$C$9:$L$2008,10,FALSE),15,1) ->  | Y32: =MID(VLOOKUP($AT$7&"-"&AT$3&"-"&$A32,'DOCUMENTI EMESSI'!$C$9:$L$2008,10,FALSE),16,1) ->  | Z32: =MID(VLOOKUP($AT$7&"-"&AT$3&"-"&$A32,'DOCUMENTI EMESSI'!$C$9:$L$2008,10,FALSE),17,1) ->  | AB32: =VLOOKUP($AT$7&"-"&AT$3&"-"&$A32,'DOCUMENTI EMESSI'!$C$9:$M$2008,11,FALSE) ->  | AF32: =FLOOR('DOCUMENTI EMESSI'!O2011,1) -> 601 | AG32: =VLOOKUP($AT$7&"-"&AT$3&"-"&$A32,'DOCUMENTI EMESSI'!$C$9:$N$2008,12,FALSE) ->  | AM32: =FLOOR(VLOOKUP($AT$7&"-"&AT$3&"-"&$A32,'DOCUMENTI EMESSI'!$C$9:$O$2008,13,FALSE),1) ->  | AR32: =LEFT(RIGHT(TEXT(VLOOKUP($AT$7&"-"&AT$3&"-"&$A32,'DOCUMENTI EMESSI'!$C$9:$O$2008,13,FALSE),"0,00"),2),1) ->  | AS32: =RIGHT(TEXT(VLOOKUP($AT$7&"-"&AT$3&"-"&$A32,'DOCUMENTI EMESSI'!$C$9:$O$2008,13,FALSE),"0,00"),1) ->  | AT32: =VLOOKUP($AT$7&"-"&$AT$3&"-"&A32,'DOCUMENTI EMESSI'!$C$9:$AC$2008,27,FALSE) -> 
A33: 12 | C33: =VLOOKUP($AT$7&"-"&AT$3&"-"&$A33,'DOCUMENTI EMESSI'!$C$9:$K$2008,9,FALSE) ->  | F33: =MID(VLOOKUP($AT$7&"-"&AT$3&"-"&$A33,'DOCUMENTI EMESSI'!$C$9:$L$2008,10,FALSE),1,1) ->  | H33: =MID(VLOOKUP($AT$7&"-"&AT$3&"-"&$A33,'DOCUMENTI EMESSI'!$C$9:$L$2008,10,FALSE),2,1) ->  | J33: =MID(VLOOKUP($AT$7&"-"&AT$3&"-"&$A33,'DOCUMENTI EMESSI'!$C$9:$L$2008,10,FALSE),3,1) ->  | L33: =MID(VLOOKUP($AT$7&"-"&AT$3&"-"&$A33,'DOCUMENTI EMESSI'!$C$9:$L$2008,10,FALSE),4,1) ->  | N33: =MID(VLOOKUP($AT$7&"-"&AT$3&"-"&$A33,'DOCUMENTI EMESSI'!$C$9:$L$2008,10,FALSE),5,1) ->  | O33: =MID(VLOOKUP($AT$7&"-"&AT$3&"-"&$A33,'DOCUMENTI EMESSI'!$C$9:$L$2008,10,FALSE),6,1) ->  | P33: =MID(VLOOKUP($AT$7&"-"&AT$3&"-"&$A33,'DOCUMENTI EMESSI'!$C$9:$L$2008,10,FALSE),7,1) ->  | Q33: =MID(VLOOKUP($AT$7&"-"&AT$3&"-"&$A33,'DOCUMENTI EMESSI'!$C$9:$L$2008,10,FALSE),8,1) ->  | R33: =MID(VLOOKUP($AT$7&"-"&AT$3&"-"&$A33,'DOCUMENTI EMESSI'!$C$9:$L$2008,10,FALSE),9,1) ->  | S33: =MID(VLOOKUP($AT$7&"-"&AT$3&"-"&$A33,'DOCUMENTI EMESSI'!$C$9:$L$2008,10,FALSE),10,1) ->  | T33: =MID(VLOOKUP($AT$7&"-"&AT$3&"-"&$A33,'DOCUMENTI EMESSI'!$C$9:$L$2008,10,FALSE),11,1) ->  | U33: =MID(VLOOKUP($AT$7&"-"&AT$3&"-"&$A33,'DOCUMENTI EMESSI'!$C$9:$L$2008,10,FALSE),12,1) ->  | V33: =MID(VLOOKUP($AT$7&"-"&AT$3&"-"&$A33,'DOCUMENTI EMESSI'!$C$9:$L$2008,10,FALSE),13,1) ->  | W33: =MID(VLOOKUP($AT$7&"-"&AT$3&"-"&$A33,'DOCUMENTI EMESSI'!$C$9:$L$2008,10,FALSE),14,1) ->  | X33: =MID(VLOOKUP($AT$7&"-"&AT$3&"-"&$A33,'DOCUMENTI EMESSI'!$C$9:$L$2008,10,FALSE),15,1) ->  | Y33: =MID(VLOOKUP($AT$7&"-"&AT$3&"-"&$A33,'DOCUMENTI EMESSI'!$C$9:$L$2008,10,FALSE),16,1) ->  | Z33: =MID(VLOOKUP($AT$7&"-"&AT$3&"-"&$A33,'DOCUMENTI EMESSI'!$C$9:$L$2008,10,FALSE),17,1) ->  | AB33: =VLOOKUP($AT$7&"-"&AT$3&"-"&$A33,'DOCUMENTI EMESSI'!$C$9:$M$2008,11,FALSE) ->  | AG33: =VLOOKUP($AT$7&"-"&AT$3&"-"&$A33,'DOCUMENTI EMESSI'!$C$9:$N$2008,12,FALSE) ->  | AM33: =FLOOR(VLOOKUP($AT$7&"-"&AT$3&"-"&$A33,'DOCUMENTI EMESSI'!$C$9:$O$2008,13,FALSE),1) ->  | AR33: =LEFT(RIGHT(TEXT(VLOOKUP($AT$7&"-"&AT$3&"-"&$A33,'DOCUMENTI EMESSI'!$C$9:$O$2008,13,FALSE),"0,00"),2),1) ->  | AS33: =RIGHT(TEXT(VLOOKUP($AT$7&"-"&AT$3&"-"&$A33,'DOCUMENTI EMESSI'!$C$9:$O$2008,13,FALSE),"0,00"),1) ->  | AT33: =VLOOKUP($AT$7&"-"&$AT$3&"-"&A33,'DOCUMENTI EMESSI'!$C$9:$AC$2008,27,FALSE) -> 
A34: 13 | C34: =VLOOKUP($AT$7&"-"&AT$3&"-"&$A34,'DOCUMENTI EMESSI'!$C$9:$K$2008,9,FALSE) ->  | F34: =MID(VLOOKUP($AT$7&"-"&AT$3&"-"&$A34,'DOCUMENTI EMESSI'!$C$9:$L$2008,10,FALSE),1,1) ->  | H34: =MID(VLOOKUP($AT$7&"-"&AT$3&"-"&$A34,'DOCUMENTI EMESSI'!$C$9:$L$2008,10,FALSE),2,1) ->  | J34: =MID(VLOOKUP($AT$7&"-"&AT$3&"-"&$A34,'DOCUMENTI EMESSI'!$C$9:$L$2008,10,FALSE),3,1) ->  | L34: =MID(VLOOKUP($AT$7&"-"&AT$3&"-"&$A34,'DOCUMENTI EMESSI'!$C$9:$L$2008,10,FALSE),4,1) ->  | N34: =MID(VLOOKUP($AT$7&"-"&AT$3&"-"&$A34,'DOCUMENTI EMESSI'!$C$9:$L$2008,10,FALSE),5,1) ->  | O34: =MID(VLOOKUP($AT$7&"-"&AT$3&"-"&$A34,'DOCUMENTI EMESSI'!$C$9:$L$2008,10,FALSE),6,1) ->  | P34: =MID(VLOOKUP($AT$7&"-"&AT$3&"-"&$A34,'DOCUMENTI EMESSI'!$C$9:$L$2008,10,FALSE),7,1) ->  | Q34: =MID(VLOOKUP($AT$7&"-"&AT$3&"-"&$A34,'DOCUMENTI EMESSI'!$C$9:$L$2008,10,FALSE),8,1) ->  | R34: =MID(VLOOKUP($AT$7&"-"&AT$3&"-"&$A34,'DOCUMENTI EMESSI'!$C$9:$L$2008,10,FALSE),9,1) ->  | S34: =MID(VLOOKUP($AT$7&"-"&AT$3&"-"&$A34,'DOCUMENTI EMESSI'!$C$9:$L$2008,10,FALSE),10,1) ->  | T34: =MID(VLOOKUP($AT$7&"-"&AT$3&"-"&$A34,'DOCUMENTI EMESSI'!$C$9:$L$2008,10,FALSE),11,1) ->  | U34: =MID(VLOOKUP($AT$7&"-"&AT$3&"-"&$A34,'DOCUMENTI EMESSI'!$C$9:$L$2008,10,FALSE),12,1) ->  | V34: =MID(VLOOKUP($AT$7&"-"&AT$3&"-"&$A34,'DOCUMENTI EMESSI'!$C$9:$L$2008,10,FALSE),13,1) ->  | W34: =MID(VLOOKUP($AT$7&"-"&AT$3&"-"&$A34,'DOCUMENTI EMESSI'!$C$9:$L$2008,10,FALSE),14,1) ->  | X34: =MID(VLOOKUP($AT$7&"-"&AT$3&"-"&$A34,'DOCUMENTI EMESSI'!$C$9:$L$2008,10,FALSE),15,1) ->  | Y34: =MID(VLOOKUP($AT$7&"-"&AT$3&"-"&$A34,'DOCUMENTI EMESSI'!$C$9:$L$2008,10,FALSE),16,1) ->  | Z34: =MID(VLOOKUP($AT$7&"-"&AT$3&"-"&$A34,'DOCUMENTI EMESSI'!$C$9:$L$2008,10,FALSE),17,1) ->  | AB34: =VLOOKUP($AT$7&"-"&AT$3&"-"&$A34,'DOCUMENTI EMESSI'!$C$9:$M$2008,11,FALSE) ->  | AG34: =VLOOKUP($AT$7&"-"&AT$3&"-"&$A34,'DOCUMENTI EMESSI'!$C$9:$N$2008,12,FALSE) ->  | AM34: =FLOOR(VLOOKUP($AT$7&"-"&AT$3&"-"&$A34,'DOCUMENTI EMESSI'!$C$9:$O$2008,13,FALSE),1) ->  | AR34: =LEFT(RIGHT(TEXT(VLOOKUP($AT$7&"-"&AT$3&"-"&$A34,'DOCUMENTI EMESSI'!$C$9:$O$2008,13,FALSE),"0,00"),2),1) ->  | AS34: =RIGHT(TEXT(VLOOKUP($AT$7&"-"&AT$3&"-"&$A34,'DOCUMENTI EMESSI'!$C$9:$O$2008,13,FALSE),"0,00"),1) ->  | AT34: =VLOOKUP($AT$7&"-"&$AT$3&"-"&A34,'DOCUMENTI EMESSI'!$C$9:$AC$2008,27,FALSE) -> 
A35: 14 | C35: =VLOOKUP($AT$7&"-"&AT$3&"-"&$A35,'DOCUMENTI EMESSI'!$C$9:$K$2008,9,FALSE) ->  | F35: =MID(VLOOKUP($AT$7&"-"&AT$3&"-"&$A35,'DOCUMENTI EMESSI'!$C$9:$L$2008,10,FALSE),1,1) ->  | H35: =MID(VLOOKUP($AT$7&"-"&AT$3&"-"&$A35,'DOCUMENTI EMESSI'!$C$9:$L$2008,10,FALSE),2,1) ->  | J35: =MID(VLOOKUP($AT$7&"-"&AT$3&"-"&$A35,'DOCUMENTI EMESSI'!$C$9:$L$2008,10,FALSE),3,1) ->  | L35: =MID(VLOOKUP($AT$7&"-"&AT$3&"-"&$A35,'DOCUMENTI EMESSI'!$C$9:$L$2008,10,FALSE),4,1) ->  | N35: =MID(VLOOKUP($AT$7&"-"&AT$3&"-"&$A35,'DOCUMENTI EMESSI'!$C$9:$L$2008,10,FALSE),5,1) ->  | O35: =MID(VLOOKUP($AT$7&"-"&AT$3&"-"&$A35,'DOCUMENTI EMESSI'!$C$9:$L$2008,10,FALSE),6,1) ->  | P35: =MID(VLOOKUP($AT$7&"-"&AT$3&"-"&$A35,'DOCUMENTI EMESSI'!$C$9:$L$2008,10,FALSE),7,1) ->  | Q35: =MID(VLOOKUP($AT$7&"-"&AT$3&"-"&$A35,'DOCUMENTI EMESSI'!$C$9:$L$2008,10,FALSE),8,1) ->  | R35: =MID(VLOOKUP($AT$7&"-"&AT$3&"-"&$A35,'DOCUMENTI EMESSI'!$C$9:$L$2008,10,FALSE),9,1) ->  | S35: =MID(VLOOKUP($AT$7&"-"&AT$3&"-"&$A35,'DOCUMENTI EMESSI'!$C$9:$L$2008,10,FALSE),10,1) ->  | T35: =MID(VLOOKUP($AT$7&"-"&AT$3&"-"&$A35,'DOCUMENTI EMESSI'!$C$9:$L$2008,10,FALSE),11,1) ->  | U35: =MID(VLOOKUP($AT$7&"-"&AT$3&"-"&$A35,'DOCUMENTI EMESSI'!$C$9:$L$2008,10,FALSE),12,1) ->  | V35: =MID(VLOOKUP($AT$7&"-"&AT$3&"-"&$A35,'DOCUMENTI EMESSI'!$C$9:$L$2008,10,FALSE),13,1) ->  | W35: =MID(VLOOKUP($AT$7&"-"&AT$3&"-"&$A35,'DOCUMENTI EMESSI'!$C$9:$L$2008,10,FALSE),14,1) ->  | X35: =MID(VLOOKUP($AT$7&"-"&AT$3&"-"&$A35,'DOCUMENTI EMESSI'!$C$9:$L$2008,10,FALSE),15,1) ->  | Y35: =MID(VLOOKUP($AT$7&"-"&AT$3&"-"&$A35,'DOCUMENTI EMESSI'!$C$9:$L$2008,10,FALSE),16,1) ->  | Z35: =MID(VLOOKUP($AT$7&"-"&AT$3&"-"&$A35,'DOCUMENTI EMESSI'!$C$9:$L$2008,10,FALSE),17,1) ->  | AB35: =VLOOKUP($AT$7&"-"&AT$3&"-"&$A35,'DOCUMENTI EMESSI'!$C$9:$M$2008,11,FALSE) ->  | AG35: =VLOOKUP($AT$7&"-"&AT$3&"-"&$A35,'DOCUMENTI EMESSI'!$C$9:$N$2008,12,FALSE) ->  | AM35: =FLOOR(VLOOKUP($AT$7&"-"&AT$3&"-"&$A35,'DOCUMENTI EMESSI'!$C$9:$O$2008,13,FALSE),1) ->  | AR35: =LEFT(RIGHT(TEXT(VLOOKUP($AT$7&"-"&AT$3&"-"&$A35,'DOCUMENTI EMESSI'!$C$9:$O$2008,13,FALSE),"0,00"),2),1) ->  | AS35: =RIGHT(TEXT(VLOOKUP($AT$7&"-"&AT$3&"-"&$A35,'DOCUMENTI EMESSI'!$C$9:$O$2008,13,FALSE),"0,00"),1) ->  | AT35: =VLOOKUP($AT$7&"-"&$AT$3&"-"&A35,'DOCUMENTI EMESSI'!$C$9:$AC$2008,27,FALSE) -> 
A36: 15 | C36: =VLOOKUP($AT$7&"-"&AT$3&"-"&$A36,'DOCUMENTI EMESSI'!$C$9:$K$2008,9,FALSE) ->  | F36: =MID(VLOOKUP($AT$7&"-"&AT$3&"-"&$A36,'DOCUMENTI EMESSI'!$C$9:$L$2008,10,FALSE),1,1) ->  | H36: =MID(VLOOKUP($AT$7&"-"&AT$3&"-"&$A36,'DOCUMENTI EMESSI'!$C$9:$L$2008,10,FALSE),2,1) ->  | J36: =MID(VLOOKUP($AT$7&"-"&AT$3&"-"&$A36,'DOCUMENTI EMESSI'!$C$9:$L$2008,10,FALSE),3,1) ->  | L36: =MID(VLOOKUP($AT$7&"-"&AT$3&"-"&$A36,'DOCUMENTI EMESSI'!$C$9:$L$2008,10,FALSE),4,1) ->  | N36: =MID(VLOOKUP($AT$7&"-"&AT$3&"-"&$A36,'DOCUMENTI EMESSI'!$C$9:$L$2008,10,FALSE),5,1) ->  | O36: =MID(VLOOKUP($AT$7&"-"&AT$3&"-"&$A36,'DOCUMENTI EMESSI'!$C$9:$L$2008,10,FALSE),6,1) ->  | P36: =MID(VLOOKUP($AT$7&"-"&AT$3&"-"&$A36,'DOCUMENTI EMESSI'!$C$9:$L$2008,10,FALSE),7,1) ->  | Q36: =MID(VLOOKUP($AT$7&"-"&AT$3&"-"&$A36,'DOCUMENTI EMESSI'!$C$9:$L$2008,10,FALSE),8,1) ->  | R36: =MID(VLOOKUP($AT$7&"-"&AT$3&"-"&$A36,'DOCUMENTI EMESSI'!$C$9:$L$2008,10,FALSE),9,1) ->  | S36: =MID(VLOOKUP($AT$7&"-"&AT$3&"-"&$A36,'DOCUMENTI EMESSI'!$C$9:$L$2008,10,FALSE),10,1) ->  | T36: =MID(VLOOKUP($AT$7&"-"&AT$3&"-"&$A36,'DOCUMENTI EMESSI'!$C$9:$L$2008,10,FALSE),11,1) ->  | U36: =MID(VLOOKUP($AT$7&"-"&AT$3&"-"&$A36,'DOCUMENTI EMESSI'!$C$9:$L$2008,10,FALSE),12,1) ->  | V36: =MID(VLOOKUP($AT$7&"-"&AT$3&"-"&$A36,'DOCUMENTI EMESSI'!$C$9:$L$2008,10,FALSE),13,1) ->  | W36: =MID(VLOOKUP($AT$7&"-"&AT$3&"-"&$A36,'DOCUMENTI EMESSI'!$C$9:$L$2008,10,FALSE),14,1) ->  | X36: =MID(VLOOKUP($AT$7&"-"&AT$3&"-"&$A36,'DOCUMENTI EMESSI'!$C$9:$L$2008,10,FALSE),15,1) ->  | Y36: =MID(VLOOKUP($AT$7&"-"&AT$3&"-"&$A36,'DOCUMENTI EMESSI'!$C$9:$L$2008,10,FALSE),16,1) ->  | Z36: =MID(VLOOKUP($AT$7&"-"&AT$3&"-"&$A36,'DOCUMENTI EMESSI'!$C$9:$L$2008,10,FALSE),17,1) ->  | AB36: =VLOOKUP($AT$7&"-"&AT$3&"-"&$A36,'DOCUMENTI EMESSI'!$C$9:$M$2008,11,FALSE) ->  | AG36: =VLOOKUP($AT$7&"-"&AT$3&"-"&$A36,'DOCUMENTI EMESSI'!$C$9:$N$2008,12,FALSE) ->  | AM36: =FLOOR(VLOOKUP($AT$7&"-"&AT$3&"-"&$A36,'DOCUMENTI EMESSI'!$C$9:$O$2008,13,FALSE),1) ->  | AR36: =LEFT(RIGHT(TEXT(VLOOKUP($AT$7&"-"&AT$3&"-"&$A36,'DOCUMENTI EMESSI'!$C$9:$O$2008,13,FALSE),"0,00"),2),1) ->  | AS36: =RIGHT(TEXT(VLOOKUP($AT$7&"-"&AT$3&"-"&$A36,'DOCUMENTI EMESSI'!$C$9:$O$2008,13,FALSE),"0,00"),1) ->  | AT36: =VLOOKUP($AT$7&"-"&$AT$3&"-"&A36,'DOCUMENTI EMESSI'!$C$9:$AC$2008,27,FALSE) -> 
A37: 16 | C37: =VLOOKUP($AT$7&"-"&AT$3&"-"&$A37,'DOCUMENTI EMESSI'!$C$9:$K$2008,9,FALSE) ->  | F37: =MID(VLOOKUP($AT$7&"-"&AT$3&"-"&$A37,'DOCUMENTI EMESSI'!$C$9:$L$2008,10,FALSE),1,1) ->  | H37: =MID(VLOOKUP($AT$7&"-"&AT$3&"-"&$A37,'DOCUMENTI EMESSI'!$C$9:$L$2008,10,FALSE),2,1) ->  | J37: =MID(VLOOKUP($AT$7&"-"&AT$3&"-"&$A37,'DOCUMENTI EMESSI'!$C$9:$L$2008,10,FALSE),3,1) ->  | L37: =MID(VLOOKUP($AT$7&"-"&AT$3&"-"&$A37,'DOCUMENTI EMESSI'!$C$9:$L$2008,10,FALSE),4,1) ->  | N37: =MID(VLOOKUP($AT$7&"-"&AT$3&"-"&$A37,'DOCUMENTI EMESSI'!$C$9:$L$2008,10,FALSE),5,1) ->  | O37: =MID(VLOOKUP($AT$7&"-"&AT$3&"-"&$A37,'DOCUMENTI EMESSI'!$C$9:$L$2008,10,FALSE),6,1) ->  | P37: =MID(VLOOKUP($AT$7&"-"&AT$3&"-"&$A37,'DOCUMENTI EMESSI'!$C$9:$L$2008,10,FALSE),7,1) ->  | Q37: =MID(VLOOKUP($AT$7&"-"&AT$3&"-"&$A37,'DOCUMENTI EMESSI'!$C$9:$L$2008,10,FALSE),8,1) ->  | R37: =MID(VLOOKUP($AT$7&"-"&AT$3&"-"&$A37,'DOCUMENTI EMESSI'!$C$9:$L$2008,10,FALSE),9,1) ->  | S37: =MID(VLOOKUP($AT$7&"-"&AT$3&"-"&$A37,'DOCUMENTI EMESSI'!$C$9:$L$2008,10,FALSE),10,1) ->  | T37: =MID(VLOOKUP($AT$7&"-"&AT$3&"-"&$A37,'DOCUMENTI EMESSI'!$C$9:$L$2008,10,FALSE),11,1) ->  | U37: =MID(VLOOKUP($AT$7&"-"&AT$3&"-"&$A37,'DOCUMENTI EMESSI'!$C$9:$L$2008,10,FALSE),12,1) ->  | V37: =MID(VLOOKUP($AT$7&"-"&AT$3&"-"&$A37,'DOCUMENTI EMESSI'!$C$9:$L$2008,10,FALSE),13,1) ->  | W37: =MID(VLOOKUP($AT$7&"-"&AT$3&"-"&$A37,'DOCUMENTI EMESSI'!$C$9:$L$2008,10,FALSE),14,1) ->  | X37: =MID(VLOOKUP($AT$7&"-"&AT$3&"-"&$A37,'DOCUMENTI EMESSI'!$C$9:$L$2008,10,FALSE),15,1) ->  | Y37: =MID(VLOOKUP($AT$7&"-"&AT$3&"-"&$A37,'DOCUMENTI EMESSI'!$C$9:$L$2008,10,FALSE),16,1) ->  | Z37: =MID(VLOOKUP($AT$7&"-"&AT$3&"-"&$A37,'DOCUMENTI EMESSI'!$C$9:$L$2008,10,FALSE),17,1) ->  | AB37: =VLOOKUP($AT$7&"-"&AT$3&"-"&$A37,'DOCUMENTI EMESSI'!$C$9:$M$2008,11,FALSE) ->  | AG37: =VLOOKUP($AT$7&"-"&AT$3&"-"&$A37,'DOCUMENTI EMESSI'!$C$9:$N$2008,12,FALSE) ->  | AM37: =FLOOR(VLOOKUP($AT$7&"-"&AT$3&"-"&$A37,'DOCUMENTI EMESSI'!$C$9:$O$2008,13,FALSE),1) ->  | AR37: =LEFT(RIGHT(TEXT(VLOOKUP($AT$7&"-"&AT$3&"-"&$A37,'DOCUMENTI EMESSI'!$C$9:$O$2008,13,FALSE),"0,00"),2),1) ->  | AS37: =RIGHT(TEXT(VLOOKUP($AT$7&"-"&AT$3&"-"&$A37,'DOCUMENTI EMESSI'!$C$9:$O$2008,13,FALSE),"0,00"),1) ->  | AT37: =VLOOKUP($AT$7&"-"&$AT$3&"-"&A37,'DOCUMENTI EMESSI'!$C$9:$AC$2008,27,FALSE) -> 
A38: 17 | C38: =VLOOKUP($AT$7&"-"&AT$3&"-"&$A38,'DOCUMENTI EMESSI'!$C$9:$K$2008,9,FALSE) ->  | F38: =MID(VLOOKUP($AT$7&"-"&AT$3&"-"&$A38,'DOCUMENTI EMESSI'!$C$9:$L$2008,10,FALSE),1,1) ->  | H38: =MID(VLOOKUP($AT$7&"-"&AT$3&"-"&$A38,'DOCUMENTI EMESSI'!$C$9:$L$2008,10,FALSE),2,1) ->  | J38: =MID(VLOOKUP($AT$7&"-"&AT$3&"-"&$A38,'DOCUMENTI EMESSI'!$C$9:$L$2008,10,FALSE),3,1) ->  | L38: =MID(VLOOKUP($AT$7&"-"&AT$3&"-"&$A38,'DOCUMENTI EMESSI'!$C$9:$L$2008,10,FALSE),4,1) ->  | N38: =MID(VLOOKUP($AT$7&"-"&AT$3&"-"&$A38,'DOCUMENTI EMESSI'!$C$9:$L$2008,10,FALSE),5,1) ->  | O38: =MID(VLOOKUP($AT$7&"-"&AT$3&"-"&$A38,'DOCUMENTI EMESSI'!$C$9:$L$2008,10,FALSE),6,1) ->  | P38: =MID(VLOOKUP($AT$7&"-"&AT$3&"-"&$A38,'DOCUMENTI EMESSI'!$C$9:$L$2008,10,FALSE),7,1) ->  | Q38: =MID(VLOOKUP($AT$7&"-"&AT$3&"-"&$A38,'DOCUMENTI EMESSI'!$C$9:$L$2008,10,FALSE),8,1) ->  | R38: =MID(VLOOKUP($AT$7&"-"&AT$3&"-"&$A38,'DOCUMENTI EMESSI'!$C$9:$L$2008,10,FALSE),9,1) ->  | S38: =MID(VLOOKUP($AT$7&"-"&AT$3&"-"&$A38,'DOCUMENTI EMESSI'!$C$9:$L$2008,10,FALSE),10,1) ->  | T38: =MID(VLOOKUP($AT$7&"-"&AT$3&"-"&$A38,'DOCUMENTI EMESSI'!$C$9:$L$2008,10,FALSE),11,1) ->  | U38: =MID(VLOOKUP($AT$7&"-"&AT$3&"-"&$A38,'DOCUMENTI EMESSI'!$C$9:$L$2008,10,FALSE),12,1) ->  | V38: =MID(VLOOKUP($AT$7&"-"&AT$3&"-"&$A38,'DOCUMENTI EMESSI'!$C$9:$L$2008,10,FALSE),13,1) ->  | W38: =MID(VLOOKUP($AT$7&"-"&AT$3&"-"&$A38,'DOCUMENTI EMESSI'!$C$9:$L$2008,10,FALSE),14,1) ->  | X38: =MID(VLOOKUP($AT$7&"-"&AT$3&"-"&$A38,'DOCUMENTI EMESSI'!$C$9:$L$2008,10,FALSE),15,1) ->  | Y38: =MID(VLOOKUP($AT$7&"-"&AT$3&"-"&$A38,'DOCUMENTI EMESSI'!$C$9:$L$2008,10,FALSE),16,1) ->  | Z38: =MID(VLOOKUP($AT$7&"-"&AT$3&"-"&$A38,'DOCUMENTI EMESSI'!$C$9:$L$2008,10,FALSE),17,1) ->  | AB38: =VLOOKUP($AT$7&"-"&AT$3&"-"&$A38,'DOCUMENTI EMESSI'!$C$9:$M$2008,11,FALSE) ->  | AG38: =VLOOKUP($AT$7&"-"&AT$3&"-"&$A38,'DOCUMENTI EMESSI'!$C$9:$N$2008,12,FALSE) ->  | AM38: =FLOOR(VLOOKUP($AT$7&"-"&AT$3&"-"&$A38,'DOCUMENTI EMESSI'!$C$9:$O$2008,13,FALSE),1) ->  | AR38: =LEFT(RIGHT(TEXT(VLOOKUP($AT$7&"-"&AT$3&"-"&$A38,'DOCUMENTI EMESSI'!$C$9:$O$2008,13,FALSE),"0,00"),2),1) ->  | AS38: =RIGHT(TEXT(VLOOKUP($AT$7&"-"&AT$3&"-"&$A38,'DOCUMENTI EMESSI'!$C$9:$O$2008,13,FALSE),"0,00"),1) ->  | AT38: =VLOOKUP($AT$7&"-"&$AT$3&"-"&A38,'DOCUMENTI EMESSI'!$C$9:$AC$2008,27,FALSE) -> 
A39: 18 | C39: =VLOOKUP($AT$7&"-"&AT$3&"-"&$A39,'DOCUMENTI EMESSI'!$C$9:$K$2008,9,FALSE) ->  | F39: =MID(VLOOKUP($AT$7&"-"&AT$3&"-"&$A39,'DOCUMENTI EMESSI'!$C$9:$L$2008,10,FALSE),1,1) ->  | H39: =MID(VLOOKUP($AT$7&"-"&AT$3&"-"&$A39,'DOCUMENTI EMESSI'!$C$9:$L$2008,10,FALSE),2,1) ->  | J39: =MID(VLOOKUP($AT$7&"-"&AT$3&"-"&$A39,'DOCUMENTI EMESSI'!$C$9:$L$2008,10,FALSE),3,1) ->  | L39: =MID(VLOOKUP($AT$7&"-"&AT$3&"-"&$A39,'DOCUMENTI EMESSI'!$C$9:$L$2008,10,FALSE),4,1) ->  | N39: =MID(VLOOKUP($AT$7&"-"&AT$3&"-"&$A39,'DOCUMENTI EMESSI'!$C$9:$L$2008,10,FALSE),5,1) ->  | O39: =MID(VLOOKUP($AT$7&"-"&AT$3&"-"&$A39,'DOCUMENTI EMESSI'!$C$9:$L$2008,10,FALSE),6,1) ->  | P39: =MID(VLOOKUP($AT$7&"-"&AT$3&"-"&$A39,'DOCUMENTI EMESSI'!$C$9:$L$2008,10,FALSE),7,1) ->  | Q39: =MID(VLOOKUP($AT$7&"-"&AT$3&"-"&$A39,'DOCUMENTI EMESSI'!$C$9:$L$2008,10,FALSE),8,1) ->  | R39: =MID(VLOOKUP($AT$7&"-"&AT$3&"-"&$A39,'DOCUMENTI EMESSI'!$C$9:$L$2008,10,FALSE),9,1) ->  | S39: =MID(VLOOKUP($AT$7&"-"&AT$3&"-"&$A39,'DOCUMENTI EMESSI'!$C$9:$L$2008,10,FALSE),10,1) ->  | T39: =MID(VLOOKUP($AT$7&"-"&AT$3&"-"&$A39,'DOCUMENTI EMESSI'!$C$9:$L$2008,10,FALSE),11,1) ->  | U39: =MID(VLOOKUP($AT$7&"-"&AT$3&"-"&$A39,'DOCUMENTI EMESSI'!$C$9:$L$2008,10,FALSE),12,1) ->  | V39: =MID(VLOOKUP($AT$7&"-"&AT$3&"-"&$A39,'DOCUMENTI EMESSI'!$C$9:$L$2008,10,FALSE),13,1) ->  | W39: =MID(VLOOKUP($AT$7&"-"&AT$3&"-"&$A39,'DOCUMENTI EMESSI'!$C$9:$L$2008,10,FALSE),14,1) ->  | X39: =MID(VLOOKUP($AT$7&"-"&AT$3&"-"&$A39,'DOCUMENTI EMESSI'!$C$9:$L$2008,10,FALSE),15,1) ->  | Y39: =MID(VLOOKUP($AT$7&"-"&AT$3&"-"&$A39,'DOCUMENTI EMESSI'!$C$9:$L$2008,10,FALSE),16,1) ->  | Z39: =MID(VLOOKUP($AT$7&"-"&AT$3&"-"&$A39,'DOCUMENTI EMESSI'!$C$9:$L$2008,10,FALSE),17,1) ->  | AB39: =VLOOKUP($AT$7&"-"&AT$3&"-"&$A39,'DOCUMENTI EMESSI'!$C$9:$M$2008,11,FALSE) ->  | AG39: =VLOOKUP($AT$7&"-"&AT$3&"-"&$A39,'DOCUMENTI EMESSI'!$C$9:$N$2008,12,FALSE) ->  | AM39: =FLOOR(VLOOKUP($AT$7&"-"&AT$3&"-"&$A39,'DOCUMENTI EMESSI'!$C$9:$O$2008,13,FALSE),1) ->  | AR39: =LEFT(RIGHT(TEXT(VLOOKUP($AT$7&"-"&AT$3&"-"&$A39,'DOCUMENTI EMESSI'!$C$9:$O$2008,13,FALSE),"0,00"),2),1) ->  | AS39: =RIGHT(TEXT(VLOOKUP($AT$7&"-"&AT$3&"-"&$A39,'DOCUMENTI EMESSI'!$C$9:$O$2008,13,FALSE),"0,00"),1) ->  | AT39: =VLOOKUP($AT$7&"-"&$AT$3&"-"&A39,'DOCUMENTI EMESSI'!$C$9:$AC$2008,27,FALSE) -> 
A40: 19 | C40: =VLOOKUP($AT$7&"-"&AT$3&"-"&$A40,'DOCUMENTI EMESSI'!$C$9:$K$2008,9,FALSE) ->  | F40: =MID(VLOOKUP($AT$7&"-"&AT$3&"-"&$A40,'DOCUMENTI EMESSI'!$C$9:$L$2008,10,FALSE),1,1) ->  | H40: =MID(VLOOKUP($AT$7&"-"&AT$3&"-"&$A40,'DOCUMENTI EMESSI'!$C$9:$L$2008,10,FALSE),2,1) ->  | J40: =MID(VLOOKUP($AT$7&"-"&AT$3&"-"&$A40,'DOCUMENTI EMESSI'!$C$9:$L$2008,10,FALSE),3,1) ->  | L40: =MID(VLOOKUP($AT$7&"-"&AT$3&"-"&$A40,'DOCUMENTI EMESSI'!$C$9:$L$2008,10,FALSE),4,1) ->  | N40: =MID(VLOOKUP($AT$7&"-"&AT$3&"-"&$A40,'DOCUMENTI EMESSI'!$C$9:$L$2008,10,FALSE),5,1) ->  | O40: =MID(VLOOKUP($AT$7&"-"&AT$3&"-"&$A40,'DOCUMENTI EMESSI'!$C$9:$L$2008,10,FALSE),6,1) ->  | P40: =MID(VLOOKUP($AT$7&"-"&AT$3&"-"&$A40,'DOCUMENTI EMESSI'!$C$9:$L$2008,10,FALSE),7,1) ->  | Q40: =MID(VLOOKUP($AT$7&"-"&AT$3&"-"&$A40,'DOCUMENTI EMESSI'!$C$9:$L$2008,10,FALSE),8,1) ->  | R40: =MID(VLOOKUP($AT$7&"-"&AT$3&"-"&$A40,'DOCUMENTI EMESSI'!$C$9:$L$2008,10,FALSE),9,1) ->  | S40: =MID(VLOOKUP($AT$7&"-"&AT$3&"-"&$A40,'DOCUMENTI EMESSI'!$C$9:$L$2008,10,FALSE),10,1) ->  | T40: =MID(VLOOKUP($AT$7&"-"&AT$3&"-"&$A40,'DOCUMENTI EMESSI'!$C$9:$L$2008,10,FALSE),11,1) ->  | U40: =MID(VLOOKUP($AT$7&"-"&AT$3&"-"&$A40,'DOCUMENTI EMESSI'!$C$9:$L$2008,10,FALSE),12,1) ->  | V40: =MID(VLOOKUP($AT$7&"-"&AT$3&"-"&$A40,'DOCUMENTI EMESSI'!$C$9:$L$2008,10,FALSE),13,1) ->  | W40: =MID(VLOOKUP($AT$7&"-"&AT$3&"-"&$A40,'DOCUMENTI EMESSI'!$C$9:$L$2008,10,FALSE),14,1) ->  | X40: =MID(VLOOKUP($AT$7&"-"&AT$3&"-"&$A40,'DOCUMENTI EMESSI'!$C$9:$L$2008,10,FALSE),15,1) ->  | Y40: =MID(VLOOKUP($AT$7&"-"&AT$3&"-"&$A40,'DOCUMENTI EMESSI'!$C$9:$L$2008,10,FALSE),16,1) ->  | Z40: =MID(VLOOKUP($AT$7&"-"&AT$3&"-"&$A40,'DOCUMENTI EMESSI'!$C$9:$L$2008,10,FALSE),17,1) ->  | AB40: =VLOOKUP($AT$7&"-"&AT$3&"-"&$A40,'DOCUMENTI EMESSI'!$C$9:$M$2008,11,FALSE) ->  | AG40: =VLOOKUP($AT$7&"-"&AT$3&"-"&$A40,'DOCUMENTI EMESSI'!$C$9:$N$2008,12,FALSE) ->  | AM40: =FLOOR(VLOOKUP($AT$7&"-"&AT$3&"-"&$A40,'DOCUMENTI EMESSI'!$C$9:$O$2008,13,FALSE),1) ->  | AR40: =LEFT(RIGHT(TEXT(VLOOKUP($AT$7&"-"&AT$3&"-"&$A40,'DOCUMENTI EMESSI'!$C$9:$O$2008,13,FALSE),"0,00"),2),1) ->  | AS40: =RIGHT(TEXT(VLOOKUP($AT$7&"-"&AT$3&"-"&$A40,'DOCUMENTI EMESSI'!$C$9:$O$2008,13,FALSE),"0,00"),1) ->  | AT40: =VLOOKUP($AT$7&"-"&$AT$3&"-"&A40,'DOCUMENTI EMESSI'!$C$9:$AC$2008,27,FALSE) -> 
A41: 20 | C41: =VLOOKUP($AT$7&"-"&AT$3&"-"&$A41,'DOCUMENTI EMESSI'!$C$9:$K$2008,9,FALSE) ->  | F41: =MID(VLOOKUP($AT$7&"-"&AT$3&"-"&$A41,'DOCUMENTI EMESSI'!$C$9:$L$2008,10,FALSE),1,1) ->  | H41: =MID(VLOOKUP($AT$7&"-"&AT$3&"-"&$A41,'DOCUMENTI EMESSI'!$C$9:$L$2008,10,FALSE),2,1) ->  | J41: =MID(VLOOKUP($AT$7&"-"&AT$3&"-"&$A41,'DOCUMENTI EMESSI'!$C$9:$L$2008,10,FALSE),3,1) ->  | L41: =MID(VLOOKUP($AT$7&"-"&AT$3&"-"&$A41,'DOCUMENTI EMESSI'!$C$9:$L$2008,10,FALSE),4,1) ->  | N41: =MID(VLOOKUP($AT$7&"-"&AT$3&"-"&$A41,'DOCUMENTI EMESSI'!$C$9:$L$2008,10,FALSE),5,1) ->  | O41: =MID(VLOOKUP($AT$7&"-"&AT$3&"-"&$A41,'DOCUMENTI EMESSI'!$C$9:$L$2008,10,FALSE),6,1) ->  | P41: =MID(VLOOKUP($AT$7&"-"&AT$3&"-"&$A41,'DOCUMENTI EMESSI'!$C$9:$L$2008,10,FALSE),7,1) ->  | Q41: =MID(VLOOKUP($AT$7&"-"&AT$3&"-"&$A41,'DOCUMENTI EMESSI'!$C$9:$L$2008,10,FALSE),8,1) ->  | R41: =MID(VLOOKUP($AT$7&"-"&AT$3&"-"&$A41,'DOCUMENTI EMESSI'!$C$9:$L$2008,10,FALSE),9,1) ->  | S41: =MID(VLOOKUP($AT$7&"-"&AT$3&"-"&$A41,'DOCUMENTI EMESSI'!$C$9:$L$2008,10,FALSE),10,1) ->  | T41: =MID(VLOOKUP($AT$7&"-"&AT$3&"-"&$A41,'DOCUMENTI EMESSI'!$C$9:$L$2008,10,FALSE),11,1) ->  | U41: =MID(VLOOKUP($AT$7&"-"&AT$3&"-"&$A41,'DOCUMENTI EMESSI'!$C$9:$L$2008,10,FALSE),12,1) ->  | V41: =MID(VLOOKUP($AT$7&"-"&AT$3&"-"&$A41,'DOCUMENTI EMESSI'!$C$9:$L$2008,10,FALSE),13,1) ->  | W41: =MID(VLOOKUP($AT$7&"-"&AT$3&"-"&$A41,'DOCUMENTI EMESSI'!$C$9:$L$2008,10,FALSE),14,1) ->  | X41: =MID(VLOOKUP($AT$7&"-"&AT$3&"-"&$A41,'DOCUMENTI EMESSI'!$C$9:$L$2008,10,FALSE),15,1) ->  | Y41: =MID(VLOOKUP($AT$7&"-"&AT$3&"-"&$A41,'DOCUMENTI EMESSI'!$C$9:$L$2008,10,FALSE),16,1) ->  | Z41: =MID(VLOOKUP($AT$7&"-"&AT$3&"-"&$A41,'DOCUMENTI EMESSI'!$C$9:$L$2008,10,FALSE),17,1) ->  | AB41: =VLOOKUP($AT$7&"-"&AT$3&"-"&$A41,'DOCUMENTI EMESSI'!$C$9:$M$2008,11,FALSE) ->  | AG41: =VLOOKUP($AT$7&"-"&AT$3&"-"&$A41,'DOCUMENTI EMESSI'!$C$9:$N$2008,12,FALSE) ->  | AM41: =FLOOR(VLOOKUP($AT$7&"-"&AT$3&"-"&$A41,'DOCUMENTI EMESSI'!$C$9:$O$2008,13,FALSE),1) ->  | AR41: =LEFT(RIGHT(TEXT(VLOOKUP($AT$7&"-"&AT$3&"-"&$A41,'DOCUMENTI EMESSI'!$C$9:$O$2008,13,FALSE),"0,00"),2),1) ->  | AS41: =RIGHT(TEXT(VLOOKUP($AT$7&"-"&AT$3&"-"&$A41,'DOCUMENTI EMESSI'!$C$9:$O$2008,13,FALSE),"0,00"),1) ->  | AT41: =VLOOKUP($AT$7&"-"&$AT$3&"-"&A41,'DOCUMENTI EMESSI'!$C$9:$AC$2008,27,FALSE) -> 
A42: 21 | C42: =VLOOKUP($AT$7&"-"&AT$3&"-"&$A42,'DOCUMENTI EMESSI'!$C$9:$K$2008,9,FALSE) ->  | F42: =MID(VLOOKUP($AT$7&"-"&AT$3&"-"&$A42,'DOCUMENTI EMESSI'!$C$9:$L$2008,10,FALSE),1,1) ->  | H42: =MID(VLOOKUP($AT$7&"-"&AT$3&"-"&$A42,'DOCUMENTI EMESSI'!$C$9:$L$2008,10,FALSE),2,1) ->  | J42: =MID(VLOOKUP($AT$7&"-"&AT$3&"-"&$A42,'DOCUMENTI EMESSI'!$C$9:$L$2008,10,FALSE),3,1) ->  | L42: =MID(VLOOKUP($AT$7&"-"&AT$3&"-"&$A42,'DOCUMENTI EMESSI'!$C$9:$L$2008,10,FALSE),4,1) ->  | N42: =MID(VLOOKUP($AT$7&"-"&AT$3&"-"&$A42,'DOCUMENTI EMESSI'!$C$9:$L$2008,10,FALSE),5,1) ->  | O42: =MID(VLOOKUP($AT$7&"-"&AT$3&"-"&$A42,'DOCUMENTI EMESSI'!$C$9:$L$2008,10,FALSE),6,1) ->  | P42: =MID(VLOOKUP($AT$7&"-"&AT$3&"-"&$A42,'DOCUMENTI EMESSI'!$C$9:$L$2008,10,FALSE),7,1) ->  | Q42: =MID(VLOOKUP($AT$7&"-"&AT$3&"-"&$A42,'DOCUMENTI EMESSI'!$C$9:$L$2008,10,FALSE),8,1) ->  | R42: =MID(VLOOKUP($AT$7&"-"&AT$3&"-"&$A42,'DOCUMENTI EMESSI'!$C$9:$L$2008,10,FALSE),9,1) ->  | S42: =MID(VLOOKUP($AT$7&"-"&AT$3&"-"&$A42,'DOCUMENTI EMESSI'!$C$9:$L$2008,10,FALSE),10,1) ->  | T42: =MID(VLOOKUP($AT$7&"-"&AT$3&"-"&$A42,'DOCUMENTI EMESSI'!$C$9:$L$2008,10,FALSE),11,1) ->  | U42: =MID(VLOOKUP($AT$7&"-"&AT$3&"-"&$A42,'DOCUMENTI EMESSI'!$C$9:$L$2008,10,FALSE),12,1) ->  | V42: =MID(VLOOKUP($AT$7&"-"&AT$3&"-"&$A42,'DOCUMENTI EMESSI'!$C$9:$L$2008,10,FALSE),13,1) ->  | W42: =MID(VLOOKUP($AT$7&"-"&AT$3&"-"&$A42,'DOCUMENTI EMESSI'!$C$9:$L$2008,10,FALSE),14,1) ->  | X42: =MID(VLOOKUP($AT$7&"-"&AT$3&"-"&$A42,'DOCUMENTI EMESSI'!$C$9:$L$2008,10,FALSE),15,1) ->  | Y42: =MID(VLOOKUP($AT$7&"-"&AT$3&"-"&$A42,'DOCUMENTI EMESSI'!$C$9:$L$2008,10,FALSE),16,1) ->  | Z42: =MID(VLOOKUP($AT$7&"-"&AT$3&"-"&$A42,'DOCUMENTI EMESSI'!$C$9:$L$2008,10,FALSE),17,1) ->  | AB42: =VLOOKUP($AT$7&"-"&AT$3&"-"&$A42,'DOCUMENTI EMESSI'!$C$9:$M$2008,11,FALSE) ->  | AG42: =VLOOKUP($AT$7&"-"&AT$3&"-"&$A42,'DOCUMENTI EMESSI'!$C$9:$N$2008,12,FALSE) ->  | AM42: =FLOOR(VLOOKUP($AT$7&"-"&AT$3&"-"&$A42,'DOCUMENTI EMESSI'!$C$9:$O$2008,13,FALSE),1) ->  | AR42: =LEFT(RIGHT(TEXT(VLOOKUP($AT$7&"-"&AT$3&"-"&$A42,'DOCUMENTI EMESSI'!$C$9:$O$2008,13,FALSE),"0,00"),2),1) ->  | AS42: =RIGHT(TEXT(VLOOKUP($AT$7&"-"&AT$3&"-"&$A42,'DOCUMENTI EMESSI'!$C$9:$O$2008,13,FALSE),"0,00"),1) ->  | AT42: =VLOOKUP($AT$7&"-"&$AT$3&"-"&A42,'DOCUMENTI EMESSI'!$C$9:$AC$2008,27,FALSE) -> 
A43: 22 | C43: =VLOOKUP($AT$7&"-"&AT$3&"-"&$A43,'DOCUMENTI EMESSI'!$C$9:$K$2008,9,FALSE) ->  | F43: =MID(VLOOKUP($AT$7&"-"&AT$3&"-"&$A43,'DOCUMENTI EMESSI'!$C$9:$L$2008,10,FALSE),1,1) ->  | H43: =MID(VLOOKUP($AT$7&"-"&AT$3&"-"&$A43,'DOCUMENTI EMESSI'!$C$9:$L$2008,10,FALSE),2,1) ->  | J43: =MID(VLOOKUP($AT$7&"-"&AT$3&"-"&$A43,'DOCUMENTI EMESSI'!$C$9:$L$2008,10,FALSE),3,1) ->  | L43: =MID(VLOOKUP($AT$7&"-"&AT$3&"-"&$A43,'DOCUMENTI EMESSI'!$C$9:$L$2008,10,FALSE),4,1) ->  | N43: =MID(VLOOKUP($AT$7&"-"&AT$3&"-"&$A43,'DOCUMENTI EMESSI'!$C$9:$L$2008,10,FALSE),5,1) ->  | O43: =MID(VLOOKUP($AT$7&"-"&AT$3&"-"&$A43,'DOCUMENTI EMESSI'!$C$9:$L$2008,10,FALSE),6,1) ->  | P43: =MID(VLOOKUP($AT$7&"-"&AT$3&"-"&$A43,'DOCUMENTI EMESSI'!$C$9:$L$2008,10,FALSE),7,1) ->  | Q43: =MID(VLOOKUP($AT$7&"-"&AT$3&"-"&$A43,'DOCUMENTI EMESSI'!$C$9:$L$2008,10,FALSE),8,1) ->  | R43: =MID(VLOOKUP($AT$7&"-"&AT$3&"-"&$A43,'DOCUMENTI EMESSI'!$C$9:$L$2008,10,FALSE),9,1) ->  | S43: =MID(VLOOKUP($AT$7&"-"&AT$3&"-"&$A43,'DOCUMENTI EMESSI'!$C$9:$L$2008,10,FALSE),10,1) ->  | T43: =MID(VLOOKUP($AT$7&"-"&AT$3&"-"&$A43,'DOCUMENTI EMESSI'!$C$9:$L$2008,10,FALSE),11,1) ->  | U43: =MID(VLOOKUP($AT$7&"-"&AT$3&"-"&$A43,'DOCUMENTI EMESSI'!$C$9:$L$2008,10,FALSE),12,1) ->  | V43: =MID(VLOOKUP($AT$7&"-"&AT$3&"-"&$A43,'DOCUMENTI EMESSI'!$C$9:$L$2008,10,FALSE),13,1) ->  | W43: =MID(VLOOKUP($AT$7&"-"&AT$3&"-"&$A43,'DOCUMENTI EMESSI'!$C$9:$L$2008,10,FALSE),14,1) ->  | X43: =MID(VLOOKUP($AT$7&"-"&AT$3&"-"&$A43,'DOCUMENTI EMESSI'!$C$9:$L$2008,10,FALSE),15,1) ->  | Y43: =MID(VLOOKUP($AT$7&"-"&AT$3&"-"&$A43,'DOCUMENTI EMESSI'!$C$9:$L$2008,10,FALSE),16,1) ->  | Z43: =MID(VLOOKUP($AT$7&"-"&AT$3&"-"&$A43,'DOCUMENTI EMESSI'!$C$9:$L$2008,10,FALSE),17,1) ->  | AB43: =VLOOKUP($AT$7&"-"&AT$3&"-"&$A43,'DOCUMENTI EMESSI'!$C$9:$M$2008,11,FALSE) ->  | AG43: =VLOOKUP($AT$7&"-"&AT$3&"-"&$A43,'DOCUMENTI EMESSI'!$C$9:$N$2008,12,FALSE) ->  | AM43: =FLOOR(VLOOKUP($AT$7&"-"&AT$3&"-"&$A43,'DOCUMENTI EMESSI'!$C$9:$O$2008,13,FALSE),1) ->  | AR43: =LEFT(RIGHT(TEXT(VLOOKUP($AT$7&"-"&AT$3&"-"&$A43,'DOCUMENTI EMESSI'!$C$9:$O$2008,13,FALSE),"0,00"),2),1) ->  | AS43: =RIGHT(TEXT(VLOOKUP($AT$7&"-"&AT$3&"-"&$A43,'DOCUMENTI EMESSI'!$C$9:$O$2008,13,FALSE),"0,00"),1) ->  | AT43: =VLOOKUP($AT$7&"-"&$AT$3&"-"&A43,'DOCUMENTI EMESSI'!$C$9:$AC$2008,27,FALSE) -> 
A44: 23 | C44: =VLOOKUP($AT$7&"-"&AT$3&"-"&$A44,'DOCUMENTI EMESSI'!$C$9:$K$2008,9,FALSE) ->  | F44: =MID(VLOOKUP($AT$7&"-"&AT$3&"-"&$A44,'DOCUMENTI EMESSI'!$C$9:$L$2008,10,FALSE),1,1) ->  | H44: =MID(VLOOKUP($AT$7&"-"&AT$3&"-"&$A44,'DOCUMENTI EMESSI'!$C$9:$L$2008,10,FALSE),2,1) ->  | J44: =MID(VLOOKUP($AT$7&"-"&AT$3&"-"&$A44,'DOCUMENTI EMESSI'!$C$9:$L$2008,10,FALSE),3,1) ->  | L44: =MID(VLOOKUP($AT$7&"-"&AT$3&"-"&$A44,'DOCUMENTI EMESSI'!$C$9:$L$2008,10,FALSE),4,1) ->  | N44: =MID(VLOOKUP($AT$7&"-"&AT$3&"-"&$A44,'DOCUMENTI EMESSI'!$C$9:$L$2008,10,FALSE),5,1) ->  | O44: =MID(VLOOKUP($AT$7&"-"&AT$3&"-"&$A44,'DOCUMENTI EMESSI'!$C$9:$L$2008,10,FALSE),6,1) ->  | P44: =MID(VLOOKUP($AT$7&"-"&AT$3&"-"&$A44,'DOCUMENTI EMESSI'!$C$9:$L$2008,10,FALSE),7,1) ->  | Q44: =MID(VLOOKUP($AT$7&"-"&AT$3&"-"&$A44,'DOCUMENTI EMESSI'!$C$9:$L$2008,10,FALSE),8,1) ->  | R44: =MID(VLOOKUP($AT$7&"-"&AT$3&"-"&$A44,'DOCUMENTI EMESSI'!$C$9:$L$2008,10,FALSE),9,1) ->  | S44: =MID(VLOOKUP($AT$7&"-"&AT$3&"-"&$A44,'DOCUMENTI EMESSI'!$C$9:$L$2008,10,FALSE),10,1) ->  | T44: =MID(VLOOKUP($AT$7&"-"&AT$3&"-"&$A44,'DOCUMENTI EMESSI'!$C$9:$L$2008,10,FALSE),11,1) ->  | U44: =MID(VLOOKUP($AT$7&"-"&AT$3&"-"&$A44,'DOCUMENTI EMESSI'!$C$9:$L$2008,10,FALSE),12,1) ->  | V44: =MID(VLOOKUP($AT$7&"-"&AT$3&"-"&$A44,'DOCUMENTI EMESSI'!$C$9:$L$2008,10,FALSE),13,1) ->  | W44: =MID(VLOOKUP($AT$7&"-"&AT$3&"-"&$A44,'DOCUMENTI EMESSI'!$C$9:$L$2008,10,FALSE),14,1) ->  | X44: =MID(VLOOKUP($AT$7&"-"&AT$3&"-"&$A44,'DOCUMENTI EMESSI'!$C$9:$L$2008,10,FALSE),15,1) ->  | Y44: =MID(VLOOKUP($AT$7&"-"&AT$3&"-"&$A44,'DOCUMENTI EMESSI'!$C$9:$L$2008,10,FALSE),16,1) ->  | Z44: =MID(VLOOKUP($AT$7&"-"&AT$3&"-"&$A44,'DOCUMENTI EMESSI'!$C$9:$L$2008,10,FALSE),17,1) ->  | AB44: =VLOOKUP($AT$7&"-"&AT$3&"-"&$A44,'DOCUMENTI EMESSI'!$C$9:$M$2008,11,FALSE) ->  | AG44: =VLOOKUP($AT$7&"-"&AT$3&"-"&$A44,'DOCUMENTI EMESSI'!$C$9:$N$2008,12,FALSE) ->  | AM44: =FLOOR(VLOOKUP($AT$7&"-"&AT$3&"-"&$A44,'DOCUMENTI EMESSI'!$C$9:$O$2008,13,FALSE),1) ->  | AR44: =LEFT(RIGHT(TEXT(VLOOKUP($AT$7&"-"&AT$3&"-"&$A44,'DOCUMENTI EMESSI'!$C$9:$O$2008,13,FALSE),"0,00"),2),1) ->  | AS44: =RIGHT(TEXT(VLOOKUP($AT$7&"-"&AT$3&"-"&$A44,'DOCUMENTI EMESSI'!$C$9:$O$2008,13,FALSE),"0,00"),1) ->  | AT44: =VLOOKUP($AT$7&"-"&$AT$3&"-"&A44,'DOCUMENTI EMESSI'!$C$9:$AC$2008,27,FALSE) -> 
A45: 24 | C45: =VLOOKUP($AT$7&"-"&AT$3&"-"&$A45,'DOCUMENTI EMESSI'!$C$9:$K$2008,9,FALSE) ->  | F45: =MID(VLOOKUP($AT$7&"-"&AT$3&"-"&$A45,'DOCUMENTI EMESSI'!$C$9:$L$2008,10,FALSE),1,1) ->  | H45: =MID(VLOOKUP($AT$7&"-"&AT$3&"-"&$A45,'DOCUMENTI EMESSI'!$C$9:$L$2008,10,FALSE),2,1) ->  | J45: =MID(VLOOKUP($AT$7&"-"&AT$3&"-"&$A45,'DOCUMENTI EMESSI'!$C$9:$L$2008,10,FALSE),3,1) ->  | L45: =MID(VLOOKUP($AT$7&"-"&AT$3&"-"&$A45,'DOCUMENTI EMESSI'!$C$9:$L$2008,10,FALSE),4,1) ->  | N45: =MID(VLOOKUP($AT$7&"-"&AT$3&"-"&$A45,'DOCUMENTI EMESSI'!$C$9:$L$2008,10,FALSE),5,1) ->  | O45: =MID(VLOOKUP($AT$7&"-"&AT$3&"-"&$A45,'DOCUMENTI EMESSI'!$C$9:$L$2008,10,FALSE),6,1) ->  | P45: =MID(VLOOKUP($AT$7&"-"&AT$3&"-"&$A45,'DOCUMENTI EMESSI'!$C$9:$L$2008,10,FALSE),7,1) ->  | Q45: =MID(VLOOKUP($AT$7&"-"&AT$3&"-"&$A45,'DOCUMENTI EMESSI'!$C$9:$L$2008,10,FALSE),8,1) ->  | R45: =MID(VLOOKUP($AT$7&"-"&AT$3&"-"&$A45,'DOCUMENTI EMESSI'!$C$9:$L$2008,10,FALSE),9,1) ->  | S45: =MID(VLOOKUP($AT$7&"-"&AT$3&"-"&$A45,'DOCUMENTI EMESSI'!$C$9:$L$2008,10,FALSE),10,1) ->  | T45: =MID(VLOOKUP($AT$7&"-"&AT$3&"-"&$A45,'DOCUMENTI EMESSI'!$C$9:$L$2008,10,FALSE),11,1) ->  | U45: =MID(VLOOKUP($AT$7&"-"&AT$3&"-"&$A45,'DOCUMENTI EMESSI'!$C$9:$L$2008,10,FALSE),12,1) ->  | V45: =MID(VLOOKUP($AT$7&"-"&AT$3&"-"&$A45,'DOCUMENTI EMESSI'!$C$9:$L$2008,10,FALSE),13,1) ->  | W45: =MID(VLOOKUP($AT$7&"-"&AT$3&"-"&$A45,'DOCUMENTI EMESSI'!$C$9:$L$2008,10,FALSE),14,1) ->  | X45: =MID(VLOOKUP($AT$7&"-"&AT$3&"-"&$A45,'DOCUMENTI EMESSI'!$C$9:$L$2008,10,FALSE),15,1) ->  | Y45: =MID(VLOOKUP($AT$7&"-"&AT$3&"-"&$A45,'DOCUMENTI EMESSI'!$C$9:$L$2008,10,FALSE),16,1) ->  | Z45: =MID(VLOOKUP($AT$7&"-"&AT$3&"-"&$A45,'DOCUMENTI EMESSI'!$C$9:$L$2008,10,FALSE),17,1) ->  | AB45: =VLOOKUP($AT$7&"-"&AT$3&"-"&$A45,'DOCUMENTI EMESSI'!$C$9:$M$2008,11,FALSE) ->  | AG45: =VLOOKUP($AT$7&"-"&AT$3&"-"&$A45,'DOCUMENTI EMESSI'!$C$9:$N$2008,12,FALSE) ->  | AM45: =FLOOR(VLOOKUP($AT$7&"-"&AT$3&"-"&$A45,'DOCUMENTI EMESSI'!$C$9:$O$2008,13,FALSE),1) ->  | AR45: =LEFT(RIGHT(TEXT(VLOOKUP($AT$7&"-"&AT$3&"-"&$A45,'DOCUMENTI EMESSI'!$C$9:$O$2008,13,FALSE),"0,00"),2),1) ->  | AS45: =RIGHT(TEXT(VLOOKUP($AT$7&"-"&AT$3&"-"&$A45,'DOCUMENTI EMESSI'!$C$9:$O$2008,13,FALSE),"0,00"),1) ->  | AT45: =VLOOKUP($AT$7&"-"&$AT$3&"-"&A45,'DOCUMENTI EMESSI'!$C$9:$AC$2008,27,FALSE) -> 
A46: 25 | C46: =VLOOKUP($AT$7&"-"&AT$3&"-"&$A46,'DOCUMENTI EMESSI'!$C$9:$K$2008,9,FALSE) ->  | F46: =MID(VLOOKUP($AT$7&"-"&AT$3&"-"&$A46,'DOCUMENTI EMESSI'!$C$9:$L$2008,10,FALSE),1,1) ->  | H46: =MID(VLOOKUP($AT$7&"-"&AT$3&"-"&$A46,'DOCUMENTI EMESSI'!$C$9:$L$2008,10,FALSE),2,1) ->  | J46: =MID(VLOOKUP($AT$7&"-"&AT$3&"-"&$A46,'DOCUMENTI EMESSI'!$C$9:$L$2008,10,FALSE),3,1) ->  | L46: =MID(VLOOKUP($AT$7&"-"&AT$3&"-"&$A46,'DOCUMENTI EMESSI'!$C$9:$L$2008,10,FALSE),4,1) ->  | N46: =MID(VLOOKUP($AT$7&"-"&AT$3&"-"&$A46,'DOCUMENTI EMESSI'!$C$9:$L$2008,10,FALSE),5,1) ->  | O46: =MID(VLOOKUP($AT$7&"-"&AT$3&"-"&$A46,'DOCUMENTI EMESSI'!$C$9:$L$2008,10,FALSE),6,1) ->  | P46: =MID(VLOOKUP($AT$7&"-"&AT$3&"-"&$A46,'DOCUMENTI EMESSI'!$C$9:$L$2008,10,FALSE),7,1) ->  | Q46: =MID(VLOOKUP($AT$7&"-"&AT$3&"-"&$A46,'DOCUMENTI EMESSI'!$C$9:$L$2008,10,FALSE),8,1) ->  | R46: =MID(VLOOKUP($AT$7&"-"&AT$3&"-"&$A46,'DOCUMENTI EMESSI'!$C$9:$L$2008,10,FALSE),9,1) ->  | S46: =MID(VLOOKUP($AT$7&"-"&AT$3&"-"&$A46,'DOCUMENTI EMESSI'!$C$9:$L$2008,10,FALSE),10,1) ->  | T46: =MID(VLOOKUP($AT$7&"-"&AT$3&"-"&$A46,'DOCUMENTI EMESSI'!$C$9:$L$2008,10,FALSE),11,1) ->  | U46: =MID(VLOOKUP($AT$7&"-"&AT$3&"-"&$A46,'DOCUMENTI EMESSI'!$C$9:$L$2008,10,FALSE),12,1) ->  | V46: =MID(VLOOKUP($AT$7&"-"&AT$3&"-"&$A46,'DOCUMENTI EMESSI'!$C$9:$L$2008,10,FALSE),13,1) ->  | W46: =MID(VLOOKUP($AT$7&"-"&AT$3&"-"&$A46,'DOCUMENTI EMESSI'!$C$9:$L$2008,10,FALSE),14,1) ->  | X46: =MID(VLOOKUP($AT$7&"-"&AT$3&"-"&$A46,'DOCUMENTI EMESSI'!$C$9:$L$2008,10,FALSE),15,1) ->  | Y46: =MID(VLOOKUP($AT$7&"-"&AT$3&"-"&$A46,'DOCUMENTI EMESSI'!$C$9:$L$2008,10,FALSE),16,1) ->  | Z46: =MID(VLOOKUP($AT$7&"-"&AT$3&"-"&$A46,'DOCUMENTI EMESSI'!$C$9:$L$2008,10,FALSE),17,1) ->  | AB46: =VLOOKUP($AT$7&"-"&AT$3&"-"&$A46,'DOCUMENTI EMESSI'!$C$9:$M$2008,11,FALSE) ->  | AG46: =VLOOKUP($AT$7&"-"&AT$3&"-"&$A46,'DOCUMENTI EMESSI'!$C$9:$N$2008,12,FALSE) ->  | AM46: =FLOOR(VLOOKUP($AT$7&"-"&AT$3&"-"&$A46,'DOCUMENTI EMESSI'!$C$9:$O$2008,13,FALSE),1) ->  | AR46: =LEFT(RIGHT(TEXT(VLOOKUP($AT$7&"-"&AT$3&"-"&$A46,'DOCUMENTI EMESSI'!$C$9:$O$2008,13,FALSE),"0,00"),2),1) ->  | AS46: =RIGHT(TEXT(VLOOKUP($AT$7&"-"&AT$3&"-"&$A46,'DOCUMENTI EMESSI'!$C$9:$O$2008,13,FALSE),"0,00"),1) ->  | AT46: =VLOOKUP($AT$7&"-"&$AT$3&"-"&A46,'DOCUMENTI EMESSI'!$C$9:$AC$2008,27,FALSE) -> 
A47: 26 | C47: =VLOOKUP($AT$7&"-"&AT$3&"-"&$A47,'DOCUMENTI EMESSI'!$C$9:$K$2008,9,FALSE) ->  | F47: =MID(VLOOKUP($AT$7&"-"&AT$3&"-"&$A47,'DOCUMENTI EMESSI'!$C$9:$L$2008,10,FALSE),1,1) ->  | H47: =MID(VLOOKUP($AT$7&"-"&AT$3&"-"&$A47,'DOCUMENTI EMESSI'!$C$9:$L$2008,10,FALSE),2,1) ->  | J47: =MID(VLOOKUP($AT$7&"-"&AT$3&"-"&$A47,'DOCUMENTI EMESSI'!$C$9:$L$2008,10,FALSE),3,1) ->  | L47: =MID(VLOOKUP($AT$7&"-"&AT$3&"-"&$A47,'DOCUMENTI EMESSI'!$C$9:$L$2008,10,FALSE),4,1) ->  | N47: =MID(VLOOKUP($AT$7&"-"&AT$3&"-"&$A47,'DOCUMENTI EMESSI'!$C$9:$L$2008,10,FALSE),5,1) ->  | O47: =MID(VLOOKUP($AT$7&"-"&AT$3&"-"&$A47,'DOCUMENTI EMESSI'!$C$9:$L$2008,10,FALSE),6,1) ->  | P47: =MID(VLOOKUP($AT$7&"-"&AT$3&"-"&$A47,'DOCUMENTI EMESSI'!$C$9:$L$2008,10,FALSE),7,1) ->  | Q47: =MID(VLOOKUP($AT$7&"-"&AT$3&"-"&$A47,'DOCUMENTI EMESSI'!$C$9:$L$2008,10,FALSE),8,1) ->  | R47: =MID(VLOOKUP($AT$7&"-"&AT$3&"-"&$A47,'DOCUMENTI EMESSI'!$C$9:$L$2008,10,FALSE),9,1) ->  | S47: =MID(VLOOKUP($AT$7&"-"&AT$3&"-"&$A47,'DOCUMENTI EMESSI'!$C$9:$L$2008,10,FALSE),10,1) ->  | T47: =MID(VLOOKUP($AT$7&"-"&AT$3&"-"&$A47,'DOCUMENTI EMESSI'!$C$9:$L$2008,10,FALSE),11,1) ->  | U47: =MID(VLOOKUP($AT$7&"-"&AT$3&"-"&$A47,'DOCUMENTI EMESSI'!$C$9:$L$2008,10,FALSE),12,1) ->  | V47: =MID(VLOOKUP($AT$7&"-"&AT$3&"-"&$A47,'DOCUMENTI EMESSI'!$C$9:$L$2008,10,FALSE),13,1) ->  | W47: =MID(VLOOKUP($AT$7&"-"&AT$3&"-"&$A47,'DOCUMENTI EMESSI'!$C$9:$L$2008,10,FALSE),14,1) ->  | X47: =MID(VLOOKUP($AT$7&"-"&AT$3&"-"&$A47,'DOCUMENTI EMESSI'!$C$9:$L$2008,10,FALSE),15,1) ->  | Y47: =MID(VLOOKUP($AT$7&"-"&AT$3&"-"&$A47,'DOCUMENTI EMESSI'!$C$9:$L$2008,10,FALSE),16,1) ->  | Z47: =MID(VLOOKUP($AT$7&"-"&AT$3&"-"&$A47,'DOCUMENTI EMESSI'!$C$9:$L$2008,10,FALSE),17,1) ->  | AB47: =VLOOKUP($AT$7&"-"&AT$3&"-"&$A47,'DOCUMENTI EMESSI'!$C$9:$M$2008,11,FALSE) ->  | AG47: =VLOOKUP($AT$7&"-"&AT$3&"-"&$A47,'DOCUMENTI EMESSI'!$C$9:$N$2008,12,FALSE) ->  | AM47: =FLOOR(VLOOKUP($AT$7&"-"&AT$3&"-"&$A47,'DOCUMENTI EMESSI'!$C$9:$O$2008,13,FALSE),1) ->  | AR47: =LEFT(RIGHT(TEXT(VLOOKUP($AT$7&"-"&AT$3&"-"&$A47,'DOCUMENTI EMESSI'!$C$9:$O$2008,13,FALSE),"0,00"),2),1) ->  | AS47: =RIGHT(TEXT(VLOOKUP($AT$7&"-"&AT$3&"-"&$A47,'DOCUMENTI EMESSI'!$C$9:$O$2008,13,FALSE),"0,00"),1) ->  | AT47: =VLOOKUP($AT$7&"-"&$AT$3&"-"&A47,'DOCUMENTI EMESSI'!$C$9:$AC$2008,27,FALSE) -> 
A48: 27 | C48: =VLOOKUP($AT$7&"-"&AT$3&"-"&$A48,'DOCUMENTI EMESSI'!$C$9:$K$2008,9,FALSE) ->  | F48: =MID(VLOOKUP($AT$7&"-"&AT$3&"-"&$A48,'DOCUMENTI EMESSI'!$C$9:$L$2008,10,FALSE),1,1) ->  | H48: =MID(VLOOKUP($AT$7&"-"&AT$3&"-"&$A48,'DOCUMENTI EMESSI'!$C$9:$L$2008,10,FALSE),2,1) ->  | J48: =MID(VLOOKUP($AT$7&"-"&AT$3&"-"&$A48,'DOCUMENTI EMESSI'!$C$9:$L$2008,10,FALSE),3,1) ->  | L48: =MID(VLOOKUP($AT$7&"-"&AT$3&"-"&$A48,'DOCUMENTI EMESSI'!$C$9:$L$2008,10,FALSE),4,1) ->  | N48: =MID(VLOOKUP($AT$7&"-"&AT$3&"-"&$A48,'DOCUMENTI EMESSI'!$C$9:$L$2008,10,FALSE),5,1) ->  | O48: =MID(VLOOKUP($AT$7&"-"&AT$3&"-"&$A48,'DOCUMENTI EMESSI'!$C$9:$L$2008,10,FALSE),6,1) ->  | P48: =MID(VLOOKUP($AT$7&"-"&AT$3&"-"&$A48,'DOCUMENTI EMESSI'!$C$9:$L$2008,10,FALSE),7,1) ->  | Q48: =MID(VLOOKUP($AT$7&"-"&AT$3&"-"&$A48,'DOCUMENTI EMESSI'!$C$9:$L$2008,10,FALSE),8,1) ->  | R48: =MID(VLOOKUP($AT$7&"-"&AT$3&"-"&$A48,'DOCUMENTI EMESSI'!$C$9:$L$2008,10,FALSE),9,1) ->  | S48: =MID(VLOOKUP($AT$7&"-"&AT$3&"-"&$A48,'DOCUMENTI EMESSI'!$C$9:$L$2008,10,FALSE),10,1) ->  | T48: =MID(VLOOKUP($AT$7&"-"&AT$3&"-"&$A48,'DOCUMENTI EMESSI'!$C$9:$L$2008,10,FALSE),11,1) ->  | U48: =MID(VLOOKUP($AT$7&"-"&AT$3&"-"&$A48,'DOCUMENTI EMESSI'!$C$9:$L$2008,10,FALSE),12,1) ->  | V48: =MID(VLOOKUP($AT$7&"-"&AT$3&"-"&$A48,'DOCUMENTI EMESSI'!$C$9:$L$2008,10,FALSE),13,1) ->  | W48: =MID(VLOOKUP($AT$7&"-"&AT$3&"-"&$A48,'DOCUMENTI EMESSI'!$C$9:$L$2008,10,FALSE),14,1) ->  | X48: =MID(VLOOKUP($AT$7&"-"&AT$3&"-"&$A48,'DOCUMENTI EMESSI'!$C$9:$L$2008,10,FALSE),15,1) ->  | Y48: =MID(VLOOKUP($AT$7&"-"&AT$3&"-"&$A48,'DOCUMENTI EMESSI'!$C$9:$L$2008,10,FALSE),16,1) ->  | Z48: =MID(VLOOKUP($AT$7&"-"&AT$3&"-"&$A48,'DOCUMENTI EMESSI'!$C$9:$L$2008,10,FALSE),17,1) ->  | AB48: =VLOOKUP($AT$7&"-"&AT$3&"-"&$A48,'DOCUMENTI EMESSI'!$C$9:$M$2008,11,FALSE) ->  | AG48: =VLOOKUP($AT$7&"-"&AT$3&"-"&$A48,'DOCUMENTI EMESSI'!$C$9:$N$2008,12,FALSE) ->  | AM48: =FLOOR(VLOOKUP($AT$7&"-"&AT$3&"-"&$A48,'DOCUMENTI EMESSI'!$C$9:$O$2008,13,FALSE),1) ->  | AR48: =LEFT(RIGHT(TEXT(VLOOKUP($AT$7&"-"&AT$3&"-"&$A48,'DOCUMENTI EMESSI'!$C$9:$O$2008,13,FALSE),"0,00"),2),1) ->  | AS48: =RIGHT(TEXT(VLOOKUP($AT$7&"-"&AT$3&"-"&$A48,'DOCUMENTI EMESSI'!$C$9:$O$2008,13,FALSE),"0,00"),1) ->  | AT48: =VLOOKUP($AT$7&"-"&$AT$3&"-"&A48,'DOCUMENTI EMESSI'!$C$9:$AC$2008,27,FALSE) -> 
A49: 28 | C49: =VLOOKUP($AT$7&"-"&AT$3&"-"&$A49,'DOCUMENTI EMESSI'!$C$9:$K$2008,9,FALSE) ->  | F49: =MID(VLOOKUP($AT$7&"-"&AT$3&"-"&$A49,'DOCUMENTI EMESSI'!$C$9:$L$2008,10,FALSE),1,1) ->  | H49: =MID(VLOOKUP($AT$7&"-"&AT$3&"-"&$A49,'DOCUMENTI EMESSI'!$C$9:$L$2008,10,FALSE),2,1) ->  | J49: =MID(VLOOKUP($AT$7&"-"&AT$3&"-"&$A49,'DOCUMENTI EMESSI'!$C$9:$L$2008,10,FALSE),3,1) ->  | L49: =MID(VLOOKUP($AT$7&"-"&AT$3&"-"&$A49,'DOCUMENTI EMESSI'!$C$9:$L$2008,10,FALSE),4,1) ->  | N49: =MID(VLOOKUP($AT$7&"-"&AT$3&"-"&$A49,'DOCUMENTI EMESSI'!$C$9:$L$2008,10,FALSE),5,1) ->  | O49: =MID(VLOOKUP($AT$7&"-"&AT$3&"-"&$A49,'DOCUMENTI EMESSI'!$C$9:$L$2008,10,FALSE),6,1) ->  | P49: =MID(VLOOKUP($AT$7&"-"&AT$3&"-"&$A49,'DOCUMENTI EMESSI'!$C$9:$L$2008,10,FALSE),7,1) ->  | Q49: =MID(VLOOKUP($AT$7&"-"&AT$3&"-"&$A49,'DOCUMENTI EMESSI'!$C$9:$L$2008,10,FALSE),8,1) ->  | R49: =MID(VLOOKUP($AT$7&"-"&AT$3&"-"&$A49,'DOCUMENTI EMESSI'!$C$9:$L$2008,10,FALSE),9,1) ->  | S49: =MID(VLOOKUP($AT$7&"-"&AT$3&"-"&$A49,'DOCUMENTI EMESSI'!$C$9:$L$2008,10,FALSE),10,1) ->  | T49: =MID(VLOOKUP($AT$7&"-"&AT$3&"-"&$A49,'DOCUMENTI EMESSI'!$C$9:$L$2008,10,FALSE),11,1) ->  | U49: =MID(VLOOKUP($AT$7&"-"&AT$3&"-"&$A49,'DOCUMENTI EMESSI'!$C$9:$L$2008,10,FALSE),12,1) ->  | V49: =MID(VLOOKUP($AT$7&"-"&AT$3&"-"&$A49,'DOCUMENTI EMESSI'!$C$9:$L$2008,10,FALSE),13,1) ->  | W49: =MID(VLOOKUP($AT$7&"-"&AT$3&"-"&$A49,'DOCUMENTI EMESSI'!$C$9:$L$2008,10,FALSE),14,1) ->  | X49: =MID(VLOOKUP($AT$7&"-"&AT$3&"-"&$A49,'DOCUMENTI EMESSI'!$C$9:$L$2008,10,FALSE),15,1) ->  | Y49: =MID(VLOOKUP($AT$7&"-"&AT$3&"-"&$A49,'DOCUMENTI EMESSI'!$C$9:$L$2008,10,FALSE),16,1) ->  | Z49: =MID(VLOOKUP($AT$7&"-"&AT$3&"-"&$A49,'DOCUMENTI EMESSI'!$C$9:$L$2008,10,FALSE),17,1) ->  | AB49: =VLOOKUP($AT$7&"-"&AT$3&"-"&$A49,'DOCUMENTI EMESSI'!$C$9:$M$2008,11,FALSE) ->  | AG49: =VLOOKUP($AT$7&"-"&AT$3&"-"&$A49,'DOCUMENTI EMESSI'!$C$9:$N$2008,12,FALSE) ->  | AM49: =FLOOR(VLOOKUP($AT$7&"-"&AT$3&"-"&$A49,'DOCUMENTI EMESSI'!$C$9:$O$2008,13,FALSE),1) ->  | AR49: =LEFT(RIGHT(TEXT(VLOOKUP($AT$7&"-"&AT$3&"-"&$A49,'DOCUMENTI EMESSI'!$C$9:$O$2008,13,FALSE),"0,00"),2),1) ->  | AS49: =RIGHT(TEXT(VLOOKUP($AT$7&"-"&AT$3&"-"&$A49,'DOCUMENTI EMESSI'!$C$9:$O$2008,13,FALSE),"0,00"),1) ->  | AT49: =VLOOKUP($AT$7&"-"&$AT$3&"-"&A49,'DOCUMENTI EMESSI'!$C$9:$AC$2008,27,FALSE) -> 
AM52: =FLOOR(SUMIF('DOCUMENTI EMESSI'!B9:B2008,AT7&"-"&AT3,'DOCUMENTI EMESSI'!O9:O2008),1) -> 1 | AR52: =LEFT(RIGHT(TEXT(SUMIF('DOCUMENTI EMESSI'!B9:B2008,AT7&"-"&AT3,'DOCUMENTI EMESSI'!O9:O2008),"0,00"),2),1) -> 0 | AS52: =RIGHT(TEXT(SUMIF('DOCUMENTI EMESSI'!B9:B2008,AT7&"-"&AT3,'DOCUMENTI EMESSI'!O9:O2008),"0,00"),1) -> 0
AN54: =IF(ISERROR(L70),"",VLOOKUP(AT7&"-"&AT3,'DOCUMENTI EMESSI'!B9:X2008,23,FALSE)) -> X
AF55: =IF(ISERROR(L70),"",VLOOKUP(AT7,'DOCUMENTI EMESSI'!D9:W2008,20,FALSE)) -> 0123456789 | AN55: =IF(ISERROR(L70),"",VLOOKUP(AT7&"-"&AT3,'DOCUMENTI EMESSI'!B9:Y2008,24,FALSE)) -> 
B56: =IF(ISERROR(L70),"",MID(TEXT(VLOOKUP(AT7&"-"&AT3,'DOCUMENTI EMESSI'!B9:E2008,4,FALSE),"gg/mm/aaaa"),1,1)) -> 0 | D56: =IF(ISERROR(L70),"",MID(TEXT(VLOOKUP(AT7&"-"&AT3,'DOCUMENTI EMESSI'!B9:E2008,4,FALSE),"gg/mm/aaaa"),2,1)) -> 1 | G56: =IF(ISERROR(L70),"",MID(TEXT(VLOOKUP(AT7&"-"&AT3,'DOCUMENTI EMESSI'!B9:E2008,4,FALSE),"gg/mm/aaaa"),4,1)) -> 0 | H56: =IF(ISERROR(L70),"",MID(TEXT(VLOOKUP(AT7&"-"&AT3,'DOCUMENTI EMESSI'!B9:E2008,4,FALSE),"gg/mm/aaaa"),5,1)) -> 1 | J56: =IF(ISERROR(L70),"",MID(TEXT(VLOOKUP(AT7&"-"&AT3,'DOCUMENTI EMESSI'!B9:E2008,4,FALSE),"gg/mm/aaaa"),7,1)) -> 2 | L56: =IF(ISERROR(L70),"",MID(TEXT(VLOOKUP(AT7&"-"&AT3,'DOCUMENTI EMESSI'!B9:E2008,4,FALSE),"gg/mm/aaaa"),8,1)) -> 0 | N56: =IF(ISERROR(L70),"",MID(TEXT(VLOOKUP(AT7&"-"&AT3,'DOCUMENTI EMESSI'!B9:E2008,4,FALSE),"gg/mm/aaaa"),9,1)) -> 2 | O56: =IF(ISERROR(L70),"",MID(TEXT(VLOOKUP(AT7&"-"&AT3,'DOCUMENTI EMESSI'!B9:E2008,4,FALSE),"gg/mm/aaaa"),10,1)) -> 4 | P56: =IF(OR(ISERROR(L70),L71=0),"",VLOOKUP(VLOOKUP(AT7&"-"&AT3,'DOCUMENTI EMESSI'!B9:S2008,18,FALSE),Tabelle!I5:M7,5,FALSE)) -> 00001 | V56: =IF(OR(ISERROR(L70),L71=0),"",VLOOKUP(VLOOKUP(AT7&"-"&AT3,'DOCUMENTI EMESSI'!B9:S2008,18,FALSE),Tabelle!I5:N7,6,FALSE)) -> 10000 | AL56: =IF(ISERROR(L70),"",VLOOKUP(AT7&"-"&AT3,'DOCUMENTI EMESSI'!B9:Z2008,25,FALSE)) -> 01234 | AO56: =IF(ISERROR(L70),"",VLOOKUP(AT7&"-"&AT3,'DOCUMENTI EMESSI'!B9:AA2008,26,FALSE)) -> 56789 | AT56: =AT7 -> 1
K58: =IF(OR(ISERROR(L70),L71=0),"","IBAN: "&VLOOKUP(VLOOKUP(AT7&"-"&AT3,'DOCUMENTI EMESSI'!B9:S2008,18,FALSE),Tabelle!I5:O7,7,FALSE)) -> IBAN: IT00 X000 0000 0000 0000 0000 000
B62: Oscura
G63: Data | AS63: =CONTRIBUENTE!$G$13 -> 
G64: Riscossore
G65: Pagamento con assegno
G66: IBAN
E70: =IF(B63=$U$71,TRUE,FALSE) -> FALSE | L70: =VLOOKUP(AT7&"-"&AT3,'DOCUMENTI EMESSI'!B9:B2008,1,FALSE) -> 1-2024
E71: =IF(B64=$U$71,TRUE,FALSE) -> FALSE | L71: =VLOOKUP(AT7&"-"&AT3,'DOCUMENTI EMESSI'!B9:S2008,18,FALSE) -> B1 | U71: Oscura | AM71: =CONTRIBUENTE!J38 -> 2000-01-01
E72: =IF(B65=$U$71,TRUE,FALSE) -> FALSE | L72: File scaduto / INVERTITO
E73: =IF(B66=$U$71,TRUE,FALSE) -> FALSE | L73: =IF(CONTRIBUENTE!$H$138=1,0,1) -> 1 | AM73: Codice integrità | AO73: Integrità
AM74: 1 | AO74: =CONTRIBUENTE!K138 -> 4

Sheet Tabelle
C3: Tabella Tipo di versamento | J3: Tabella Riscossione
C4: Descrizione | I4: SIGLA | J4: Delega irrevocabile a | K4: Agenzia | L4: Prov. | M4: ABI | N4: CAB | O4: IBAN
C5: A.G.C.M. | H5: G | I5: B1 | J5: Nome Banca 1 / modifica sigla | K5: Nome Agenzia 1 | L5: XX | M5: 00001 | N5: 10000 | O5: IT00 X000 0000 0000 0000 0000 000
C6: AUTOVEICOLO | H6: A | I6: B2 | J6: Nome Banca 2 / modifica sigla | K6: Nome Agenzia 2 | L6: XX | M6: 00002 | N6: 20000
C7: Identificativo Registro | H7: F | I7: B3 | J7: Nome Banca 3 / modifica sigla | K7: Nome Agenzia 3 | L7: XX | M7: 00003 | N7: 30000
C8: INPDAP | H8: I
C9: MOTOVEICOLO | H9: M | J9: Personalizza tutti i campi liberi.
C10: RIM./Regolarizz./Altro | H10: R
C11: ---- Inserisci | H11: .
C12: ---- Inserisci | H12: .
C13: ---- Inserisci | H13: .
O16: www.marcopiccoli.it
C18: Codice integrità | G18: Integrità
C19: 1 | G19: =CONTRIBUENTE!K138 -> 4
C21: Tabelle scaricate dal Sito dell' Agenzia delle Entrate.
C22: Verifica eventuali aggiornamenti.
